{"text_format":"1","workbook":"xlsx","n_sheets":7,"sheets":["Bienvenue","Sommaire","Formulaire","Declaration","Nomenclature","Exemples","Specs"],"not_rendered":{"charts":0,"images":51,"macros":1,"external_links":0,"defined_names":127,"comments":0,"pivot_tables":0},"unopened":[],"bounds":{"document_bytes":16777216,"sheet_cells":100000,"rows_first":2000,"rows_last":500,"rows_between":2000,"halvings":0,"cell_chars":16384,"cell_head_chars":4096},"cells_cut":0,"cells_raw":0,"read":"whole","date_system":"1900"}

{"sheet":"Bienvenue","index":0,"n_rows":314,"n_cols":11,"rows_kept":314,"cut":false,"hidden":false,"merged":[[9,1,10,1],[9,10,10,13]]}
[]
[null,"Nous vous souhaitons la bienvenue sur la Déclaration détaillée"]
[]
[null,"Pour utiliser convenablement le fichier et bénéficier de ses fonctionnalités, il est nécessaire d'activer les macros."]
[]
[null,"Mes macros sont-elles bien activées ?"]
[]
[]
[]
[null,"Oui",null,null,null,"Non / Je ne sais pas. ",null,null,null,null,{"$f":"HYPERLINK( \"#\" & IF(TEXT(INFO(\"VERSION\"),0)=\"14\",\"Macro_2010\",IF(INFO(\"VERSION\")=\"12.0\",\"Macro_2007\",\"Macro_2003\")),\"Cheminement pour activer les macros\")","v":"Cheminement pour activer les macros"}]
[null,null,null,null,null,"J'active mes macros en suivant la procédure"]
[null,null,null,null,""]
[]
[]
[]
[]
[]
[]
[]
[]
[]
[]
[]
[]
[]
[]
[]
[]
[]
[]
[]
[]
[]
[]
[]
[]
[]
[]
[null,"Activer les macros sous Excel 2003 et versions antérieures :"]
[]
[null,null,null,"1 - Dans le menu \"Outils\", puis \"Macros\", cliquez sur \"Sécurité…\""]
[]
[]
[]
[]
[]
[]
[]
[]
[]
[]
[]
[]
[]
[]
[null,null,null,"2 - Cochez la dernière case \"Niveau de sécurité faible\" puis cliquez sur \"OK\""]
[]
[]
[]
[]
[]
[]
[]
[]
[]
[]
[]
[]
[]
[]
[]
[]
[null,null,null,"3 - Quitter Excel et ouvrir à nouveau le fichier"]
[]
[]
[]
[]
[]
[]
[]
[]
[]
[]
[]
[]
[]
[]
[]
[null,"Activer les macros sous Excel 2007 :"]
[]
[]
[null,null,null,"1 - Cliquer sur le bouton Office situé en haut à gauche de votre écran"]
[]
[]
[]
[]
[]
[null,null,null,"2 - Cliquer sur \"Options Excel\""]
[]
[]
[]
[]
[]
[]
[]
[]
[]
[]
[]
[]
[]
[]
[]
[]
[]
[null,null,null,"3 -  Cliquer sur \"Centre de gestion de la confidentialité\" situé dans le menu de gauche (avant le dernier item)"]
[]
[]
[]
[]
[]
[]
[]
[]
[]
[]
[]
[]
[]
[]
[]
[]
[null,null,null,"4 - Cliquer sur le bouton \"Paramètres du Centre de gestion de la confidentialité…\""]
[]
[]
[]
[]
[]
[]
[]
[]
[]
[]
[]
[]
[]
[]
[]
[]
[null,null,null,"5 - Cliquer sur \"Paramètres des macros\" dans le menu de gauche"]
[]
[]
[]
[]
[]
[]
[]
[]
[]
[]
[]
[]
[]
[]
[]
[]
[null,null,null,"6 - Cocher \"Activer toutes les macros (non recommandé ; risque d'exécution de code potentiellement dangereux)\" puis cliquer sur \"OK\""]
[]
[]
[]
[]
[]
[]
[]
[]
[]
[]
[]
[]
[]
[]
[]
[]
[null,null,null,"7 - Sur la fenêtre \"Option Excel\" sur laquelle vous êtes revenu, cliquer sur \"OK\""]
[]
[]
[]
[]
[]
[]
[]
[]
[]
[]
[]
[]
[]
[]
[]
[]
[]
[null,null,null,"8 - Quitter Excel et ouvrir à nouveau le fichier"]
[]
[]
[]
[]
[]
[]
[]
[]
[]
[]
[]
[]
[]
[]
[]
[null,"Activer les macros sous Excel 2010 :"]
[]
[null,null,null,"1 - Cliquer sur l'onglet \"Fichier\" (1) puis sur \"Options\" (2)"]
[]
[]
[]
[]
[]
[]
[]
[]
[]
[]
[]
[]
[]
[]
[]
[]
[]
[]
[null,null,null,"2 - Cliquer sur \"Centre de gestion de la confidentialité\" (1), puis sur \"Paramètres du Centre de gestion de la confidentialité...\""]
[]
[]
[]
[]
[]
[]
[]
[]
[]
[]
[]
[]
[]
[]
[]
[]
[]
[null,null,null,"3 - Cliquer sur \"Paramètres des macros\" (1), cocher \"Activer toutes les macros (non recommandé ; risque d'exécution de code potentiellement dangereux)\" (2) "]
[null,null,null,"puis cliquer sur \"OK\" (3)"]
[]
[]
[]
[]
[]
[]
[]
[]
[]
[]
[]
[]
[]
[]
[]
[]
[]
[]
[]
[]
[]
[]
[]
[]
[]
[]
[null,null,null,"4 - Sur la fenêtre \"Option Excel\" sur laquelle vous êtes revenu, cliquer sur \"OK\""]
[]
[]
[]
[]
[]
[]
[]
[]
[]
[]
[]
[]
[]
[]
[]
[]
[]
[]
[]
[]
[]
[]
[]
[]
[]
[]
[]
[]
[null,null,null,"5 - Quitter Excel et ouvrir à nouveau le fichier"]

{"sheet":"Sommaire","index":1,"n_rows":44,"n_cols":17,"rows_kept":44,"cut":false,"hidden":false,"merged":[[1,5,1,7],[3,3,3,4],[5,3,5,5],[42,8,42,10],[16,5,16,7],[20,5,20,7],[40,1,40,9],[18,5,18,7]]}
[null,null,null,null,null,"Contactez nos conseillers au 0 810 00 86 90",null,null,null,{"$f":"\"Déclaration \"&WWANNEE","v":"Déclaration 2015"}]
[null,null,null,null,null,"Sommaire"]
[null,null,null,null,null,null,null,null,null,null,"* Champ obligatoire à remplir"]
[null,null,"N° d'adhérent *","A2100138"]
[]
[null,null,"Nom d'adhérent *","SA. DOMAINE GROS A.F."]
[null,null,null,null,null,null,null,null,null,null,null,null,null,null,null,"Premiere Accès onglet Déclaration :",0]
["Remplir votre déclaration",null,null,null,null,null,null,null,null,null,null,null,null,null,null,"WbkLivraison",1]
[]
["1 - ",null,"Remplir votre déclaration",null,null,null,null,null,null,null,null,null,null,null,null,null,false]
[null,null,null,null,null,null,null,null,null,{"$f":"\"Accéder à la Déclaration \"&WWANNEE","v":"Accéder à la Déclaration 2015"},2015]
["Vous avez terminé de remplir votre déclaration ?"]
["2 - ",null,"Renseigner ou vérifier vos informations sur l'entreprise"]
[]
["3 -",null,"Contrôler et certifier la conformité des données renseignées"]
[]
[null,null,null,"Nom du signataire habilité * : "]
[]
[null,null,null,"Prénom du signataire habilité * : "]
[]
[null,null,null,"Fonction du signataire * : "]
[]
[null,null,"Afin de vous assurez que toutes les informations saisies sont conformes au format attendu, merci de lancer un contrôle"]
[]
[]
[]
[null,null,"Pensez à nous transmettre votre rapport de procédures convenues"]
[]
[null,null,"Pensez à nous transmettre votre attestation de papier/carton recyclé"]
[]
[null,null,"Pensez à nous transmettre vos justificatifs pour vos actions de sensibilisation"]
[]
[null,null,"Pensez à déclarer vos actions de réduction à la source sur le site dédié"]
[]
[null,null,{"$f":"\"Cocher la case afin d'attester l'exactitude des informations que vous vous apprêtez à communiquer à \" & Entite","v":"Cocher la case afin d'attester l'exactitude des informations que vous vous apprêtez à communiquer à Adelphe"}]
[null,null,"Je certifie l'exactitude des données renseignées dans la présente déclaration"]
[]
["4 -",null,"Convertir votre déclaration Excel au format d'envoi pour réduire la durée de transmission "]
[]
[null,"Emplacement  du fichier converti :"]
[null,null,null,null,null,null,null,null,null,null," "]
[]
["5 -",null,{"$f":"\"Se connecter au site Adelphe-Déclaration pour envoyer votre déclaration \"&WWANNEE","v":"Se connecter au site Adelphe-Déclaration pour envoyer votre déclaration 2015"},null,null,null,null,null,"https://www.adelphe-declaration.com"]
[{"$f":"Entite & \" vous remercie\"","v":"Adelphe vous remercie"}]

{"sheet":"Formulaire","index":2,"n_rows":107,"n_cols":27,"rows_kept":107,"cut":false,"hidden":false,"merged":[[57,8,57,9],[59,3,59,7],[60,10,60,12],[57,10,57,12],[58,10,58,12],[108,0,108,6],[108,8,108,15],[102,8,102,9],[102,10,102,12],[95,8,95,15],[102,0,102,2],[102,3,102,7],[95,0,95,6],[92,8,92,15],[94,8,94,15],[93,8,93,15],[83,8,83,15],[84,8,84,15],[85,8,85,15],[88,8,88,15],[89,8,89,15],[91,8,91,15],[90,8,90,15],[82,0,82,6],[74,0,74,6],[78,0,78,6],[79,0,79,6],[72,0,72,6],[77,0,77,6],[81,0,81,6],[75,0,75,6],[73,0,73,6],[76,0,76,6],[87,8,87,15],[80,8,80,15],[83,0,83,6],[86,8,86,15],[84,0,84,6],[85,0,85,6],[86,0,86,6],[88,0,88,6],[89,0,89,6],[87,0,87,6],[76,8,76,15],[75,8,75,15],[52,3,52,7],[52,0,52,2],[54,8,54,9],[59,8,59,9],[56,8,56,9],[51,0,51,2],[51,3,51,7],[79,8,79,15],[73,8,73,15],[64,0,64,2],[78,8,78,15],[65,3,65,7],[65,0,65,2],[74,8,74,15],[77,8,77,15],[72,8,72,15],[56,0,56,2],[57,0,57,2],[62,3,62,7],[59,0,59,2],[71,0,71,6],[62,10,62,12],[71,8,71,15],[62,0,62,2],[65,8,65,9],[65,10,65,12],[56,3,56,7],[60,8,60,9],[62,8,62,9],[61,0,61,2],[53,8,53,9],[55,10,55,12],[55,0,55,2],[53,3,53,7],[55,3,55,7],[54,0,54,2],[61,10,61,12],[53,0,53,2],[64,8,64,9],[61,3,61,7],[64,3,64,7],[63,3,63,7],[54,3,54,7],[57,3,57,7],[60,3,60,7],[64,10,64,12],[61,8,61,9],[63,10,63,12],[41,0,41,2],[45,3,45,7],[47,0,47,2],[42,0,42,2],[45,0,45,2],[43,0,43,2],[46,0,46,2],[33,3,33,6],[35,3,35,11],[42,8,42,9],[42,3,42,7],[46,3,46,7],[44,3,44,7],[41,10,41,12],[47,10,47,12],[47,3,47,7],[43,3,43,7],[42,10,42,12],[45,10,45,12],[43,8,43,9],[44,10,44,12],[41,3,41,7],[41,8,41,9],[31,3,31,11],[25,6,25,11],[27,9,27,11],[14,3,14,6],[14,7,14,14],[21,3,21,11],[4,6,4,12],[8,3,8,11],[19,3,19,11],[23,3,23,11],[29,3,29,11],[10,3,10,6],[12,3,12,6],[12,7,12,13],[27,3,27,6],[49,10,49,12],[49,8,49,9],[48,10,48,12],[43,10,43,12],[56,10,56,12],[55,8,55,9],[51,10,51,12],[53,10,53,12],[45,8,45,9],[47,8,47,9],[46,8,46,9],[46,10,46,12],[44,8,44,9],[52,8,52,9],[54,10,54,12],[52,10,52,12],[50,8,50,9],[50,10,50,12],[49,3,49,7],[44,0,44,2],[48,0,48,2],[90,0,90,6],[91,0,91,6],[92,0,92,6],[93,0,93,6],[94,0,94,6],[63,8,63,9],[63,0,63,2],[82,8,82,15],[81,8,81,15],[80,0,80,6],[48,3,48,7],[49,0,49,2],[51,8,51,9],[48,8,48,9],[50,0,50,2],[50,3,50,7],[58,0,58,2],[58,3,58,7],[59,10,59,12],[58,8,58,9],[60,0,60,2]]}
[null,null,null,null,null,null,null,null,null,null,null,null,null,null,null,{"$f":"Sommaire!J1","v":"Déclaration 2015"}]
[]
[]
[]
[null,null,null,null,null,null,"Informations sur l'entreprise"]
[null,null,null,null,null,null,null,null,null,null,null,null,null,null,null,"* Champ obligatoire à remplir"]
[null,null,null,"Informations générales"]
[]
[null,null,"Nom de l'entreprise :",{"$f":"IF(Sommaire!$D$6=\"\",\"\",Sommaire!$D$6)","v":""}]
[]
[null,null,"N° de SIRET * : ",null,null,null,null,"Indiquez votre N° de Siret à 14 chiffres si l'entreprise adhérente est immatriculée en France"]
[]
[null,null,"Chiffre d'Affaires en HT (€) : ",null,null,null,null,{"$f":"\"Indiquez votre chiffre d’affaires concerné pour l’année \"&WWANNEE","v":"Indiquez votre chiffre d’affaires concerné pour l’année 2015"}]
[]
[null,null,"Nombre d'UVC * :",4113,null,null,null,{"$f":"\"Indiquez le nombre d'Unités de Vente Consommateurs mises en marché en \"&WWANNEE","v":"Indiquez le nombre d'Unités de Vente Consommateurs mises en marché en 2015"}]
[]
[]
[null,null,null,"Identité du déclarant"]
[]
[null,null,"Nom * : ","PARENT-GROS"]
[]
[null,null,"Prénom * : ","ANNE-FRANCOISE"]
[]
[null,null,"Fonction * : ","PDG"]
[]
[null,null,"Adresse : ","n° : ","5",null,"GRANDE RUE LA GARELLE"]
[]
[null,null,"Code Postal : ","21630",null,null,null,null,"Boîte Postale :"]
[]
[null,null,"Ville : ","POMMARD"]
[]
[null,null,"Pays : ","FR"]
[]
[null,null,"Téléphone  : ","0380226185"]
[]
[null,null,"E-mail * : ","af-gros@wanadoo.fr"]
[]
[]
[null,null,null,null,null,null,"Listes des entreprises couvertes par le contrat"]
["      A remplir si votre contrat couvre plusieurs entreprises"]
[null,null,null,null,null,null,null,null,null,null,null,null,null,null,null,null,null,null,null,null,null,null,null,null,null,null,"CONTRÖLES"]
["Entreprise",null,null,"Adresse",null,null,null,null,"Code postal",null,"Ville",null,null,"Pays","SIRET","Téléphone",null,null,null,null,null,null,null,null,null,null,"EntreprisePaysSIRET"]
["",null,null,"",null,null,null,null,"",null,"",null,null,"","",""]
["",null,null,"",null,null,null,null,"",null,"",null,null,"","",""]
["",null,null,"",null,null,null,null,"",null,"",null,null,"","",""]
["",null,null,"",null,null,null,null,"",null,"",null,null,"","",""]
["",null,null,"",null,null,null,null,"",null,"",null,null,"","",""]
["",null,null,"",null,null,null,null,"",null,"",null,null,"","",""]
["",null,null,"",null,null,null,null,"",null,"",null,null,"","",""]
["",null,null,"",null,null,null,null,"",null,"",null,null,"","",""]
["",null,null,"",null,null,null,null,"",null,"",null,null,"","",""]
["",null,null,"",null,null,null,null,"",null,"",null,null,"","",""]
["",null,null,"",null,null,null,null,"",null,"",null,null,"","",""]
["",null,null,"",null,null,null,null,"",null,"",null,null,"","",""]
["",null,null,"",null,null,null,null,"",null,"",null,null,"","",""]
["",null,null,"",null,null,null,null,"",null,"",null,null,"","",""]
["",null,null,"",null,null,null,null,"",null,"",null,null,"","",""]
["",null,null,"",null,null,null,null,"",null,"",null,null,"","",""]
["",null,null,"",null,null,null,null,"",null,"",null,null,"","",""]
["",null,null,"",null,null,null,null,"",null,"",null,null,"","",""]
["",null,null,"",null,null,null,null,"",null,"",null,null,"","",""]
["",null,null,"",null,null,null,null,"",null,"",null,null,"","",""]
["",null,null,"",null,null,null,null,"",null,"",null,null,"","",""]
["",null,null,"",null,null,null,null,"",null,"",null,null,"","",""]
["",null,null,"",null,null,null,null,"",null,"",null,null,"","",""]
["",null,null,"",null,null,null,null,"",null,"",null,null,"","",""]
["Pour ajouter des lignes au tableau, faire un clic droit sur le n° de cette ligne, à gauche de la fenêtre et sélectionner l'item Insertion"]
[]
[null,null,null,null,null,null,"Listes des marques couvertes par le contrat"]
[{"$f":"\"           Lister l'ensemble des noms commerciaux des produits pour lesquels vous contribuez à \" & Entite","v":"           Lister l'ensemble des noms commerciaux des produits pour lesquels vous contribuez à Adelphe"}]
[]
["Nom de la marque",null,null,null,null,null,null,null,"Nom de la marque"]
["",null,null,null,null,null,null,"",""]
["",null,null,null,null,null,null,"",""]
["",null,null,null,null,null,null,"",""]
["",null,null,null,null,null,null,"",""]
["",null,null,null,null,null,null,"",""]
["",null,null,null,null,null,null,"",""]
["",null,null,null,null,null,null,"",""]
["",null,null,null,null,null,null,"",""]
["",null,null,null,null,null,null,"",""]
["",null,null,null,null,null,null,"",""]
["",null,null,null,null,null,null,"",""]
["",null,null,null,null,null,null,"",""]
["",null,null,null,null,null,null,"",""]
["",null,null,null,null,null,null,"",""]
["",null,null,null,null,null,null,"",""]
["",null,null,null,null,null,null,"",""]
["",null,null,null,null,null,null,"",""]
["",null,null,null,null,null,null,"",""]
["",null,null,null,null,null,null,"",""]
["",null,null,null,null,null,null,"",""]
["",null,null,null,null,null,null,"",""]
["",null,null,null,null,null,null,"",""]
["",null,null,null,null,null,null,"",""]
["",null,null,null,null,null,null,"",""]
["RepereFinNomMarque"]
[]
[]
[]
["Liste entreprises, ligne format par défaut (fusion cellules)"]
[]
[]
[]
[]
[]
["Liste marques, ligne format par défaut (fusion cellules)"]

{"sheet":"Declaration","index":3,"n_rows":119,"n_cols":59,"rows_kept":119,"cut":false,"hidden":false,"merged":[[1,52,1,53],[1,54,1,56],[2,6,2,7],[1,8,1,9]]}
[null,{"$f":"\"Déclaration détaillée \"&WWANNEE","v":"Déclaration détaillée 2015"},null,null,null,null,null,null,null,null,null,null,null,null,null,null,null,null,null,null,null,null,null,null,null,null,null,null,null,null,null,null,null,null,null,null,null,null,null,null,null,null,null,null,null,null,"AU","AV","AW","AX","AY","AZ"]
[null,"Calculer le montant de votre déclaration et\n contrôler vos données","Type d'emballage",null,null,null,null,null,"Composition par matériau",null,null,null,null,null,null,null,null,null,null,"Malus",null,null,"Bonus",null,null,"Emballages mis en marché",null,null,null,null,null,{"$f":"\"Total de votre déclaration \"&WWANNEE","v":"Total de votre déclaration 2015"},null,null,{"$f":"IF(OR(SUM($AW10:$AW10)<>0,SUM($AZ10:$AZ10)<>0),\"-\",SUM($AI10:$AI10))","v":0},null,1,null,null,null,null,null,null,null,null,46,47,48,49,50,51,52,"MAJORITAIRE",null,"NON MAJORITAIRE"]
["N° UVC ou \nréférence produit\n(Maximum 20 caractères)"," Libellé\n(Maximum 50 caractères\net doit contenir au moins une lettre)","Code produit","Libellé code produit","Code emballage","Libellé code emballage","\nQue contient l'emballage ?",null,"Code du \n1er matériau","Libellé du 1er matériau","Poids unitaire\n(en g) du 1er matériau \nou poids total de l'unité d'emballage\nsi un matériau est majoritaire à + 80%","Code du \n2nd matériau","Libellé du 2nd matériau","Poids unitaire\n(en g) \ndu 2nd matériau ","     Code du 3ème matériau","Libellé du \n3ème matériau","Poids unitaire\n(en g) du\n3ème matériau et\nmatériaux restants ","Poids total de\nl'unité d'emballage\n(en g)","  Votre emballage en papier-carton  contient-il plus de 50% de fibres recyclées ?","Votre emballage\nest-il perturbateur ?","Votre emballage\nest-il non-valorisable ?","Votre emballage\nest-il dans les consignes de tri \nmais sans filière de recyclage ?","Votre emballage\na-t-il fait l’objet d’une action de réduction à la source ?\nSi oui, laquelle ?","Votre emballage\na-t-il fait l'objet d'une action de sensibilisation ?  Si oui, laquelle ?","% des volumes ménagers\nconcernés par l'action de sensibilisation","Nombre d'emballages ménagers mis sur le marché","\n\nNombre d'emballages non ménagers ayant le même conditionnement que les produits ménagers mis sur le marché français","\n\nVos emballages non ménagers sont-ils des emballages de produits retournés, cassés ou périmés ?","\n\nVos emballages non ménagers sont-ils des films/cartons de regroupement qui ont été laissés sur le point de vente (délotage) avant le passage en caisse ?","\n\nVos emballages non ménagers sont-ils utilisés ou consommés par des professionnels et distribués dans des circuits mixtes ou réservés exclusivement aux professionnels\n(ex. : grossiste, cash & carry…) ?","\n\nVos emballages non ménagers sont-ils consommés ou utilisés au sein d’un établissement de restauration collective ou traditionnelle ?","Contribution \nau poids\n (ct euro)","Contribution\nà l'emballage\n(ct euro)","Contribution \nunitaire totale\n(ct euro)","Contribution totale \npar ligne \n(euro)",null,"Label control\n(logic)",null,null,null,null,null,null,null,null,"Renversement des Résultats de Test","CNB _ NB_erreurs","CNB _ NB_erreurs","CNB _ NB_erreurs","CB _ NB_erreurs","CB _ NB_erreurs","CB _ NB_erreurs","Contribution au poids Majoritaire","Contribution au\npoids Majoritaire\n(après décote)","Contribution au\npoids Non Majoritaire\n (après décote)\n - Matériau 1","Contribution au\npoids Non Majoritaire\n (après décote)\n - Matériau 2","Contribution au\npoids Non Majoritaire\n (après décote)\n - Matériau 3","Ctu Après Malus","Ctu Après Réduction Source"]
[1,"Exemple : Vin blanc 2010","023400","Vins","017","Bouteille",75,"cl",50,"Verre",436,null,"",null,null,"",null,436,"Non","Non","Non","Non","Réduction de poids","On-Pack ITPV",0.75,320000,75000,"Non","Non","Non","Oui",null,null,null,null,null,null,null,null,null,null,null,null,null,null,"(CB & CNB)",1,"Coloriage",1,1,1,1]
[1,"Exemple : Vin blanc 2010","023400","Vins","B10","Bouchon",1,"autre",60,"Autres matériaux",4.5,null,"",null,null,"",null,4.5,"Non","Non","Non","Non",null,"On-Pack ITPV",0.75,320000,75000,"Non","Non","Non","Oui"]
[1,"Exemple : Vin blanc 2010","023400","Vins","044","Etui souple",1,"autre",30,"Papier-carton - Autre que briques",85,null,"",null,null,"",null,85,"Non","Non","Non","Non",null,"On-Pack ITPV",0.75,320000,75000,"Non","Non","Non","Oui"]
[2,"Exemple : Comprimés x 20","096731","Allergologie","012","Boîte",2,"autre",30,"Papier-carton - Autre que briques",4.87,null,"",null,null,"",null,4.87,"Non","Non","Non","Non",null,null,null,542000,300000,"Non","Non","Oui","Non"]
[2,"Exemple : Comprimés x 20","096731","Allergologie","008","Blister à coque thermoformée, avec ou sans chevalet carton",10,"autre",43,"Plastique - Autres emballages plastique",3.429,20,"Aluminium",0.921,null,"",null,5.271,"Non","Non","Non","Non",null,null,null,1084000,600000,"Non","Non","Oui","Non",null,null,null,null,null,null,null,null,null,null,null,null,null,null,null,1,null,1,1,1,1]
["Filtre","Filtre","Filtre","Filtre","Filtre","Filtre","Filtre","Filtre","Filtre","Filtre","Filtre","Filtre","Filtre","Filtre","Filtre","Filtre","Filtre","Filtre","Filtre","Filtre","Filtre","Filtre","Filtre","Filtre","Filtre","Filtre","Filtre","Filtre","Filtre","Filtre","Filtre","Filtre","Filtre","Filtre","Filtre",null,"Filtre",null,null,null,null,null,null,null,null,null,1,null,1,1,1,1]
["1","vins 2014","023400",{"$f":"IF(ISBLANK(C10),\"\",IF(ISERROR(VLOOKUP(TEXT(C10,\"000000\"),Produits,2,FALSE)),IF(ISERROR(VLOOKUP(\"0\"&C10,Produits,2,FALSE)),\"N'appartient pas à la liste\",VLOOKUP(\"0\"&C10,Produits,2,FALSE)),VLOOKUP(TEXT(C10,\"000000\"),Produits,2,FALSE)))","v":""},"017",{"$f":"IF(ISBLANK(E10),\"\",IF(ISERROR(VLOOKUP(TEXT(E10,\"000\"),Emballages,2,0)),IF(ISERROR(VLOOKUP(\"0\"&E10,Emballages,2,FALSE)),\"N'appartient pas à la liste\",VLOOKUP(\"0\"&E10,Emballages,2,FALSE)),VLOOKUP(TEXT(E10,\"000\"),Emballages,2,0)))","v":""},75,"cl",50,{"$f":"IF(ISBLANK(I10),\"\",IF(ISERROR(VLOOKUP(I10,Bareme,2,FALSE)),\"N'appartient pas à la liste\",VLOOKUP(I10,Bareme,2,FALSE)))","v":""},550,null,{"$f":"IF(ISBLANK(L10),\"\",IF(ISERROR(VLOOKUP(L10,Bareme,2,FALSE)),\"N'appartient pas à la liste\",VLOOKUP(L10,Bareme,2,FALSE)))","v":""},null,null,{"$f":"IF(ISBLANK(O10),\"\",IF(ISERROR(VLOOKUP(O10,Bareme,2,FALSE)),\"N'appartient pas à la liste\",VLOOKUP(O10,Bareme,2,FALSE)))","v":""},null,{"$f":"IF(OR($K10<>\"\",$N10<>\"\",$Q10<>\"\"),SUM($K10,$N10,$Q10),\"\")","v":""},null,null,null,null,null,null,null,null,null,null,null,null,null,null,null,null,null,null,{"$f":"IsLabelOk($B10)","v":true},null,null,null,null,null,null,null,null,null,null,null,null,1]
["2","cartons","023400","","022","",6,"autre",30,"",240,null,"",null,null,"",null,"",null,null,null,null,null,null,null,null,null,null,null,null,null,null,null,null,null,null,true]
["3","cartons","023400","","022","",12,"autre",30,"",480,null,"",null,null,"",null,"",null,null,null,null,null,null,null,null,null,null,null,null,null,null,null,null,null,null,true]
["4","bouchons","023400","","B10","",1,"autre",60,"",5,null,"",null,null,"",null,"",null,null,null,null,null,null,null,null,null,null,null,null,null,null,null,null,null,null,true]
[null,null,null,"",null,"",null,null,null,"",null,null,"",null,null,"",null,"",null,null,null,null,null,null,null,null,null,null,null,null,null,null,null,null,null,null,true]
[null,null,null,"",null,"",null,null,null,"",null,null,"",null,null,"",null,"",null,null,null,null,null,null,null,null,null,null,null,null,null,null,null,null,null,null,true]
[null,null,null,"",null,"",null,null,null,"",null,null,"",null,null,"",null,"",null,null,null,null,null,null,null,null,null,null,null,null,null,null,null,null,null,null,true]
[null,null,null,"",null,"",null,null,null,"",null,null,"",null,null,"",null,"",null,null,null,null,null,null,null,null,null,null,null,null,null,null,null,null,null,null,true]
[null,null,null,"",null,"",null,null,null,"",null,null,"",null,null,"",null,"",null,null,null,null,null,null,null,null,null,null,null,null,null,null,null,null,null,null,true]
[null,null,null,"",null,"",null,null,null,"",null,null,"",null,null,"",null,"",null,null,null,null,null,null,null,null,null,null,null,null,null,null,null,null,null,null,true]
[null,null,null,"",null,"",null,null,null,"",null,null,"",null,null,"",null,"",null,null,null,null,null,null,null,null,null,null,null,null,null,null,null,null,null,null,true]
[null,null,null,"",null,"",null,null,null,"",null,null,"",null,null,"",null,"",null,null,null,null,null,null,null,null,null,null,null,null,null,null,null,null,null,null,true]
[null,null,null,"",null,"",null,null,null,"",null,null,"",null,null,"",null,"",null,null,null,null,null,null,null,null,null,null,null,null,null,null,null,null,null,null,true]
[null,null,null,"",null,"",null,null,null,"",null,null,"",null,null,"",null,"",null,null,null,null,null,null,null,null,null,null,null,null,null,null,null,null,null,null,true]
[null,null,null,"",null,"",null,null,null,"",null,null,"",null,null,"",null,"",null,null,null,null,null,null,null,null,null,null,null,null,null,null,null,null,null,null,true]
[null,null,null,"",null,"",null,null,null,"",null,null,"",null,null,"",null,"",null,null,null,null,null,null,null,null,null,null,null,null,null,null,null,null,null,null,true]
[null,null,null,"",null,"",null,null,null,"",null,null,"",null,null,"",null,"",null,null,null,null,null,null,null,null,null,null,null,null,null,null,null,null,null,null,true]
[null,null,null,"",null,"",null,null,null,"",null,null,"",null,null,"",null,"",null,null,null,null,null,null,null,null,null,null,null,null,null,null,null,null,null,null,true]
[null,null,null,"",null,"",null,null,null,"",null,null,"",null,null,"",null,"",null,null,null,null,null,null,null,null,null,null,null,null,null,null,null,null,null,null,true]
[null,null,null,"",null,"",null,null,null,"",null,null,"",null,null,"",null,"",null,null,null,null,null,null,null,null,null,null,null,null,null,null,null,null,null,null,true]
[null,null,null,"",null,"",null,null,null,"",null,null,"",null,null,"",null,"",null,null,null,null,null,null,null,null,null,null,null,null,null,null,null,null,null,null,true]
[null,null,null,"",null,"",null,null,null,"",null,null,"",null,null,"",null,"",null,null,null,null,null,null,null,null,null,null,null,null,null,null,null,null,null,null,true]
[null,null,null,"",null,"",null,null,null,"",null,null,"",null,null,"",null,"",null,null,null,null,null,null,null,null,null,null,null,null,null,null,null,null,null,null,true]
[null,null,null,"",null,"",null,null,null,"",null,null,"",null,null,"",null,"",null,null,null,null,null,null,null,null,null,null,null,null,null,null,null,null,null,null,true]
[null,null,null,"",null,"",null,null,null,"",null,null,"",null,null,"",null,"",null,null,null,null,null,null,null,null,null,null,null,null,null,null,null,null,null,null,true]
[null,null,null,"",null,"",null,null,null,"",null,null,"",null,null,"",null,"",null,null,null,null,null,null,null,null,null,null,null,null,null,null,null,null,null,null,true]
[null,null,null,"",null,"",null,null,null,"",null,null,"",null,null,"",null,"",null,null,null,null,null,null,null,null,null,null,null,null,null,null,null,null,null,null,true]
[null,null,null,"",null,"",null,null,null,"",null,null,"",null,null,"",null,"",null,null,null,null,null,null,null,null,null,null,null,null,null,null,null,null,null,null,true]
[null,null,null,"",null,"",null,null,null,"",null,null,"",null,null,"",null,"",null,null,null,null,null,null,null,null,null,null,null,null,null,null,null,null,null,null,true]
[null,null,null,"",null,"",null,null,null,"",null,null,"",null,null,"",null,"",null,null,null,null,null,null,null,null,null,null,null,null,null,null,null,null,null,null,true]
[null,null,null,"",null,"",null,null,null,"",null,null,"",null,null,"",null,"",null,null,null,null,null,null,null,null,null,null,null,null,null,null,null,null,null,null,true]
[null,null,null,"",null,"",null,null,null,"",null,null,"",null,null,"",null,"",null,null,null,null,null,null,null,null,null,null,null,null,null,null,null,null,null,null,true]
[null,null,null,"",null,"",null,null,null,"",null,null,"",null,null,"",null,"",null,null,null,null,null,null,null,null,null,null,null,null,null,null,null,null,null,null,true]
[null,null,null,"",null,"",null,null,null,"",null,null,"",null,null,"",null,"",null,null,null,null,null,null,null,null,null,null,null,null,null,null,null,null,null,null,true]
[null,null,null,"",null,"",null,null,null,"",null,null,"",null,null,"",null,"",null,null,null,null,null,null,null,null,null,null,null,null,null,null,null,null,null,null,true]
[null,null,null,"",null,"",null,null,null,"",null,null,"",null,null,"",null,"",null,null,null,null,null,null,null,null,null,null,null,null,null,null,null,null,null,null,true]
[null,null,null,"",null,"",null,null,null,"",null,null,"",null,null,"",null,"",null,null,null,null,null,null,null,null,null,null,null,null,null,null,null,null,null,null,true]
[null,null,null,"",null,"",null,null,null,"",null,null,"",null,null,"",null,"",null,null,null,null,null,null,null,null,null,null,null,null,null,null,null,null,null,null,true]
[null,null,null,"",null,"",null,null,null,"",null,null,"",null,null,"",null,"",null,null,null,null,null,null,null,null,null,null,null,null,null,null,null,null,null,null,true]
[null,null,null,"",null,"",null,null,null,"",null,null,"",null,null,"",null,"",null,null,null,null,null,null,null,null,null,null,null,null,null,null,null,null,null,null,true]
[null,null,null,"",null,"",null,null,null,"",null,null,"",null,null,"",null,"",null,null,null,null,null,null,null,null,null,null,null,null,null,null,null,null,null,null,true]
[null,null,null,"",null,"",null,null,null,"",null,null,"",null,null,"",null,"",null,null,null,null,null,null,null,null,null,null,null,null,null,null,null,null,null,null,true]
[null,null,null,"",null,"",null,null,null,"",null,null,"",null,null,"",null,"",null,null,null,null,null,null,null,null,null,null,null,null,null,null,null,null,null,null,true]
[null,null,null,"",null,"",null,null,null,"",null,null,"",null,null,"",null,"",null,null,null,null,null,null,null,null,null,null,null,null,null,null,null,null,null,null,true]
[null,null,null,"",null,"",null,null,null,"",null,null,"",null,null,"",null,"",null,null,null,null,null,null,null,null,null,null,null,null,null,null,null,null,null,null,true]
[null,null,null,"",null,"",null,null,null,"",null,null,"",null,null,"",null,"",null,null,null,null,null,null,null,null,null,null,null,null,null,null,null,null,null,null,true]
[null,null,null,"",null,"",null,null,null,"",null,null,"",null,null,"",null,"",null,null,null,null,null,null,null,null,null,null,null,null,null,null,null,null,null,null,true]
[null,null,null,"",null,"",null,null,null,"",null,null,"",null,null,"",null,"",null,null,null,null,null,null,null,null,null,null,null,null,null,null,null,null,null,null,true]
[null,null,null,"",null,"",null,null,null,"",null,null,"",null,null,"",null,"",null,null,null,null,null,null,null,null,null,null,null,null,null,null,null,null,null,null,true]
[null,null,null,"",null,"",null,null,null,"",null,null,"",null,null,"",null,"",null,null,null,null,null,null,null,null,null,null,null,null,null,null,null,null,null,null,true]
[null,null,null,"",null,"",null,null,null,"",null,null,"",null,null,"",null,"",null,null,null,null,null,null,null,null,null,null,null,null,null,null,null,null,null,null,true]
[null,null,null,"",null,"",null,null,null,"",null,null,"",null,null,"",null,"",null,null,null,null,null,null,null,null,null,null,null,null,null,null,null,null,null,null,true]
[null,null,null,"",null,"",null,null,null,"",null,null,"",null,null,"",null,"",null,null,null,null,null,null,null,null,null,null,null,null,null,null,null,null,null,null,true]
[null,null,null,"",null,"",null,null,null,"",null,null,"",null,null,"",null,"",null,null,null,null,null,null,null,null,null,null,null,null,null,null,null,null,null,null,true]
[null,null,null,"",null,"",null,null,null,"",null,null,"",null,null,"",null,"",null,null,null,null,null,null,null,null,null,null,null,null,null,null,null,null,null,null,true]
[null,null,null,"",null,"",null,null,null,"",null,null,"",null,null,"",null,"",null,null,null,null,null,null,null,null,null,null,null,null,null,null,null,null,null,null,true]
[null,null,null,"",null,"",null,null,null,"",null,null,"",null,null,"",null,"",null,null,null,null,null,null,null,null,null,null,null,null,null,null,null,null,null,null,true]
[null,null,null,"",null,"",null,null,null,"",null,null,"",null,null,"",null,"",null,null,null,null,null,null,null,null,null,null,null,null,null,null,null,null,null,null,true]
[null,null,null,"",null,"",null,null,null,"",null,null,"",null,null,"",null,"",null,null,null,null,null,null,null,null,null,null,null,null,null,null,null,null,null,null,true]
[null,null,null,"",null,"",null,null,null,"",null,null,"",null,null,"",null,"",null,null,null,null,null,null,null,null,null,null,null,null,null,null,null,null,null,null,true]
[null,null,null,"",null,"",null,null,null,"",null,null,"",null,null,"",null,"",null,null,null,null,null,null,null,null,null,null,null,null,null,null,null,null,null,null,true]
[null,null,null,"",null,"",null,null,null,"",null,null,"",null,null,"",null,"",null,null,null,null,null,null,null,null,null,null,null,null,null,null,null,null,null,null,true]
[null,null,null,"",null,"",null,null,null,"",null,null,"",null,null,"",null,"",null,null,null,null,null,null,null,null,null,null,null,null,null,null,null,null,null,null,true]
[null,null,null,"",null,"",null,null,null,"",null,null,"",null,null,"",null,"",null,null,null,null,null,null,null,null,null,null,null,null,null,null,null,null,null,null,true]
[null,null,null,"",null,"",null,null,null,"",null,null,"",null,null,"",null,"",null,null,null,null,null,null,null,null,null,null,null,null,null,null,null,null,null,null,true]
[null,null,null,"",null,"",null,null,null,"",null,null,"",null,null,"",null,"",null,null,null,null,null,null,null,null,null,null,null,null,null,null,null,null,null,null,true]
[null,null,null,"",null,"",null,null,null,"",null,null,"",null,null,"",null,"",null,null,null,null,null,null,null,null,null,null,null,null,null,null,null,null,null,null,true]
[null,null,null,"",null,"",null,null,null,"",null,null,"",null,null,"",null,"",null,null,null,null,null,null,null,null,null,null,null,null,null,null,null,null,null,null,true]
[null,null,null,"",null,"",null,null,null,"",null,null,"",null,null,"",null,"",null,null,null,null,null,null,null,null,null,null,null,null,null,null,null,null,null,null,true]
[null,null,null,"",null,"",null,null,null,"",null,null,"",null,null,"",null,"",null,null,null,null,null,null,null,null,null,null,null,null,null,null,null,null,null,null,true]
[null,null,null,"",null,"",null,null,null,"",null,null,"",null,null,"",null,"",null,null,null,null,null,null,null,null,null,null,null,null,null,null,null,null,null,null,true]
[null,null,null,"",null,"",null,null,null,"",null,null,"",null,null,"",null,"",null,null,null,null,null,null,null,null,null,null,null,null,null,null,null,null,null,null,true]
[null,null,null,"",null,"",null,null,null,"",null,null,"",null,null,"",null,"",null,null,null,null,null,null,null,null,null,null,null,null,null,null,null,null,null,null,true]
[null,null,null,"",null,"",null,null,null,"",null,null,"",null,null,"",null,"",null,null,null,null,null,null,null,null,null,null,null,null,null,null,null,null,null,null,true]
[null,null,null,"",null,"",null,null,null,"",null,null,"",null,null,"",null,"",null,null,null,null,null,null,null,null,null,null,null,null,null,null,null,null,null,null,true]
[null,null,null,"",null,"",null,null,null,"",null,null,"",null,null,"",null,"",null,null,null,null,null,null,null,null,null,null,null,null,null,null,null,null,null,null,true]
[null,null,null,"",null,"",null,null,null,"",null,null,"",null,null,"",null,"",null,null,null,null,null,null,null,null,null,null,null,null,null,null,null,null,null,null,true]
[null,null,null,"",null,"",null,null,null,"",null,null,"",null,null,"",null,"",null,null,null,null,null,null,null,null,null,null,null,null,null,null,null,null,null,null,true]
[null,null,null,"",null,"",null,null,null,"",null,null,"",null,null,"",null,"",null,null,null,null,null,null,null,null,null,null,null,null,null,null,null,null,null,null,true]
[null,null,null,"",null,"",null,null,null,"",null,null,"",null,null,"",null,"",null,null,null,null,null,null,null,null,null,null,null,null,null,null,null,null,null,null,true]
[null,null,null,"",null,"",null,null,null,"",null,null,"",null,null,"",null,"",null,null,null,null,null,null,null,null,null,null,null,null,null,null,null,null,null,null,true]
[null,null,null,"",null,"",null,null,null,"",null,null,"",null,null,"",null,"",null,null,null,null,null,null,null,null,null,null,null,null,null,null,null,null,null,null,true]
[null,null,null,"",null,"",null,null,null,"",null,null,"",null,null,"",null,"",null,null,null,null,null,null,null,null,null,null,null,null,null,null,null,null,null,null,true]
[null,null,null,"",null,"",null,null,null,"",null,null,"",null,null,"",null,"",null,null,null,null,null,null,null,null,null,null,null,null,null,null,null,null,null,null,true]
[null,null,null,"",null,"",null,null,null,"",null,null,"",null,null,"",null,"",null,null,null,null,null,null,null,null,null,null,null,null,null,null,null,null,null,null,true]
[null,null,null,"",null,"",null,null,null,"",null,null,"",null,null,"",null,"",null,null,null,null,null,null,null,null,null,null,null,null,null,null,null,null,null,null,true]
[null,null,null,"",null,"",null,null,null,"",null,null,"",null,null,"",null,"",null,null,null,null,null,null,null,null,null,null,null,null,null,null,null,null,null,null,true]
[null,null,null,"",null,"",null,null,null,"",null,null,"",null,null,"",null,"",null,null,null,null,null,null,null,null,null,null,null,null,null,null,null,null,null,null,true]
[null,null,null,"",null,"",null,null,null,"",null,null,"",null,null,"",null,"",null,null,null,null,null,null,null,null,null,null,null,null,null,null,null,null,null,null,true]
[null,null,null,"",null,"",null,null,null,"",null,null,"",null,null,"",null,"",null,null,null,null,null,null,null,null,null,null,null,null,null,null,null,null,null,null,true]
[null,null,null,"",null,"",null,null,null,"",null,null,"",null,null,"",null,"",null,null,null,null,null,null,null,null,null,null,null,null,null,null,null,null,null,null,true]
[null,null,null,"",null,"",null,null,null,"",null,null,"",null,null,"",null,"",null,null,null,null,null,null,null,null,null,null,null,null,null,null,null,null,null,null,true]
[null,null,null,"",null,"",null,null,null,"",null,null,"",null,null,"",null,"",null,null,null,null,null,null,null,null,null,null,null,null,null,null,null,null,null,null,true]
[null,null,null,"",null,"",null,null,null,"",null,null,"",null,null,"",null,"",null,null,null,null,null,null,null,null,null,null,null,null,null,null,null,null,null,null,true]
[null,null,null,"",null,"",null,null,null,"",null,null,"",null,null,"",null,"",null,null,null,null,null,null,null,null,null,null,null,null,null,null,null,null,null,null,true]
[null,null,null,"",null,"",null,null,null,"",null,null,"",null,null,"",null,"",null,null,null,null,null,null,null,null,null,null,null,null,null,null,null,null,null,null,true]
[null,null,null,"",null,"",null,null,null,"",null,null,"",null,null,"",null,"",null,null,null,null,null,null,null,null,null,null,null,null,null,null,null,null,null,null,true]
[null,null,null,"",null,"",null,null,null,"",null,null,"",null,null,"",null,"",null,null,null,null,null,null,null,null,null,null,null,null,null,null,null,null,null,null,true]
[null,null,null,"",null,"",null,null,null,"",null,null,"",null,null,"",null,"",null,null,null,null,null,null,null,null,null,null,null,null,null,null,null,null,null,null,true]
[null,null,null,"",null,"",null,null,null,"",null,null,"",null,null,"",null,"",null,null,null,null,null,null,null,null,null,null,null,null,null,null,null,null,null,null,true]
[null,null,null,"",null,"",null,null,null,"",null,null,"",null,null,"",null,"",null,null,null,null,null,null,null,null,null,null,null,null,null,null,null,null,null,null,true]
[null,null,null,"",null,"",null,null,null,"",null,null,"",null,null,"",null,"",null,null,null,null,null,null,null,null,null,null,null,null,null,null,null,null,null,null,true]
[null,null,null,"",null,"",null,null,null,"",null,null,"",null,null,"",null,"",null,null,null,null,null,null,null,null,null,null,null,null,null,null,null,null,null,null,true]
[null,null,null,"",null,"",null,null,null,"",null,null,"",null,null,"",null,"",null,null,null,null,null,null,null,null,null,null,null,null,null,null,null,null,null,null,true]
[null,null,null,"",null,"",null,null,null,"",null,null,"",null,null,"",null,"",null,null,null,null,null,null,null,null,null,null,null,null,null,null,null,null,null,null,true]
[null,null,null,"",null,"",null,null,null,"",null,null,"",null,null,"",null,"",null,null,null,null,null,null,null,null,null,null,null,null,null,null,null,null,null,null,true]
[null,null,null,"",null,"",null,null,null,"",null,null,"",null,null,"",null,"",null,null,null,null,null,null,null,null,null,null,null,null,null,null,null,null,null,null,true]
[null,null,null,"",null,"",null,null,null,"",null,null,"",null,null,"",null,"",null,null,null,null,null,null,null,null,null,null,null,null,null,null,null,null,null,null,true]
[null,null,null,"",null,"",null,null,null,"",null,null,"",null,null,"",null,"",null,null,null,null,null,null,null,null,null,null,null,null,null,null,null,null,null,null,true]
[null,null,null,"",null,"",null,null,null,"",null,null,"",null,null,"",null,"",null,null,null,null,null,null,null,null,null,null,null,null,null,null,null,null,null,null,true]

{"sheet":"Nomenclature","index":4,"n_rows":397,"n_cols":42,"rows_kept":397,"cut":false,"hidden":false,"merged":[]}
[null,null,{"$f":"Titre_Sommaire","v":"Déclaration 2015"},null,null,null,{"$f":"Titre_Sommaire","v":"Déclaration 2015"},null,null,null,null,{"$f":"Titre_Sommaire","v":"Déclaration 2015"},null,"AVERTISSEMENT :  Les listes peuvent être complétées MAIS il ne faut pas NI laisser de ligne vide NI mettre une note/mémo sous les listes.",null,null,null,null,null,null,null,null,null,null,null,null,null,null,null,null,null,null,null,null,null,null,null,null,null,null,null,{"$f":"COLUMN()","v":42}]
[null,null,null,null,null,null,null,null,null,null,null,null,null,null,null,null,null,null,null,null,null,null,null,null,null,null,null,null,null,null,null,null,null,null,null,null,null,null,null,null,"Colonne active dans la déclaration = >",1]
[null,"n",28,null,null,null,13,null,null,12,15]
[null,"Sélectionnez votre nomenclature :",null,null,null,"Sélectionnez votre nomenclature :",null,null,null,"Sélectionnez votre nomenclature :",null,null,null,null,null,null,null,null,null,null,null,null,null,null,null,null,null,null,null,null,null,null,null,null,null,null,null,null,null,null,"Ligne active dans la déclaration = >",10]
[]
["Rechercher : "]
[]
["Code Produit","Désignation Produit",null,null,"Code Emballage","Désignation emballage",null,null,"Code Matériau","Matériau","Tarifs",null,null,"Bonus L2","Bonus L3",null,"ID emballage (bouteille)","Détection bouteille","Global",null,"ID emballage (bouchon)","Détection bouchons","Global",null,"Probleme bouteille sans bouchon",null,null,"Année","Bonus","Coef après bonus",null,"Année FDD","Coef bonus utilisé",null,"Colonne\nDéclaration\nCell Active","Ligne\nDéclaration\nCell Active",null,"Liste déroulante","Sélectionné",null,"Liste Pays","Codes pays"]
["010100","Biscottes et pains grillés",null,null,"001","Aérosol",null,null,10,"Acier",3.15,null,null,"On-Pack ITPV","Réduction de poids",null,"001",{"$f":"IF(COUNTIF(Declaration!$E:$E,Q9)-COUNTIF(Declaration!$E$4:$E$8,Q9)<>0,1,0)","v":0},{"$f":"SUM(R9:R30)","v":0},null,"B10",{"$f":"IF(COUNTIF(Declaration!$E:$E,U9)-COUNTIF(Declaration!$E$4:$E$8,U9)<>0,1,0)","v":0},{"$f":"SUM(V9:V14)","v":0},null,{"$f":"IF(AND(S9=1,W9=0),1,0)","v":0},null,null,2012,0.02,{"$f":"1-AC9","v":0.98},null,{"$f":"WWANNEE","v":2015},{"$f":"INDEX($AD$9:$AD$14,MATCH($AF$9,$AB$9:$AB$14,0))","v":0.92},null,25,1,null,"Produit",1,null,"ALLEMAGNE","DE"]
["010101","Produits similaires grillés",null,null,"102","Ailettes",null,null,20,"Aluminium",9.2799999999999994,null,null,"On-Pack personnalisé","Réduction de volume",null,"003",{"$f":"IF(COUNTIF(Declaration!$E:$E,Q10)-COUNTIF(Declaration!$E$4:$E$8,Q10)<>0,1,0)","v":0},null,null,"B11",{"$f":"IF(COUNTIF(Declaration!$E:$E,U10)-COUNTIF(Declaration!$E$4:$E$8,U10)<>0,1,0)","v":0},null,null,null,null,null,{"$f":"AB9+1","v":2013},0.02,{"$f":"1-AC10","v":0.98},null,null,null,null,null,null,null,"Emballage",null,null,"AUTRICHE","AT"]
["010201","Biscuits et snacks salés",null,null,"002","Ampoule",null,null,30,"Papier-carton - Autre que briques",16.329999999999998,null,null,"In-Pack ITPV","Recharge",null,"004",{"$f":"IF(COUNTIF(Declaration!$E:$E,Q11)-COUNTIF(Declaration!$E$4:$E$8,Q11)<>0,1,0)","v":0},null,null,"B14",{"$f":"IF(COUNTIF(Declaration!$E:$E,U11)-COUNTIF(Declaration!$E$4:$E$8,U11)<>0,1,0)","v":0},null,null,null,null,null,{"$f":"AB10+1","v":2014},0.08,{"$f":"1-AC11","v":0.92},null,null,null,null,null,null,null,"Matériau",null,null,"BELGIQUE","BE"]
["010202","Biscuits sucrés",null,null,"003","Baril, carrier pack",null,null,31,"Papier-carton - Briques",17.04,null,null,"In-Pack personnalisé",null,null,"005",{"$f":"IF(COUNTIF(Declaration!$E:$E,Q12)-COUNTIF(Declaration!$E$4:$E$8,Q12)<>0,1,0)","v":0},null,null,"B17",{"$f":"IF(COUNTIF(Declaration!$E:$E,U12)-COUNTIF(Declaration!$E$4:$E$8,U12)<>0,1,0)","v":0},null,null,null,null,null,2015,0.08,0.92,null,null,null,null,null,null,null,null,null,null,"CANADA","CA"]
["010203","Pains d’épices, pâtisseries, viennoiseries de conservation",null,null,"004","Barquette",null,null,45,"Plastique - Bouteilles et flacons en PET clair ",24.22,null,null,"Notice ITPV",null,null,"006",{"$f":"IF(COUNTIF(Declaration!$E:$E,Q13)-COUNTIF(Declaration!$E$4:$E$8,Q13)<>0,1,0)","v":0},null,null,"B18",{"$f":"IF(COUNTIF(Declaration!$E:$E,U13)-COUNTIF(Declaration!$E$4:$E$8,U13)<>0,1,0)","v":0},null,null,null,null,null,null,null,null,null,null,null,null,null,null,null,null,null,null,"CHINE","CN"]
["010301","Café, chicorée, malt en grain",null,null,"005","Barquette préformée",null,null,44,"Plastique - Autres bouteilles et flacons ",24.47,null,null,"Notice personnalisée",null,null,"008",{"$f":"IF(COUNTIF(Declaration!$E:$E,Q14)-COUNTIF(Declaration!$E$4:$E$8,Q14)<>0,1,0)","v":0},null,null,"B19",{"$f":"IF(COUNTIF(Declaration!$E:$E,U14)-COUNTIF(Declaration!$E$4:$E$8,U14)<>0,1,0)","v":0},null,null,null,null,null,null,null,null,null,null,null,null,null,null,null,null,null,null,"ESPAGNE","ES"]
["010302","Café, chicorée, malt moulus",null,null,"006","Bidon",null,null,43,"Plastique - Autres emballages plastique",28.06,null,null,"Off-Pack",null,null,"009",{"$f":"IF(COUNTIF(Declaration!$E:$E,Q15)-COUNTIF(Declaration!$E$4:$E$8,Q15)<>0,1,0)","v":0},null,null,null,null,null,null,null,null,null,null,null,null,null,null,null,null,null,null,null,null,null,null,"FINLANDE","FI"]
["010303","Café, chicorée, malt solubles",null,null,"007","Blague à tabac",null,null,50,"Verre",1.21,null,null,null,null,null,null,null,null,null,null,null,null,null,null,null,null,null,null,null,null,null,null,null,null,null,null,null,null,null,"FRANCE","FR"]
["010401","Chocolat poudre",null,null,"008","Blister à coque thermoformée, avec ou sans chevalet carton",null,null,59,"Bois",23.29,null,null,null,null,null,null,null,null,null,null,null,null,null,null,null,null,null,null,null,null,null,null,null,null,null,null,null,null,null,"GRECE","GR"]
["010402","Petits déjeuners et boissons instantanées",null,null,"009","Blister à coque thermoformée, avec support carton",null,null,60,"Autres matériaux",23.29,null,null,null,null,null,null,null,null,null,null,null,null,null,null,null,null,null,null,null,null,null,null,null,null,null,null,null,null,null,"ITALIE","IT"]
["010403","Céréales prêtes à consommer ou à préparer",null,null,"010","Bobine, rouleau, mandrin",null,null,69,"Textile",23.29,null,null,null,null,null,"011",{"$f":"IF(COUNTIF(Declaration!$E:$E,Q19)-COUNTIF(Declaration!$E$4:$E$8,Q19)<>0,1,0)","v":0},null,null,null,null,null,null,null,null,null,null,null,null,null,null,null,null,null,null,null,null,null,null,"JAPON","JP"]
["010404","Pâtes à tartiner",null,null,"011","Bocal",null,null,null,null,null,null,null,"012",{"$f":"IF(COUNTIF(Declaration!$E:$E,N20)-COUNTIF(Declaration!$E$4:$E$8,N20)<>0,1,0)","v":0},null,null,null,null,null,null,null,null,null,null,null,null,null,null,null,null,null,null,null,null,null,null,null,null,null,"LUXEMBOURG","LU"]
["010501","Thés et infusions en feuilles",null,null,"012","Boîte",null,null,null,null,null,null,null,null,null,null,"017",{"$f":"IF(COUNTIF(Declaration!$E:$E,Q21)-COUNTIF(Declaration!$E$4:$E$8,Q21)<>0,1,0)","v":0},null,null,null,null,null,null,null,null,null,null,null,null,null,null,null,null,null,null,null,null,null,null,"PAYS-BAS","NL"]
["010502","Thés et infusions solubles",null,null,"013","Boîte alvéolaire",null,null,null,null,null,null,null,null,null,null,"019",{"$f":"IF(COUNTIF(Declaration!$E:$E,Q22)-COUNTIF(Declaration!$E$4:$E$8,Q22)<>0,1,0)","v":0},null,null,null,null,null,null,null,null,null,null,null,null,null,null,null,null,null,null,null,null,null,null,"POLOGNE","PL"]
["010601","Chocolat en tablettes",null,null,"014","Boîtier",null,null,null,null,null,null,null,null,null,null,"032",{"$f":"IF(COUNTIF(Declaration!$E:$E,Q23)-COUNTIF(Declaration!$E$4:$E$8,Q23)<>0,1,0)","v":0},null,null,null,null,null,null,null,null,null,null,null,null,null,null,null,null,null,null,null,null,null,null,"PORTUGAL","PT"]
["010602","Confiseries de chocolat",null,null,"015","Bol",null,null,null,null,null,null,null,null,null,null,"054",{"$f":"IF(COUNTIF(Declaration!$E:$E,Q24)-COUNTIF(Declaration!$E$4:$E$8,Q24)<>0,1,0)","v":0},null,null,null,null,null,null,null,null,null,null,null,null,null,null,null,null,null,null,null,null,null,null,"TCHEQUE, REPUBLIQUE","CZ"]
["010603","Barres de chocolat",null,null,"016","Bonbonne",null,null,null,null,null,null,null,null,null,null,"055",{"$f":"IF(COUNTIF(Declaration!$E:$E,Q25)-COUNTIF(Declaration!$E$4:$E$8,Q25)<>0,1,0)","v":0},null,null,null,null,null,null,null,null,null,null,null,null,null,null,null,null,null,null,null,null,null,null,"ROYAUME-UNI","GB"]
["010701","Bonbons et gélifiés",null,null,"B10","Bouchon",null,null,null,null,null,null,null,null,null,null,"069",{"$f":"IF(COUNTIF(Declaration!$E:$E,Q26)-COUNTIF(Declaration!$E$4:$E$8,Q26)<>0,1,0)","v":0},null,null,null,null,null,null,null,null,null,null,null,null,null,null,null,null,null,null,null,null,null,null,"SUEDE","SE"]
["010702","Dragées et pastilles",null,null,"017","Bouteille",null,null,null,null,null,null,null,null,null,null,"078",{"$f":"IF(COUNTIF(Declaration!$E:$E,Q27)-COUNTIF(Declaration!$E$4:$E$8,Q27)<>0,1,0)","v":0},null,null,null,null,null,null,null,null,null,null,null,null,null,null,null,null,null,null,null,null,null,null,"SUISSE","CH"]
["010703","Pâtes de fruits, fruits confits, marrons glacés",null,null,"018","Bracelet élastique",null,null,null,null,null,null,null,null,null,null,"080",{"$f":"IF(COUNTIF(Declaration!$E:$E,Q28)-COUNTIF(Declaration!$E$4:$E$8,Q28)<>0,1,0)","v":0},null,null,null,null,null,null,null,null,null,null,null,null,null,null,null,null,null,null,null,null,null,null,"DANEMARK","DK"]
["010704","Chewing-gum et bubble gum",null,null,"019","Brique",null,null,null,null,null,null,null,null,null,null,"079",{"$f":"IF(COUNTIF(Declaration!$E:$E,Q29)-COUNTIF(Declaration!$E$4:$E$8,Q29)<>0,1,0)","v":0},null,null,null,null,null,null,null,null,null,null,null,null,null,null,null,null,null,null,null,null,null,null,"ETATS-UNIS","US"]
["010705","Sucettes et sucres d’orge",null,null,"020","Canette",null,null,null,null,null,null,null,null,null,null,"081",{"$f":"IF(COUNTIF(Declaration!$E:$E,Q30)-COUNTIF(Declaration!$E$4:$E$8,Q30)<>0,1,0)","v":0},null,null,null,null,null,null,null,null,null,null,null,null,null,null,null,null,null,null,null,null,null,null,"HONG KONG","HK"]
["010706","Autres confiseries",null,null,"021","Cageot, cagette",null,null,null,null,null,null,null,null,null,null,null,null,null,null,null,null,null,null,null,null,null,null,null,null,null,null,null,null,null,null,null,null,null,null,"NORVEGE","NO"]
["010801","Desserts prêts à être consommés",null,null,"022","Caisse, caissette",null,null,null,null,null,null,null,null,null,null,null,null,null,null,null,null,null,null,null,null,null,null,null,null,null,null,null,null,null,null,null,null,null,null,"AUSTRALIE","AU"]
["010802","Produits pour la pâtisserie",null,null,"023","Cale",null,null,null,null,null,null,null,null,null,null,null,null,null,null,null,null,null,null,null,null,null,null,null,null,null,null,null,null,null,null,null,null,null,null,"SINGAPOUR","SG"]
["010803","Préparations pour entremets et desserts",null,null,"B11","Capsule",null,null,null,null,null,null,null,null,null,null,null,null,null,null,null,null,null,null,null,null,null,null,null,null,null,null,null,null,null,null,null,null,null,null,"IRLANDE","IE"]
["010901","Lait concentré",null,null,"024","Carafon",null,null,null,null,null,null,null,null,null,null,null,null,null,null,null,null,null,null,null,null,null,null,null,null,null,null,null,null,null,null,null,null,null,null,"NOUVELLE-ZELANDE","NZ"]
["010902","Lait en poudre",null,null,"025","Cartouche",null,null,null,null,null,null,null,null,null,null,null,null,null,null,null,null,null,null,null,null,null,null,null,null,null,null,null,null,null,null,null,null,null,null,"COREE, REPUBLIQUE DE","KR"]
["011001","Farines",null,null,"026","Casier",null,null,null,null,null,null,null,null,null,null,null,null,null,null,null,null,null,null,null,null,null,null,null,null,null,null,null,null,null,null,null,null,null,null,"ISRAEL","IL"]
["011002","Purées en flocons",null,null,"027","Casier intermédiaire",null,null,null,null,null,null,null,null,null,null,null,null,null,null,null,null,null,null,null,null,null,null,null,null,null,null,null,null,null,null,null,null,null,null,"AFRIQUE DU SUD","ZA"]
["011003","Semoules et assimilés",null,null,"083","Cavalier",null,null,null,null,null,null,null,null,null,null,null,null,null,null,null,null,null,null,null,null,null,null,null,null,null,null,null,null,null,null,null,null,null,null,"NIGERIA","NG"]
["011100","Pâtes alimentaires",null,null,"028","Chevalet",null,null,null,null,null,null,null,null,null,null,null,null,null,null,null,null,null,null,null,null,null,null,null,null,null,null,null,null,null,null,null,null,null,null,"COTE D'IVOIRE","CI"]
["011201","Fruits secs",null,null,"085","Cintre",null,null,null,null,null,null,null,null,null,null,null,null,null,null,null,null,null,null,null,null,null,null,null,null,null,null,null,null,null,null,null,null,null,null,"TOGO","TG"]
["011202","Légumes secs, tapioca, autres amidons et fécules",null,null,"029","Coffre, coffret",null,null,null,null,null,null,null,null,null,null,null,null,null,null,null,null,null,null,null,null,null,null,null,null,null,null,null,null,null,null,null,null,null,null,"BOLIVIE, l'ETAT PLURINATIONAL DE","BO"]
["011203","Riz",null,null,"B12","Coiffe",null,null,null,null,null,null,null,null,null,null,null,null,null,null,null,null,null,null,null,null,null,null,null,null,null,null,null,null,null,null,null,null,null,null,"MAURICE","MU"]
["011204","Fruits et légumes lyophilisés et déshydratés",null,null,"030","Coin (en polystyrène expansé)",null,null,null,null,null,null,null,null,null,null,null,null,null,null,null,null,null,null,null,null,null,null,null,null,null,null,null,null,null,null,null,null,null,null,"ROUMANIE","RO"]
["011205","Graines salées",null,null,"B13","Collerette enveloppante",null,null,null,null,null,null,null,null,null,null,null,null,null,null,null,null,null,null,null,null,null,null,null,null,null,null,null,null,null,null,null,null,null,null,"SLOVAQUIE","SK"]
["011301","Bouillons et aides culinaires",null,null,"031","Collier, contour pack",null,null,null,null,null,null,null,null,null,null,null,null,null,null,null,null,null,null,null,null,null,null,null,null,null,null,null,null,null,null,null,null,null,null,"ALGERIE","DZ"]
["011302","Potages déshydratés à préparer",null,null,"032","Coque préformée, thermoformée",null,null,null,null,null,null,null,null,null,null,null,null,null,null,null,null,null,null,null,null,null,null,null,null,null,null,null,null,null,null,null,null,null,null,"SAMOA AMERICAINES","AS"]
["011303","Potages instantanés",null,null,"033","Cornet",null,null,null,null,null,null,null,null,null,null,null,null,null,null,null,null,null,null,null,null,null,null,null,null,null,null,null,null,null,null,null,null,null,null,"ANDORRE","AD"]
["011304","Potages liquides",null,null,"034","Cornière",null,null,null,null,null,null,null,null,null,null,null,null,null,null,null,null,null,null,null,null,null,null,null,null,null,null,null,null,null,null,null,null,null,null,"ANGOLA","AO"]
["011401","Condiments",null,null,"036","Coupe, coupelle",null,null,null,null,null,null,null,null,null,null,null,null,null,null,null,null,null,null,null,null,null,null,null,null,null,null,null,null,null,null,null,null,null,null,"ANGUILLA","AI"]
["011402","Mayonnaises",null,null,"035","Coussin",null,null,null,null,null,null,null,null,null,null,null,null,null,null,null,null,null,null,null,null,null,null,null,null,null,null,null,null,null,null,null,null,null,null,"ANTIGUA ET BARBUDA","AG"]
["011403","Moutardes",null,null,"B14","Couvercle",null,null,null,null,null,null,null,null,null,null,null,null,null,null,null,null,null,null,null,null,null,null,null,null,null,null,null,null,null,null,null,null,null,null,"ARGENTINE","AR"]
["011404","Sauces déshydratées",null,null,"037","Croisillon",null,null,null,null,null,null,null,null,null,null,null,null,null,null,null,null,null,null,null,null,null,null,null,null,null,null,null,null,null,null,null,null,null,null,"ARMENIE","AM"]
["011405","Sauces prêtes à l’emploi",null,null,"038","Cubitainer",null,null,null,null,null,null,null,null,null,null,null,null,null,null,null,null,null,null,null,null,null,null,null,null,null,null,null,null,null,null,null,null,null,null,"ARUBA","AW"]
["011406","Sauces tomate et concentrés de tomates",null,null,"039","Ecrin",null,null,null,null,null,null,null,null,null,null,null,null,null,null,null,null,null,null,null,null,null,null,null,null,null,null,null,null,null,null,null,null,null,null,"AZERBAIDJAN","AZ"]
["011407","Vinaigrettes",null,null,"040","Elément de bourrage (chips, flocons, frites, copeaux de bois, bourre…)",null,null,null,null,null,null,null,null,null,null,null,null,null,null,null,null,null,null,null,null,null,null,null,null,null,null,null,null,null,null,null,null,null,null,"BAHAMAS","BS"]
["011500","Epices et poivres",null,null,"041","Elément de mise en forme et de maintien des produits (carton de maintien, support de col…)",null,null,null,null,null,null,null,null,null,null,null,null,null,null,null,null,null,null,null,null,null,null,null,null,null,null,null,null,null,null,null,null,null,null,"BAHREIN","BH"]
["011601","Sel fin",null,null,"043","Enveloppage (bonbons, portions individuelles…)",null,null,null,null,null,null,null,null,null,null,null,null,null,null,null,null,null,null,null,null,null,null,null,null,null,null,null,null,null,null,null,null,null,null,"BANGLADESH","BD"]
["011602","Gros sel",null,null,"042","Enveloppe",null,null,null,null,null,null,null,null,null,null,null,null,null,null,null,null,null,null,null,null,null,null,null,null,null,null,null,null,null,null,null,null,null,null,"BARBADE","BB"]
["011700","Huiles alimentaires",null,null,"101","Etiquette",null,null,null,null,null,null,null,null,null,null,null,null,null,null,null,null,null,null,null,null,null,null,null,null,null,null,null,null,null,null,null,null,null,null,"BELARUS","BY"]
["011800","Vinaigres",null,null,"045","Etui rigide",null,null,null,null,null,null,null,null,null,null,null,null,null,null,null,null,null,null,null,null,null,null,null,null,null,null,null,null,null,null,null,null,null,null,"BELIZE","BZ"]
["011901","Sucre en morceaux",null,null,"044","Etui souple",null,null,null,null,null,null,null,null,null,null,null,null,null,null,null,null,null,null,null,null,null,null,null,null,null,null,null,null,null,null,null,null,null,null,"BENIN","BJ"]
["011902","Sucre semoule",null,null,"046","Feuille d’emballage (papier kraft, papier sulfurisé, papier cadeau…)",null,null,null,null,null,null,null,null,null,null,null,null,null,null,null,null,null,null,null,null,null,null,null,null,null,null,null,null,null,null,null,null,null,null,"BERMUDES","BM"]
["011903","Sucre cristallisé",null,null,"047","Feuille plaquette (carton ondulé, fibre)",null,null,null,null,null,null,null,null,null,null,null,null,null,null,null,null,null,null,null,null,null,null,null,null,null,null,null,null,null,null,null,null,null,null,"BHOUTAN","BT"]
["011904","Sucres divers (sucre candi, sucre roux)",null,null,"049","Fibre (bois, papier…)",null,null,null,null,null,null,null,null,null,null,null,null,null,null,null,null,null,null,null,null,null,null,null,null,null,null,null,null,null,null,null,null,null,null,"BOTSWANA","BW"]
["012001","Compotes",null,null,"048","Ficelle (ruban, ruban adhésif, bolduc, feuillard, bande)",null,null,null,null,null,null,null,null,null,null,null,null,null,null,null,null,null,null,null,null,null,null,null,null,null,null,null,null,null,null,null,null,null,null,"BRESIL","BR"]
["012002","Confitures",null,null,"050","Filet",null,null,null,null,null,null,null,null,null,null,null,null,null,null,null,null,null,null,null,null,null,null,null,null,null,null,null,null,null,null,null,null,null,null,"BRUNEI DARUSSALAM","BN"]
["012003","Crèmes de marrons",null,null,"051","Film",null,null,null,null,null,null,null,null,null,null,null,null,null,null,null,null,null,null,null,null,null,null,null,null,null,null,null,null,null,null,null,null,null,null,"BURKINA FASO","BF"]
["012004","Gelées",null,null,"053","Film à bulles",null,null,null,null,null,null,null,null,null,null,null,null,null,null,null,null,null,null,null,null,null,null,null,null,null,null,null,null,null,null,null,null,null,null,"MYANMAR","MM"]
["012005","Marmelades",null,null,"052","Film alvéolaire expansé",null,null,null,null,null,null,null,null,null,null,null,null,null,null,null,null,null,null,null,null,null,null,null,null,null,null,null,null,null,null,null,null,null,null,"BURUNDI","BI"]
["012006","Miel",null,null,"054","Flacon",null,null,null,null,null,null,null,null,null,null,null,null,null,null,null,null,null,null,null,null,null,null,null,null,null,null,null,null,null,null,null,null,null,null,"CAMBODGE","KH"]
["012007","Fruits au sirop",null,null,"055","Flacon applicateur",null,null,null,null,null,null,null,null,null,null,null,null,null,null,null,null,null,null,null,null,null,null,null,null,null,null,null,null,null,null,null,null,null,null,"CAMEROUN","CM"]
["012100","Conserves de légumes",null,null,"056","Fourreau",null,null,null,null,null,null,null,null,null,null,null,null,null,null,null,null,null,null,null,null,null,null,null,null,null,null,null,null,null,null,null,null,null,null,"CAP-VERT","CV"]
["012200","Conserves de poissons",null,null,"057","Gaine",null,null,null,null,null,null,null,null,null,null,null,null,null,null,null,null,null,null,null,null,null,null,null,null,null,null,null,null,null,null,null,null,null,null,"CENTRAFRICAINE, REPUBLIQUE","CF"]
["012300","Conserves de viandes, charcuterie et salaisons",null,null,"058","Gobelet",null,null,null,null,null,null,null,null,null,null,null,null,null,null,null,null,null,null,null,null,null,null,null,null,null,null,null,null,null,null,null,null,null,null,"TCHAD","TD"]
["012401","Chips",null,null,"060","Housse",null,null,null,null,null,null,null,null,null,null,null,null,null,null,null,null,null,null,null,null,null,null,null,null,null,null,null,null,null,null,null,null,null,null,"CHILI","CL"]
["012402","Cassoulets",null,null,"059","Intercalaire",null,null,null,null,null,null,null,null,null,null,null,null,null,null,null,null,null,null,null,null,null,null,null,null,null,null,null,null,null,null,null,null,null,null,"COLOMBIE","CO"]
["012403","Choucroutes garnies",null,null,"B15","Languette",null,null,null,null,null,null,null,null,null,null,null,null,null,null,null,null,null,null,null,null,null,null,null,null,null,null,null,null,null,null,null,null,null,null,"COMORES","KM"]
["012404","Escargots",null,null,"061","Lien",null,null,null,null,null,null,null,null,null,null,null,null,null,null,null,null,null,null,null,null,null,null,null,null,null,null,null,null,null,null,null,null,null,null,"CONGO, LA REPUBLIQUE DEMOCRATIQUE DU","CD"]
["012405","Quenelles",null,null,"062","Malette",null,null,null,null,null,null,null,null,null,null,null,null,null,null,null,null,null,null,null,null,null,null,null,null,null,null,null,null,null,null,null,null,null,null,"CONGO","CG"]
["012406","Plats cuisinés à préparer",null,null,"063","Manchon",null,null,null,null,null,null,null,null,null,null,null,null,null,null,null,null,null,null,null,null,null,null,null,null,null,null,null,null,null,null,null,null,null,null,"COSTA RICA","CR"]
["012407","Plats cuisinés prêts à être consommés",null,null,"B16","Muselet",null,null,null,null,null,null,null,null,null,null,null,null,null,null,null,null,null,null,null,null,null,null,null,null,null,null,null,null,null,null,null,null,null,null,"CROATIE","HR"]
["012501","Laits infantiles",null,null,"B17","Opercule",null,null,null,null,null,null,null,null,null,null,null,null,null,null,null,null,null,null,null,null,null,null,null,null,null,null,null,null,null,null,null,null,null,null,"CUBA","CU"]
["012502","Aliments diététiques pour enfant",null,null,"064","Panier",null,null,null,null,null,null,null,null,null,null,null,null,null,null,null,null,null,null,null,null,null,null,null,null,null,null,null,null,null,null,null,null,null,null,"CHYPRE","CY"]
["012600","Produits diététiques et de régime",null,null,"084","Pick up",null,null,null,null,null,null,null,null,null,null,null,null,null,null,null,null,null,null,null,null,null,null,null,null,null,null,null,null,null,null,null,null,null,null,"DJIBOUTI","DJ"]
["012601","Produits de nutrition clinique",null,null,"065","Plat",null,null,null,null,null,null,null,null,null,null,null,null,null,null,null,null,null,null,null,null,null,null,null,null,null,null,null,null,null,null,null,null,null,null,"DOMINIQUE","DM"]
["012801","Aliments humides pour chiens et chats",null,null,"066","Plateau",null,null,null,null,null,null,null,null,null,null,null,null,null,null,null,null,null,null,null,null,null,null,null,null,null,null,null,null,null,null,null,null,null,null,"DOMINICAINE, REPUBLIQUE","DO"]
["012802","Aliments secs pour chiens et chats",null,null,"067","Plateau alvéolaire",null,null,null,null,null,null,null,null,null,null,null,null,null,null,null,null,null,null,null,null,null,null,null,null,null,null,null,null,null,null,null,null,null,null,"TIMOR-LESTE","TL"]
["012803","Conserves pour animaux",null,null,"068","Poche, pochette, pochon",null,null,null,null,null,null,null,null,null,null,null,null,null,null,null,null,null,null,null,null,null,null,null,null,null,null,null,null,null,null,null,null,null,null,"EQUATEUR","EC"]
["012804","Autres nourritures pour autres animaux",null,null,"069","Pot",null,null,null,null,null,null,null,null,null,null,null,null,null,null,null,null,null,null,null,null,null,null,null,null,null,null,null,null,null,null,null,null,null,null,"EGYPTE","EG"]
["023001","Limonades, limes",null,null,"070","Présentoir-socle",null,null,null,null,null,null,null,null,null,null,null,null,null,null,null,null,null,null,null,null,null,null,null,null,null,null,null,null,null,null,null,null,null,null,"EL SALVADOR","SV"]
["023002","Sodas, colas et tonics",null,null,"071","Sac",null,null,null,null,null,null,null,null,null,null,null,null,null,null,null,null,null,null,null,null,null,null,null,null,null,null,null,null,null,null,null,null,null,null,"GUINEE EQUATORIALE","GQ"]
["023003","Jus de fruits et concentrés",null,null,"086","Sac bretelles",null,null,null,null,null,null,null,null,null,null,null,null,null,null,null,null,null,null,null,null,null,null,null,null,null,null,null,null,null,null,null,null,null,null,"ERYTHREE","ER"]
["023004","Nectars",null,null,"089","Sac cabas papier",null,null,null,null,null,null,null,null,null,null,null,null,null,null,null,null,null,null,null,null,null,null,null,null,null,null,null,null,null,null,null,null,null,null,"ESTONIE","EE"]
["023005","Boissons aux fruits",null,null,"088","Sac cabas plastique",null,null,null,null,null,null,null,null,null,null,null,null,null,null,null,null,null,null,null,null,null,null,null,null,null,null,null,null,null,null,null,null,null,null,"ETHIOPIE","ET"]
["023006","Sirops et sucre de canne",null,null,"087","Sac liasse",null,null,null,null,null,null,null,null,null,null,null,null,null,null,null,null,null,null,null,null,null,null,null,null,null,null,null,null,null,null,null,null,null,null,"FALKLAND, ILES (MALVINAS)","FK"]
["023007","Extraits pour boissons et sels effervescents",null,null,"072","Sachet et sachet à fond plat",null,null,null,null,null,null,null,null,null,null,null,null,null,null,null,null,null,null,null,null,null,null,null,null,null,null,null,null,null,null,null,null,null,null,"FEROE, ILES","FO"]
["023101","Bières",null,null,"073","Seau",null,null,null,null,null,null,null,null,null,null,null,null,null,null,null,null,null,null,null,null,null,null,null,null,null,null,null,null,null,null,null,null,null,null,"FIDJI","FJ"]
["023102","Cidres",null,null,"074","Skin-pack",null,null,null,null,null,null,null,null,null,null,null,null,null,null,null,null,null,null,null,null,null,null,null,null,null,null,null,null,null,null,null,null,null,null,"GABON","GA"]
["023103","Panachés",null,null,"076","Socle",null,null,null,null,null,null,null,null,null,null,null,null,null,null,null,null,null,null,null,null,null,null,null,null,null,null,null,null,null,null,null,null,null,null,"GAMBIE","GM"]
["023200","Eaux",null,null,"075","Stick",null,null,null,null,null,null,null,null,null,null,null,null,null,null,null,null,null,null,null,null,null,null,null,null,null,null,null,null,null,null,null,null,null,null,"GEORGIE","GE"]
["023400","Vins",null,null,"077","Terrine",null,null,null,null,null,null,null,null,null,null,null,null,null,null,null,null,null,null,null,null,null,null,null,null,null,null,null,null,null,null,null,null,null,null,"GHANA","GH"]
["023500","Champagnes et mousseux",null,null,"078","Tonnelet, fût",null,null,null,null,null,null,null,null,null,null,null,null,null,null,null,null,null,null,null,null,null,null,null,null,null,null,null,null,null,null,null,null,null,null,"GRENADE","GD"]
["023600","Apéritifs",null,null,"080","Tube rigide",null,null,null,null,null,null,null,null,null,null,null,null,null,null,null,null,null,null,null,null,null,null,null,null,null,null,null,null,null,null,null,null,null,null,"GROENLAND","GL"]
["023700","Alcools et eaux de vie",null,null,"079","Tube souple",null,null,null,null,null,null,null,null,null,null,null,null,null,null,null,null,null,null,null,null,null,null,null,null,null,null,null,null,null,null,null,null,null,null,"GIBRALTAR","GI"]
["034001","Pains",null,null,"081","Tube-bâton",null,null,null,null,null,null,null,null,null,null,null,null,null,null,null,null,null,null,null,null,null,null,null,null,null,null,null,null,null,null,null,null,null,null,"GUADELOUPE","GP"]
["034002","Articles de boulangerie",null,null,"082","Valise, valisette",null,null,null,null,null,null,null,null,null,null,null,null,null,null,null,null,null,null,null,null,null,null,null,null,null,null,null,null,null,null,null,null,null,null,"GUAM","GU"]
["034003","Pâtisseries fraîches et entremets prêts à être consommés",null,null,"B18","Fermeture barquette",null,null,null,null,null,null,null,null,null,null,null,null,null,null,null,null,null,null,null,null,null,null,null,null,null,null,null,null,null,null,null,null,null,null,"GUATEMALA","GT"]
["034101","Glaces familiales",null,null,"B19","Fermeture blister",null,null,null,null,null,null,null,null,null,null,null,null,null,null,null,null,null,null,null,null,null,null,null,null,null,null,null,null,null,null,null,null,null,null,"GUERNESEY","GG"]
["034102","Glaces individuelles",null,null,"103","Applicateur",null,null,null,null,null,null,null,null,null,null,null,null,null,null,null,null,null,null,null,null,null,null,null,null,null,null,null,null,null,null,null,null,null,null,"GUINEE","GN"]
["034103","Glaces en vrac",null,null,"104","Seringue pré-remplie",null,null,null,null,null,null,null,null,null,null,null,null,null,null,null,null,null,null,null,null,null,null,null,null,null,null,null,null,null,null,null,null,null,null,"GUINEE-BISSAU","GW"]
["034104","Surgelés entrées – charcuterie",null,null,null,null,null,null,null,null,null,null,null,null,null,null,null,null,null,null,null,null,null,null,null,null,null,null,null,null,null,null,null,null,null,null,null,null,null,null,"GUYANA","GY"]
["034105","Surgelés légumes",null,null,null,null,null,null,null,null,null,null,null,null,null,null,null,null,null,null,null,null,null,null,null,null,null,null,null,null,null,null,null,null,null,null,null,null,null,null,"HAITI","HT"]
["034106","Surgelés abats – viandes – volailles",null,null,null,null,null,null,null,null,null,null,null,null,null,null,null,null,null,null,null,null,null,null,null,null,null,null,null,null,null,null,null,null,null,null,null,null,null,null,"HEARD, ILE ET MCDONALD, ILES","HM"]
["034107","Surgelés poissons – mollusques – crustacés",null,null,null,null,null,null,null,null,null,null,null,null,null,null,null,null,null,null,null,null,null,null,null,null,null,null,null,null,null,null,null,null,null,null,null,null,null,null,"SAINT-SIEGE (ETAT DE LA CITE DU VATICAN)","VA"]
["034108","Surgelés plats cuisinés – sauces – potages",null,null,null,null,null,null,null,null,null,null,null,null,null,null,null,null,null,null,null,null,null,null,null,null,null,null,null,null,null,null,null,null,null,null,null,null,null,null,"HONDURAS","HN"]
["034109","Surgelés pâtisseries – viennoiseries – pâtes surgelées",null,null,null,null,null,null,null,null,null,null,null,null,null,null,null,null,null,null,null,null,null,null,null,null,null,null,null,null,null,null,null,null,null,null,null,null,null,null,"ISLANDE","IS"]
["034110","Surgelés fruits et jus de fruits",null,null,null,null,null,null,null,null,null,null,null,null,null,null,null,null,null,null,null,null,null,null,null,null,null,null,null,null,null,null,null,null,null,null,null,null,null,null,"INDE","IN"]
["034111","Surgelés produits laitiers",null,null,null,null,null,null,null,null,null,null,null,null,null,null,null,null,null,null,null,null,null,null,null,null,null,null,null,null,null,null,null,null,null,null,null,null,null,null,"INDONESIE","ID"]
["034112","Surgelés aliments pour animaux",null,null,null,null,null,null,null,null,null,null,null,null,null,null,null,null,null,null,null,null,null,null,null,null,null,null,null,null,null,null,null,null,null,null,null,null,null,null,"IRAN, REPUBLIQUE ISLAMIQUE D'","IR"]
["034201","Laits",null,null,null,null,null,null,null,null,null,null,null,null,null,null,null,null,null,null,null,null,null,null,null,null,null,null,null,null,null,null,null,null,null,null,null,null,null,null,"IRAQ","IQ"]
["034202","Yaourts et assimilés",null,null,null,null,null,null,null,null,null,null,null,null,null,null,null,null,null,null,null,null,null,null,null,null,null,null,null,null,null,null,null,null,null,null,null,null,null,null,"ILE DE MAN","IM"]
["034203","Crèmes et fromages blancs",null,null,null,null,null,null,null,null,null,null,null,null,null,null,null,null,null,null,null,null,null,null,null,null,null,null,null,null,null,null,null,null,null,null,null,null,null,null,"JAMAIQUE","JM"]
["034204","Beurres",null,null,null,null,null,null,null,null,null,null,null,null,null,null,null,null,null,null,null,null,null,null,null,null,null,null,null,null,null,null,null,null,null,null,null,null,null,null,"JERSEY","JE"]
["034205","Margarines ou graisses végétales",null,null,null,null,null,null,null,null,null,null,null,null,null,null,null,null,null,null,null,null,null,null,null,null,null,null,null,null,null,null,null,null,null,null,null,null,null,null,"JORDANIE","JO"]
["034206","Œufs",null,null,null,null,null,null,null,null,null,null,null,null,null,null,null,null,null,null,null,null,null,null,null,null,null,null,null,null,null,null,null,null,null,null,null,null,null,null,"KAZAKHSTAN","KZ"]
["034207","Desserts lactés et entremets",null,null,null,null,null,null,null,null,null,null,null,null,null,null,null,null,null,null,null,null,null,null,null,null,null,null,null,null,null,null,null,null,null,null,null,null,null,null,"KENYA","KE"]
["034301","Pâtes molles à croûte fleurie ou lavée",null,null,null,null,null,null,null,null,null,null,null,null,null,null,null,null,null,null,null,null,null,null,null,null,null,null,null,null,null,null,null,null,null,null,null,null,null,null,"KIRIBATI","KI"]
["034302","Pâtes pressées, cuites ou non cuites",null,null,null,null,null,null,null,null,null,null,null,null,null,null,null,null,null,null,null,null,null,null,null,null,null,null,null,null,null,null,null,null,null,null,null,null,null,null,"COREE, REPUBLIQUE POPULAIRE DEMOCRATIQUE DE","KP"]
["034303","Fromages de chèvre et de brebis",null,null,null,null,null,null,null,null,null,null,null,null,null,null,null,null,null,null,null,null,null,null,null,null,null,null,null,null,null,null,null,null,null,null,null,null,null,null,"KOWEIT","KW"]
["034304","Pâtes persillées",null,null,null,null,null,null,null,null,null,null,null,null,null,null,null,null,null,null,null,null,null,null,null,null,null,null,null,null,null,null,null,null,null,null,null,null,null,null,"KIRGHIZISTAN","KG"]
["034305","Fromages fondus",null,null,null,null,null,null,null,null,null,null,null,null,null,null,null,null,null,null,null,null,null,null,null,null,null,null,null,null,null,null,null,null,null,null,null,null,null,null,"LAO, REPUBLIQUE DEMOCRATIQUE POPULAIRE","LA"]
["034306","Fromages frais et assimilés",null,null,null,null,null,null,null,null,null,null,null,null,null,null,null,null,null,null,null,null,null,null,null,null,null,null,null,null,null,null,null,null,null,null,null,null,null,null,"LETTONIE","LV"]
["034400","Fruits frais",null,null,null,null,null,null,null,null,null,null,null,null,null,null,null,null,null,null,null,null,null,null,null,null,null,null,null,null,null,null,null,null,null,null,null,null,null,null,"LIBAN","LB"]
["034500","Légumes frais",null,null,null,null,null,null,null,null,null,null,null,null,null,null,null,null,null,null,null,null,null,null,null,null,null,null,null,null,null,null,null,null,null,null,null,null,null,null,"LESOTHO","LS"]
["034510","Fleurs et plantes",null,null,null,null,null,null,null,null,null,null,null,null,null,null,null,null,null,null,null,null,null,null,null,null,null,null,null,null,null,null,null,null,null,null,null,null,null,null,"LIBERIA","LR"]
["034601","Volailles et gibiers",null,null,null,null,null,null,null,null,null,null,null,null,null,null,null,null,null,null,null,null,null,null,null,null,null,null,null,null,null,null,null,null,null,null,null,null,null,null,"LIBYENNE, JAMAHIRIYA ARABE","LY"]
["034700","Produits traiteur",null,null,null,null,null,null,null,null,null,null,null,null,null,null,null,null,null,null,null,null,null,null,null,null,null,null,null,null,null,null,null,null,null,null,null,null,null,null,"LIECHTENSTEIN","LI"]
["034701","Hors d’œuvres",null,null,null,null,null,null,null,null,null,null,null,null,null,null,null,null,null,null,null,null,null,null,null,null,null,null,null,null,null,null,null,null,null,null,null,null,null,null,"LITUANIE","LT"]
["034702","Produits en pâte",null,null,null,null,null,null,null,null,null,null,null,null,null,null,null,null,null,null,null,null,null,null,null,null,null,null,null,null,null,null,null,null,null,null,null,null,null,null,"MACAO","MO"]
["034703","Plats cuisinés et viandes à réchauffer",null,null,null,null,null,null,null,null,null,null,null,null,null,null,null,null,null,null,null,null,null,null,null,null,null,null,null,null,null,null,null,null,null,null,null,null,null,null,"MACEDOINE, L'EX-REPUBLIQUE YOUGOSLAVE DE","MK"]
["034704","Sandwichs",null,null,null,null,null,null,null,null,null,null,null,null,null,null,null,null,null,null,null,null,null,null,null,null,null,null,null,null,null,null,null,null,null,null,null,null,null,null,"MADAGASCAR","MG"]
["034800","Boucherie et triperie",null,null,null,null,null,null,null,null,null,null,null,null,null,null,null,null,null,null,null,null,null,null,null,null,null,null,null,null,null,null,null,null,null,null,null,null,null,null,"MALAWI","MW"]
["034900","Poissons – crustacés – coquillages",null,null,null,null,null,null,null,null,null,null,null,null,null,null,null,null,null,null,null,null,null,null,null,null,null,null,null,null,null,null,null,null,null,null,null,null,null,null,"MALAISIE","MY"]
["046401","Shampooings",null,null,null,null,null,null,null,null,null,null,null,null,null,null,null,null,null,null,null,null,null,null,null,null,null,null,null,null,null,null,null,null,null,null,null,null,null,null,"MALDIVES","MV"]
["046402","Après shampooings, baumes embellisseurs",null,null,null,null,null,null,null,null,null,null,null,null,null,null,null,null,null,null,null,null,null,null,null,null,null,null,null,null,null,null,null,null,null,null,null,null,null,null,"MALI","ML"]
["046403","Lotions et vitaliseurs",null,null,null,null,null,null,null,null,null,null,null,null,null,null,null,null,null,null,null,null,null,null,null,null,null,null,null,null,null,null,null,null,null,null,null,null,null,null,"MALTE","MT"]
["046404","Fixateurs et brillantines",null,null,null,null,null,null,null,null,null,null,null,null,null,null,null,null,null,null,null,null,null,null,null,null,null,null,null,null,null,null,null,null,null,null,null,null,null,null,"MARSHALL, ILES","MH"]
["046405","Coloration capillaire",null,null,null,null,null,null,null,null,null,null,null,null,null,null,null,null,null,null,null,null,null,null,null,null,null,null,null,null,null,null,null,null,null,null,null,null,null,null,"MARTINIQUE","MQ"]
["046406","Mise en plis et permanente",null,null,null,null,null,null,null,null,null,null,null,null,null,null,null,null,null,null,null,null,null,null,null,null,null,null,null,null,null,null,null,null,null,null,null,null,null,null,"MAURITANIE","MR"]
["046407","Laques",null,null,null,null,null,null,null,null,null,null,null,null,null,null,null,null,null,null,null,null,null,null,null,null,null,null,null,null,null,null,null,null,null,null,null,null,null,null,"HONGRIE","HU"]
["046408","Accessoires capillaires",null,null,null,null,null,null,null,null,null,null,null,null,null,null,null,null,null,null,null,null,null,null,null,null,null,null,null,null,null,null,null,null,null,null,null,null,null,null,"MAYOTTE","YT"]
["046501","Savons de toilette solides et liquides",null,null,null,null,null,null,null,null,null,null,null,null,null,null,null,null,null,null,null,null,null,null,null,null,null,null,null,null,null,null,null,null,null,null,null,null,null,null,"MEXIQUE","MX"]
["046502","Produits de bains et douches",null,null,null,null,null,null,null,null,null,null,null,null,null,null,null,null,null,null,null,null,null,null,null,null,null,null,null,null,null,null,null,null,null,null,null,null,null,null,"MICRONESIE, ETATS FEDERES DE","FM"]
["046503","Soins des dents",null,null,null,null,null,null,null,null,null,null,null,null,null,null,null,null,null,null,null,null,null,null,null,null,null,null,null,null,null,null,null,null,null,null,null,null,null,null,"MOLDOVA, REPUBLIQUE DE","MD"]
["046504","Rasoirs, lames, produits de rasage",null,null,null,null,null,null,null,null,null,null,null,null,null,null,null,null,null,null,null,null,null,null,null,null,null,null,null,null,null,null,null,null,null,null,null,null,null,null,"MONACO","MC"]
["046505","Déodorants",null,null,null,null,null,null,null,null,null,null,null,null,null,null,null,null,null,null,null,null,null,null,null,null,null,null,null,null,null,null,null,null,null,null,null,null,null,null,"MONGOLIE","MN"]
["046506","Eaux de toilette et eaux de cologne",null,null,null,null,null,null,null,null,null,null,null,null,null,null,null,null,null,null,null,null,null,null,null,null,null,null,null,null,null,null,null,null,null,null,null,null,null,null,"MONTENEGRO","ME"]
["046507","Parfums et eaux de parfums",null,null,null,null,null,null,null,null,null,null,null,null,null,null,null,null,null,null,null,null,null,null,null,null,null,null,null,null,null,null,null,null,null,null,null,null,null,null,"MONTSERRAT","MS"]
["046508","Produits pour le corps",null,null,null,null,null,null,null,null,null,null,null,null,null,null,null,null,null,null,null,null,null,null,null,null,null,null,null,null,null,null,null,null,null,null,null,null,null,null,"MAROC","MA"]
["046509","Beauté et soins des ongles",null,null,null,null,null,null,null,null,null,null,null,null,null,null,null,null,null,null,null,null,null,null,null,null,null,null,null,null,null,null,null,null,null,null,null,null,null,null,"MOZAMBIQUE","MZ"]
["046510","Produits solaires",null,null,null,null,null,null,null,null,null,null,null,null,null,null,null,null,null,null,null,null,null,null,null,null,null,null,null,null,null,null,null,null,null,null,null,null,null,null,"NAMIBIE","NA"]
["046601","Laits de toilette",null,null,null,null,null,null,null,null,null,null,null,null,null,null,null,null,null,null,null,null,null,null,null,null,null,null,null,null,null,null,null,null,null,null,null,null,null,null,"NAURU","NR"]
["046602","Lotions et toniques",null,null,null,null,null,null,null,null,null,null,null,null,null,null,null,null,null,null,null,null,null,null,null,null,null,null,null,null,null,null,null,null,null,null,null,null,null,null,"NEPAL","NP"]
["046603","Crèmes de beauté",null,null,null,null,null,null,null,null,null,null,null,null,null,null,null,null,null,null,null,null,null,null,null,null,null,null,null,null,null,null,null,null,null,null,null,null,null,null,"NOUVELLE-CALEDONIE","NC"]
["046604","Nettoyants et crèmes gommantes",null,null,null,null,null,null,null,null,null,null,null,null,null,null,null,null,null,null,null,null,null,null,null,null,null,null,null,null,null,null,null,null,null,null,null,null,null,null,"NICARAGUA","NI"]
["046605","Soins spécifiques du visage",null,null,null,null,null,null,null,null,null,null,null,null,null,null,null,null,null,null,null,null,null,null,null,null,null,null,null,null,null,null,null,null,null,null,null,null,null,null,"NIGER","NE"]
["046606","Soins des lèvres",null,null,null,null,null,null,null,null,null,null,null,null,null,null,null,null,null,null,null,null,null,null,null,null,null,null,null,null,null,null,null,null,null,null,null,null,null,null,"NIUE","NU"]
["046607","Démaquillants",null,null,null,null,null,null,null,null,null,null,null,null,null,null,null,null,null,null,null,null,null,null,null,null,null,null,null,null,null,null,null,null,null,null,null,null,null,null,"NORFOLK, ILE","NF"]
["046608","Atomiseurs d’eau",null,null,null,null,null,null,null,null,null,null,null,null,null,null,null,null,null,null,null,null,null,null,null,null,null,null,null,null,null,null,null,null,null,null,null,null,null,null,"MARIANNES DU NORD, ILES","MP"]
["046609","Produits de maquillage",null,null,null,null,null,null,null,null,null,null,null,null,null,null,null,null,null,null,null,null,null,null,null,null,null,null,null,null,null,null,null,null,null,null,null,null,null,null,"OMAN","OM"]
["046621","Articles de puériculture",null,null,null,null,null,null,null,null,null,null,null,null,null,null,null,null,null,null,null,null,null,null,null,null,null,null,null,null,null,null,null,null,null,null,null,null,null,null,"PAKISTAN","PK"]
["046701","Cotons",null,null,null,null,null,null,null,null,null,null,null,null,null,null,null,null,null,null,null,null,null,null,null,null,null,null,null,null,null,null,null,null,null,null,null,null,null,null,"PALAOS","PW"]
["046702","Mouchoirs",null,null,null,null,null,null,null,null,null,null,null,null,null,null,null,null,null,null,null,null,null,null,null,null,null,null,null,null,null,null,null,null,null,null,null,null,null,null,"PALESTINIEN OCCUPE, TERRITOIRE","PS"]
["046703","Papier d’entretien et hygiénique",null,null,null,null,null,null,null,null,null,null,null,null,null,null,null,null,null,null,null,null,null,null,null,null,null,null,null,null,null,null,null,null,null,null,null,null,null,null,"PANAMA","PA"]
["046704","Couches bébés",null,null,null,null,null,null,null,null,null,null,null,null,null,null,null,null,null,null,null,null,null,null,null,null,null,null,null,null,null,null,null,null,null,null,null,null,null,null,"PAPOUASIE-NOUVELLE-GUINEE","PG"]
["046705","Hygiène féminine",null,null,null,null,null,null,null,null,null,null,null,null,null,null,null,null,null,null,null,null,null,null,null,null,null,null,null,null,null,null,null,null,null,null,null,null,null,null,"PARAGUAY","PY"]
["046706","Accessoires de toilette et de beauté",null,null,null,null,null,null,null,null,null,null,null,null,null,null,null,null,null,null,null,null,null,null,null,null,null,null,null,null,null,null,null,null,null,null,null,null,null,null,"PEROU","PE"]
["046712","Soins bucco-dentaires",null,null,null,null,null,null,null,null,null,null,null,null,null,null,null,null,null,null,null,null,null,null,null,null,null,null,null,null,null,null,null,null,null,null,null,null,null,null,"PHILIPPINES","PH"]
["046713","Soins des pieds",null,null,null,null,null,null,null,null,null,null,null,null,null,null,null,null,null,null,null,null,null,null,null,null,null,null,null,null,null,null,null,null,null,null,null,null,null,null,"PITCAIRN","PN"]
["046714","Hygiène intime",null,null,null,null,null,null,null,null,null,null,null,null,null,null,null,null,null,null,null,null,null,null,null,null,null,null,null,null,null,null,null,null,null,null,null,null,null,null,"PORTO RICO","PR"]
["046715","Produits de protection",null,null,null,null,null,null,null,null,null,null,null,null,null,null,null,null,null,null,null,null,null,null,null,null,null,null,null,null,null,null,null,null,null,null,null,null,null,null,"QATAR","QA"]
["046716","Compléments nutritionnels",null,null,null,null,null,null,null,null,null,null,null,null,null,null,null,null,null,null,null,null,null,null,null,null,null,null,null,null,null,null,null,null,null,null,null,null,null,null,"REUNION","RE"]
["046717","Produits de soins pour bébés",null,null,null,null,null,null,null,null,null,null,null,null,null,null,null,null,null,null,null,null,null,null,null,null,null,null,null,null,null,null,null,null,null,null,null,null,null,null,"RUSSIE, FEDERATION DE","RU"]
["046718","Accessoires de parapharmacie",null,null,null,null,null,null,null,null,null,null,null,null,null,null,null,null,null,null,null,null,null,null,null,null,null,null,null,null,null,null,null,null,null,null,null,null,null,null,"RWANDA","RW"]
["046719","Accessoires médicaux",null,null,null,null,null,null,null,null,null,null,null,null,null,null,null,null,null,null,null,null,null,null,null,null,null,null,null,null,null,null,null,null,null,null,null,null,null,null,"SAINT-BARTHELEMY","BL"]
["046720","Optique",null,null,null,null,null,null,null,null,null,null,null,null,null,null,null,null,null,null,null,null,null,null,null,null,null,null,null,null,null,null,null,null,null,null,null,null,null,null,"SAINT-KITTS-ET-NEVIS","KN"]
["046721","Optique non médicale",null,null,null,null,null,null,null,null,null,null,null,null,null,null,null,null,null,null,null,null,null,null,null,null,null,null,null,null,null,null,null,null,null,null,null,null,null,null,"SAINTE-LUCIE","LC"]
["046722","Lunetterie",null,null,null,null,null,null,null,null,null,null,null,null,null,null,null,null,null,null,null,null,null,null,null,null,null,null,null,null,null,null,null,null,null,null,null,null,null,null,"SAINT-MARTIN (PARTIE FRANCAISE)","MF"]
["046723","Instruments de mesure (thermomètre, baromètre…)",null,null,null,null,null,null,null,null,null,null,null,null,null,null,null,null,null,null,null,null,null,null,null,null,null,null,null,null,null,null,null,null,null,null,null,null,null,null,"SAINT-PIERRE-ET-MIQUELON","PM"]
["055001","Savons",null,null,null,null,null,null,null,null,null,null,null,null,null,null,null,null,null,null,null,null,null,null,null,null,null,null,null,null,null,null,null,null,null,null,null,null,null,null,"SAINT-VINCENT-ET-LES GRENADINES","VC"]
["055002","Poudres et liquides de lavage du linge",null,null,null,null,null,null,null,null,null,null,null,null,null,null,null,null,null,null,null,null,null,null,null,null,null,null,null,null,null,null,null,null,null,null,null,null,null,null,"SAMOA","WS"]
["055003","Produits pour lavages délicats, adoucissants et assouplissants",null,null,null,null,null,null,null,null,null,null,null,null,null,null,null,null,null,null,null,null,null,null,null,null,null,null,null,null,null,null,null,null,null,null,null,null,null,null,"SAINT-MARIN","SM"]
["055004","Eau de Javel et désinfectants pour linge",null,null,null,null,null,null,null,null,null,null,null,null,null,null,null,null,null,null,null,null,null,null,null,null,null,null,null,null,null,null,null,null,null,null,null,null,null,null,"SAO TOME-ET-PRINCIPE","ST"]
["055005","Détachants, apprêts, teintures",null,null,null,null,null,null,null,null,null,null,null,null,null,null,null,null,null,null,null,null,null,null,null,null,null,null,null,null,null,null,null,null,null,null,null,null,null,null,"ARABIE SAOUDITE","SA"]
["055006","Produits de lessivage",null,null,null,null,null,null,null,null,null,null,null,null,null,null,null,null,null,null,null,null,null,null,null,null,null,null,null,null,null,null,null,null,null,null,null,null,null,null,"SENEGAL","SN"]
["055007","Produits à vaisselle",null,null,null,null,null,null,null,null,null,null,null,null,null,null,null,null,null,null,null,null,null,null,null,null,null,null,null,null,null,null,null,null,null,null,null,null,null,null,"SERBIE","RS"]
["055008","Accessoires de lavage",null,null,null,null,null,null,null,null,null,null,null,null,null,null,null,null,null,null,null,null,null,null,null,null,null,null,null,null,null,null,null,null,null,null,null,null,null,null,"SEYCHELLES","SC"]
["055101","Entretien des cuirs et chaussures",null,null,null,null,null,null,null,null,null,null,null,null,null,null,null,null,null,null,null,null,null,null,null,null,null,null,null,null,null,null,null,null,null,null,null,null,null,null,"SIERRA LEONE","SL"]
["055102","Entretien des bois et des revêtements de sols",null,null,null,null,null,null,null,null,null,null,null,null,null,null,null,null,null,null,null,null,null,null,null,null,null,null,null,null,null,null,null,null,null,null,null,null,null,null,"SLOVENIE","SI"]
["055103","Entretien des métaux et des vitres",null,null,null,null,null,null,null,null,null,null,null,null,null,null,null,null,null,null,null,null,null,null,null,null,null,null,null,null,null,null,null,null,null,null,null,null,null,null,"SALOMON, ILES","SB"]
["055104","Entretien des fours et fourneaux",null,null,null,null,null,null,null,null,null,null,null,null,null,null,null,null,null,null,null,null,null,null,null,null,null,null,null,null,null,null,null,null,null,null,null,null,null,null,"SOMALIE","SO"]
["055105","Produits à récurer, détartrer, déboucher, nettoyer et désinfecter",null,null,null,null,null,null,null,null,null,null,null,null,null,null,null,null,null,null,null,null,null,null,null,null,null,null,null,null,null,null,null,null,null,null,null,null,null,null,"GEORGIE DU SUD ET LES ILES SANDWICH DU SUD","GS"]
["055106","Désodorisants et insecticides",null,null,null,null,null,null,null,null,null,null,null,null,null,null,null,null,null,null,null,null,null,null,null,null,null,null,null,null,null,null,null,null,null,null,null,null,null,null,"SRI LANKA","LK"]
["055107","Articles de cave et ingrédients divers",null,null,null,null,null,null,null,null,null,null,null,null,null,null,null,null,null,null,null,null,null,null,null,null,null,null,null,null,null,null,null,null,null,null,null,null,null,null,"SOUDAN","SD"]
["055108","Brosserie, balais",null,null,null,null,null,null,null,null,null,null,null,null,null,null,null,null,null,null,null,null,null,null,null,null,null,null,null,null,null,null,null,null,null,null,null,null,null,null,"SURINAME","SR"]
["055109","Eponges de ménage, torchons, assimilés",null,null,null,null,null,null,null,null,null,null,null,null,null,null,null,null,null,null,null,null,null,null,null,null,null,null,null,null,null,null,null,null,null,null,null,null,null,null,"SVALBARD ET ILE JAN MAYEN","SJ"]
["055401","Batterie de cuisine",null,null,null,null,null,null,null,null,null,null,null,null,null,null,null,null,null,null,null,null,null,null,null,null,null,null,null,null,null,null,null,null,null,null,null,null,null,null,"SWAZILAND","SZ"]
["055402","Ustensiles de cuisine",null,null,null,null,null,null,null,null,null,null,null,null,null,null,null,null,null,null,null,null,null,null,null,null,null,null,null,null,null,null,null,null,null,null,null,null,null,null,"SYRIENNE, REPUBLIQUE ARABE","SY"]
["055403","Coutellerie et couverts",null,null,null,null,null,null,null,null,null,null,null,null,null,null,null,null,null,null,null,null,null,null,null,null,null,null,null,null,null,null,null,null,null,null,null,null,null,null,"TAIWAN, PROVINCE DE CHINE","TW"]
["055404","Accessoires de table",null,null,null,null,null,null,null,null,null,null,null,null,null,null,null,null,null,null,null,null,null,null,null,null,null,null,null,null,null,null,null,null,null,null,null,null,null,null,"TADJIKISTAN","TJ"]
["055405","Récipients, bassines",null,null,null,null,null,null,null,null,null,null,null,null,null,null,null,null,null,null,null,null,null,null,null,null,null,null,null,null,null,null,null,null,null,null,null,null,null,null,"TANZANIE, REPUBLIQUE-UNIE DE","TZ"]
["055406","Accessoires de ménage",null,null,null,null,null,null,null,null,null,null,null,null,null,null,null,null,null,null,null,null,null,null,null,null,null,null,null,null,null,null,null,null,null,null,null,null,null,null,"THAILANDE","TH"]
["055407","Pellicules d’emballage et de conditionnement",null,null,null,null,null,null,null,null,null,null,null,null,null,null,null,null,null,null,null,null,null,null,null,null,null,null,null,null,null,null,null,null,null,null,null,null,null,null,"TOKELAU","TK"]
["055408","Matériel de cave",null,null,null,null,null,null,null,null,null,null,null,null,null,null,null,null,null,null,null,null,null,null,null,null,null,null,null,null,null,null,null,null,null,null,null,null,null,null,"TONGA","TO"]
["055501","Appareils de chauffage",null,null,null,null,null,null,null,null,null,null,null,null,null,null,null,null,null,null,null,null,null,null,null,null,null,null,null,null,null,null,null,null,null,null,null,null,null,null,"TRINITE-ET-TOBAGO","TT"]
["055502","Réfrigérateurs et congélateurs domestiques",null,null,null,null,null,null,null,null,null,null,null,null,null,null,null,null,null,null,null,null,null,null,null,null,null,null,null,null,null,null,null,null,null,null,null,null,null,null,"TUNISIE","TN"]
["055503","Lave-vaisselle, lave-linge, sèche-linge",null,null,null,null,null,null,null,null,null,null,null,null,null,null,null,null,null,null,null,null,null,null,null,null,null,null,null,null,null,null,null,null,null,null,null,null,null,null,"TURQUIE","TR"]
["055504","Hottes aspirantes et ventilateurs",null,null,null,null,null,null,null,null,null,null,null,null,null,null,null,null,null,null,null,null,null,null,null,null,null,null,null,null,null,null,null,null,null,null,null,null,null,null,"TURKMENISTAN","TM"]
["055505","Plaques de cuisson électriques et à gaz",null,null,null,null,null,null,null,null,null,null,null,null,null,null,null,null,null,null,null,null,null,null,null,null,null,null,null,null,null,null,null,null,null,null,null,null,null,null,"TURKS ET CAIQUES, ILES","TC"]
["055506","Fours, fours à micro-ondes",null,null,null,null,null,null,null,null,null,null,null,null,null,null,null,null,null,null,null,null,null,null,null,null,null,null,null,null,null,null,null,null,null,null,null,null,null,null,"TUVALU","TV"]
["055507","Appareils électriques pour l’entretien ménager",null,null,null,null,null,null,null,null,null,null,null,null,null,null,null,null,null,null,null,null,null,null,null,null,null,null,null,null,null,null,null,null,null,null,null,null,null,null,"OUGANDA","UG"]
["055508","Robots et ustensiles de cuisine électriques",null,null,null,null,null,null,null,null,null,null,null,null,null,null,null,null,null,null,null,null,null,null,null,null,null,null,null,null,null,null,null,null,null,null,null,null,null,null,"UKRAINE","UA"]
["055609","Petits appareils électrothermiques ménagers",null,null,null,null,null,null,null,null,null,null,null,null,null,null,null,null,null,null,null,null,null,null,null,null,null,null,null,null,null,null,null,null,null,null,null,null,null,null,"EMIRATS ARABES UNIS","AE"]
["055610","Appareils et ustensiles électriques pour la toilette-beauté",null,null,null,null,null,null,null,null,null,null,null,null,null,null,null,null,null,null,null,null,null,null,null,null,null,null,null,null,null,null,null,null,null,null,null,null,null,null,"URUGUAY","UY"]
["055611","Appareils électriques pour la couture et le tricot",null,null,null,null,null,null,null,null,null,null,null,null,null,null,null,null,null,null,null,null,null,null,null,null,null,null,null,null,null,null,null,null,null,null,null,null,null,null,"OUZBEKISTAN","UZ"]
["055701","Vaisselle",null,null,null,null,null,null,null,null,null,null,null,null,null,null,null,null,null,null,null,null,null,null,null,null,null,null,null,null,null,null,null,null,null,null,null,null,null,null,"VANUATU","VU"]
["055702","Vaisselle orfévrée",null,null,null,null,null,null,null,null,null,null,null,null,null,null,null,null,null,null,null,null,null,null,null,null,null,null,null,null,null,null,null,null,null,null,null,null,null,null,"VENEZUELA, REPUBLIQUE BOLIVARIENNE DU","VE"]
["055703","Verrerie",null,null,null,null,null,null,null,null,null,null,null,null,null,null,null,null,null,null,null,null,null,null,null,null,null,null,null,null,null,null,null,null,null,null,null,null,null,null,"VIET NAM","VN"]
["055704","Verrerie cristal",null,null,null,null,null,null,null,null,null,null,null,null,null,null,null,null,null,null,null,null,null,null,null,null,null,null,null,null,null,null,null,null,null,null,null,null,null,null,"ILES VIERGES BRITANNIQUES","VG"]
["055705","Coutellerie",null,null,null,null,null,null,null,null,null,null,null,null,null,null,null,null,null,null,null,null,null,null,null,null,null,null,null,null,null,null,null,null,null,null,null,null,null,null,"ILES VIERGES DES ETATS-UNIS","VI"]
["055801","Végétaux",null,null,null,null,null,null,null,null,null,null,null,null,null,null,null,null,null,null,null,null,null,null,null,null,null,null,null,null,null,null,null,null,null,null,null,null,null,null,"WALLIS ET FUTUNA","WF"]
["055802","Produits pour jardins",null,null,null,null,null,null,null,null,null,null,null,null,null,null,null,null,null,null,null,null,null,null,null,null,null,null,null,null,null,null,null,null,null,null,null,null,null,null,"SAHARA OCCIDENTAL","EH"]
["055803","Outillage agricole et horticole",null,null,null,null,null,null,null,null,null,null,null,null,null,null,null,null,null,null,null,null,null,null,null,null,null,null,null,null,null,null,null,null,null,null,null,null,null,null,"YEMEN","YE"]
["055804","Mobilier de jardin",null,null,null,null,null,null,null,null,null,null,null,null,null,null,null,null,null,null,null,null,null,null,null,null,null,null,null,null,null,null,null,null,null,null,null,null,null,null,"ZAMBIE","ZM"]
["055805","Bacs et contenants",null,null,null,null,null,null,null,null,null,null,null,null,null,null,null,null,null,null,null,null,null,null,null,null,null,null,null,null,null,null,null,null,null,null,null,null,null,null,"ZIMBABWE","ZW"]
["055806","Equipements de protection",null,null,null,null,null,null,null,null,null,null,null,null,null,null,null,null,null,null,null,null,null,null,null,null,null,null,null,null,null,null,null,null,null,null,null,null,null,null,"ALBANIE","AL"]
["055901","Outillage",null,null,null,null,null,null,null,null,null,null,null,null,null,null,null,null,null,null,null,null,null,null,null,null,null,null,null,null,null,null,null,null,null,null,null,null,null,null,"AFGHANISTAN","AF"]
["055902","Quincaillerie générale et d’ameublement",null,null,null,null,null,null,null,null,null,null,null,null,null,null,null,null,null,null,null,null,null,null,null,null,null,null,null,null,null,null,null,null,null,null,null,null,null,null,"ANTARCTIQUE","AQ"]
["055903","Plomberie – robinetterie – sanitaire",null,null,null,null,null,null,null,null,null,null,null,null,null,null,null,null,null,null,null,null,null,null,null,null,null,null,null,null,null,null,null,null,null,null,null,null,null,null,"BOSNIE-HERZEGOVINE","BA"]
["055904","Equipement électrique",null,null,null,null,null,null,null,null,null,null,null,null,null,null,null,null,null,null,null,null,null,null,null,null,null,null,null,null,null,null,null,null,null,null,null,null,null,null,"BOUVET, ILE","BV"]
["055905","Bois panneaux et menuiserie",null,null,null,null,null,null,null,null,null,null,null,null,null,null,null,null,null,null,null,null,null,null,null,null,null,null,null,null,null,null,null,null,null,null,null,null,null,null,"OCEAN INDIEN, TERRITOIRE BRITANNIQUE DE L'","IO"]
["055906","Gros œuvre, équipement du bâtiment et matériaux de construction",null,null,null,null,null,null,null,null,null,null,null,null,null,null,null,null,null,null,null,null,null,null,null,null,null,null,null,null,null,null,null,null,null,null,null,null,null,null,"BULGARIE","BG"]
["055907","Peintures et vernis",null,null,null,null,null,null,null,null,null,null,null,null,null,null,null,null,null,null,null,null,null,null,null,null,null,null,null,null,null,null,null,null,null,null,null,null,null,null,"CAIMANES, ILES","KY"]
["055908","Droguerie et accessoires de peinture",null,null,null,null,null,null,null,null,null,null,null,null,null,null,null,null,null,null,null,null,null,null,null,null,null,null,null,null,null,null,null,null,null,null,null,null,null,null,"CHRISTMAS, ILE","CX"]
["055909","Colles et adhésifs",null,null,null,null,null,null,null,null,null,null,null,null,null,null,null,null,null,null,null,null,null,null,null,null,null,null,null,null,null,null,null,null,null,null,null,null,null,null,"COCOS (KEELING), ILES","CC"]
["055910","Revêtements muraux",null,null,null,null,null,null,null,null,null,null,null,null,null,null,null,null,null,null,null,null,null,null,null,null,null,null,null,null,null,null,null,null,null,null,null,null,null,null,"COOK, ILES","CK"]
["055911","Revêtements de sols",null,null,null,null,null,null,null,null,null,null,null,null,null,null,null,null,null,null,null,null,null,null,null,null,null,null,null,null,null,null,null,null,null,null,null,null,null,null,"GUYANE FRANCAISE","GF"]
["055912","Carrelages",null,null,null,null,null,null,null,null,null,null,null,null,null,null,null,null,null,null,null,null,null,null,null,null,null,null,null,null,null,null,null,null,null,null,null,null,null,null,"POLYNESIE FRANCAISE","PF"]
["055913","Serrures, ferrures",null,null,null,null,null,null,null,null,null,null,null,null,null,null,null,null,null,null,null,null,null,null,null,null,null,null,null,null,null,null,null,null,null,null,null,null,null,null,"TERRES AUSTRALES FRANCAISES","TF"]
["055914","Visserie, boulonnerie",null,null,null,null,null,null,null,null,null,null,null,null,null,null,null,null,null,null,null,null,null,null,null,null,null,null,null,null,null,null,null,null,null,null,null,null,null,null,"ÅLAND, ÎLES","AX"]
["056001","Mobilier de cuisine",null,null,null,null,null,null,null,null,null,null,null,null,null,null,null,null,null,null,null,null,null,null,null,null,null,null,null,null,null,null,null,null,null,null,null,null,null,null,"BONAIRE, SAINT-EUSTACHE ET SABA","BQ"]
["056002","Mobilier de salle à manger"]
["056003","Mobilier de salle de bains et WC"]
["056004","Mobilier de salon, living"]
["056005","Mobilier de chambre"]
["056006","Mobilier d’appoint – accessoires"]
["056007","Mobilier de bureau"]
["056008","Vannerie"]
["056101","Appareils d’éclairage"]
["056102","Piles"]
["056103","Lampes électriques"]
["056201","Tissus décoratifs et accessoires"]
["056202","Literie"]
["056203","Objets et accessoires de décoration"]
["056204","Linge de table, cuisine, toilette, lit"]
["066800","Papiers"]
["066801","Carterie"]
["066802","Supports d’écriture"]
["066803","Articles d’écriture et de bureau"]
["066804","Accessoires de dessin"]
["066805","Accessoires de classement"]
["066806","Accessoires scolaires, de bureaux et divers"]
["066807","Consommables bureaux"]
["066808","Consommables informatiques"]
["066809","Bureautique"]
["066810","Ordinateurs – informatique"]
["066901","Livres"]
["066902","Dictionnaires – encyclopédies"]
["066903","Journaux – périodiques revues spécialisées"]
["067001","Bijouterie, joaillerie"]
["067002","Orfèvrerie (autre que de table)"]
["067003","Horlogerie"]
["067004","Souvenirs, cadeaux, bimbeloterie"]
["067005","Articles pour fumeurs"]
["067101","Maroquinerie"]
["067102","Sacs de voyage"]
["067103","Sacs de sport"]
["067104","Valises, malles et mallettes"]
["067201","Radio et accessoires"]
["067202","Télévision et accessoires"]
["067203","Chaîne Hi Fi, lecteurs audio et vidéo"]
["067204","Photo, cinéma et accessoires"]
["067205","Disques, bandes magnétiques, cassettes"]
["067206","Films, pellicules"]
["067207","Instruments de musique"]
["067208","Téléphone et communication à distance"]
["067301","Jouets"]
["067302","Jeux"]
["067400","Accessoires pour animaux"]
["067501","Mobilier de camping et de plage"]
["067502","Articles et accessoires de camping et de plage"]
["067503","Remorques"]
["067504","Cycles, cyclomoteurs, motos"]
["067505","Equipements des cycles, cyclomoteurs, motos"]
["067506","Produits d’entretien pour cycles, cyclomoteurs, motos"]
["067507","Pièces de rechange"]
["067601","Lubrifiants"]
["067602","Produits d’entretien auto"]
["067603","Articles d’électricité (batterie, phare)"]
["067604","Pièces détachées techniques"]
["067605","Articles d’équipement intérieur"]
["067606","Articles d’équipement extérieur"]
["067607","Outillage auto"]
["067608","Pneumatiques"]
["067609","Auto-son"]
["067701","Articles de chasse"]
["067702","Articles de pêche"]
["067703","Articles de montagne"]
["067704","Articles de nautisme"]
["067705","Articles de culture physique"]
["067706","Articles d’autres sports"]
["067800","Service minute (clés, cordonnerie…)"]
["068101","Fournitures de couture"]
["068102","Fournitures de lingerie et passementerie"]
["068103","Patrons"]
["068104","Accessoires de couture"]
["078201","Bas"]
["078202","Collants"]
["078203","Protège-bas"]
["078301","Chaussures"]
["078302","Semelles – lacets"]
["078501","Chapeaux coiffures"]
["078502","Parapluies"]
["078503","Gants"]
["078504","Cravates"]
["078505","Lunettes"]
["078506","Survêtements et vêtements de sport"]
["078507","Vêtements de travail"]
["078508","Ceintures et bretelles"]
["078509","Echarpes, carrés, foulards"]
["078510","Mouchoirs"]
["078511","Pyjamas et chemises de nuit"]
["078512","Chemises, chemisiers, corsages"]
["078513","Sous-vêtements"]
["078514","Pantalons"]
["078515","Jupes, robes"]
["078516","Vêtements d’intérieur, tabliers"]
["078517","Costumes, tailleurs, ensembles"]
["078518","Vestes, blousons, anoraks, parkas"]
["078519","Manteaux, pardessus"]
["078520","Imperméables"]
["078521","Chaussettes, socquettes"]
["078522","Tee-shirts, polos"]
["078523","Pulls, cardigans, sweat-shirts"]
["078524","Bonneterie baby"]
["078525","Accessoires d’habillement baby"]
["078526","Accessoires d’hygiène baby"]
["079901","Tissus au mètre"]
["085201","Cigarettes"]
["085202","Cigares, cigarillos"]
["085203","Tabac pour pipes et à rouler"]
["085204","Tabac à mâcher et à priser"]
["085301","Allumettes et allume-feu"]
["085302","Briquets"]
["085303","Combustibles solides"]
["085304","Combustibles gazeux"]
["085305","Combustibles liquides domestiques"]
["096731","Allergologie"]
["096732","Anesthésiologie"]
["096733","Cancérologie"]
["096734","Cardio-angéiologie"]
["096735","Dermatologie"]
["096736","Diagnostic"]
["096737","Diététique pharmaceutique"]
["096738","Endocrinologie et hormones"]
["096739","Gastro-entérologie"]
["096740","Gynécologie"]
["096741","Hématologie"]
["096742","Hépatologie"]
["096743","Infections"]
["096744","Métabolisme, nutrition et vitamines"]
["096745","Neurologie et psychisme"]
["096746","Ophtalmologie"]
["096747","Otologie"]
["096748","Parasitologie"]
["096749","Pneumologie"]
["096750","Rhinologie"]
["096751","Rhumatologie et appareil locomoteur"]
["096752","Stomatologie"]
["096753","Toxicologie"]
["096754","Urologie et néphrologie"]
["096755","Acupuncture"]
["096756","Phytothérapie"]
["096757","Homéopathie"]
["096758","Divers pharmacie (antalgiques, etc.)"]
["120000","Economat "]

{"sheet":"Exemples","index":5,"n_rows":98,"n_cols":34,"rows_kept":98,"cut":false,"hidden":false,"merged":[[20,2,20,11]]}
[null,null,null,null,null,null,null,null,null,null,null,null,{"$f":"Titre_Sommaire","v":"Déclaration 2015"},null,null,null,null,null,null,null,null,null,null,null,null,null,null,null,null,null,null,null,null,{"$f":"COLUMN()","v":34}]
[]
[]
["Exemples au tarif 2015"]
[]
[null,"Liens directs :"]
[null,null,{"$f":"HYPERLINK(MID(CELL(\"filename\",$A$11),FIND(\"[\",CELL(\"filename\",$A$11)),FIND(\"]\",CELL(\"filename\",$A$11))-FIND(\"[\",CELL(\"filename\",$A$11))+1)\n&\"'\"\n&MID(CELL(\"filename\",$A$11),FIND(\"]\",CELL(\"filename\",$A$11))+1,LEN(CELL(\"filename\",$A$11))-FIND(\"]\",CELL(\"filename\",$A$11)))\n&\"'!\"&CELL(\"adresse\",$A$11),$B$11)","v":"1 - Cas de la chaîne HIFI"}]
[null,null,{"$f":"HYPERLINK(MID(CELL(\"filename\",$A$91),FIND(\"[\",CELL(\"filename\",$A$91)),FIND(\"]\",CELL(\"filename\",$A$91))-FIND(\"[\",CELL(\"filename\",$A$91))+1)\n&\"'\"\n&MID(CELL(\"filename\",$A$91),FIND(\"]\",CELL(\"filename\",$A$91))+1,LEN(CELL(\"filename\",$A$91))-FIND(\"]\",CELL(\"filename\",$A$91)))\n&\"'!\"&CELL(\"adresse\",$A$91),$B$62)","v":"2 - Cas du pack de bières"}]
[]
[]
[null,"1 - Cas de la chaîne HIFI"]
[]
[]
[null,null,"A - Caisse en papier carton recyclé :",null,null,null,null,null,null,null,{"$f":"HYPERLINK(MID(CELL(\"filename\",A5),FIND(\"[\",CELL(\"filename\",A5)),FIND(\"]\",CELL(\"filename\",A5))-FIND(\"[\",CELL(\"filename\",A5))+1)\n&\"'\"\n&MID(CELL(\"filename\",A5),FIND(\"]\",CELL(\"filename\",A5))+1,LEN(CELL(\"filename\",A5))-FIND(\"]\",CELL(\"filename\",A5)))\n&\"'!\"&CELL(\"adresse\",A5),\"Remonter en haut\")","v":"Remonter en haut"}]
[]
[]
[null,null,null,"Unité d'emballage","Matériau","Code matériau","Poids de l'unité d'emballage","Tarif matériau","Tarif à l'unité"]
[null,null,"1 seule unité","Caisse","Papier-carton autre que brique (contenant + de 50% recyclé)",30,1100,16.329999999999998,6.8000000000000005E-2]
[]
[null,null,"Contribution au poids : 16.33 ct €/kg x 1 100 g / 1 000 = 17.9630 ct € + Contribution à l'emballage : 0.068 ct €"]
[null,null,"17.9630 - 10% = 16.1667 ct € (1)"]
[]
[null,null,"Contribution totale : 16.1667 ct € + 0.068 ct € = 16.2347 ct €"]
[null,null,"(1) décote pour le carton contenant au moins 50 % de recyclé"]
[]
[]
[]
[]
[]
[null,null,"B - Cales en polystyrène :"]
[]
[]
[null,null,null,"Unité d'emballage","Matériau","Code matériau","Poids de l'unité d'emballage","Tarif matériau","Tarif à l'unité"]
[null,null,"1 seule unité","Cale","Autres emballages plastiques",43,45,28.06,6.8000000000000005E-2]
[]
[null,null,"Contribution au poids : 28.06 ct €/kg x 45 g / 1000 = 1.2627 ct € + Contribution à l'emballage : 0.068 ct €"]
[]
[null,null,"Contribution totale de la cale : 1.2627 ct € + 0.068 ct € = 1.3307 ct €"]
[null,null,"Contribution totale pour 2 cales : 1.3307 ct € x 2 = 2.6614 ct €"]
[]
[]
[]
[]
[]
[null,null,"C - Sachets en plastique :"]
[]
[]
[null,null,null,"Unité d'emballage","Matériau","Code matériau","Poids de l'unité d'emballage","Tarif matériau","Tarif à l'unité"]
[null,null,"1 seule unité","Sachet","Autres emballages plastiques",43,12.5,28.06,6.8000000000000005E-2]
[]
[null,null,"Contribution au poids : 28.06 ct €/kg x 12.5 g / 1000 = 0.3508 ct € + Contribution à l'emballage : 0.068 ct €"]
[]
[null,null,"Contribution totale du sachet : 0.3508 ct € + 0.068 ct € = 0.4188 ct €"]
[null,null,"Contribution totale pour 2 sachets : 0.4188 ct € x 2 = 0.8376 ct €"]
[]
[null,null,"CONTRIBUTION TOTALE POUR LA CHAINE HI-FI : 16.2347 ct € + 2.6614 ct € + 0.8376 ct € = 19.7337 ct €"]
[]
[]
[]
[]
[]
[null,"2 - Cas du pack de bières"]
[]
[]
[null,null,"A - Le pack :",null,null,null,null,null,null,null,{"$f":"HYPERLINK(MID(CELL(\"filename\",A5),FIND(\"[\",CELL(\"filename\",A5)),FIND(\"]\",CELL(\"filename\",A5))-FIND(\"[\",CELL(\"filename\",A5))+1)\n&\"'\"\n&MID(CELL(\"filename\",A5),FIND(\"]\",CELL(\"filename\",A5))+1,LEN(CELL(\"filename\",A5))-FIND(\"]\",CELL(\"filename\",A5)))\n&\"'!\"&CELL(\"adresse\",A5),\"Remonter en haut\")","v":"Remonter en haut"}]
[]
[null,null,null,"Unité d'emballage","Matériau","Code matériau","Poids de l'unité d'emballage","Tarif matériau","Tarif à l'unité"]
[null,null,"1 seule unité","Pack","Papier-carton autre que brique",30,160,16.329999999999998,6.8000000000000005E-2]
[]
[null,null,"Contribution au poids : 16.33 ct €/kg x 160 g / 1 000 = 2.6128 ct € + Contribution à l'emballage : 0.068 ct €"]
[]
[null,null,"Contribution totale : 2.6128 ct € + 0.068 ct € = 2.6808 ct €"]
[]
[]
[]
[null,null,"B - La bouteille"]
[]
[null,null,null,"Unité d'emballage","Matériau","Code matériau","Poids de l'unité d'emballage","Tarif matériau","Tarif à l'unité"]
[null,null,"1 seule unité","Bouteille","Verre",50,210,1.21,6.8000000000000005E-2]
[]
[null,null,"Contribution au poids : 1.21 ct €/kg x 210 g / 1000 = 0.2541 ct € + Contribution à l'emballage : 0.068 ct €"]
[]
[null,null,"Contribution totale de la bouteille : 0.2541 ct € + 0.068 ct € = 0.3221 ct €"]
[null,null,"Contribution totale pour 6 bouteilles : 0.3221 ct € x 6 = 1.9326 ct €"]
[]
[]
[]
[null,null,"C - La capsule"]
[]
[null,null,null,"Unité d'emballage","Matériau","Code matériau","Poids de l'unité d'emballage","Tarif matériau","Tarif à l'unité"]
[null,null,"1 seule unité","Capsule","Acier",10,2,3.15,6.8000000000000005E-2]
[]
[null,null,"Contribution au poids : 3.15 ct €/kg x 2 g / 1000 = 0.0063 ct € + Contribution à l'emballage : 0.068 ct €"]
[]
[null,null,"Contribution totale d'une capsule : 0.0063 ct € + 0.068 ct € = 0.0743 ct €"]
[null,null,"Contribution totale pour 6 capsules : 0.0743 ct € x 6 = 0.4458 ct €"]
[]
[null,null,"CONTRIBUTION TOTALE POUR LE PACK DE BIERE : 2.6808 ct € + 1.9326 ct € + 0.4458 ct € = 5.0592 ct €"]

{"sheet":"Specs","index":6,"n_rows":257,"n_cols":25,"rows_kept":257,"cut":false,"hidden":true,"merged":[[0,0,0,7],[0,10,0,17]]}
["Alphabet \"alphanumérique\"",null,null,null,null,null,null,null,null,null,"Alphabet \"alphanumérique restreint\"",null,null,null,null,null,null,null,null,null,null,null,null,"15-01-2016 09:45","v2015-12-16"]
["Numéro ASCII","Caractère","Autorisation","Compteur",null,{"$f":"COUNTIF(G$3:G$257,\"<>-\")","v":189},"Liste numéros ASCII autorisés","Liste caractères autorisés",null,null,"Numéro ASCII","Caractère","Autorisation","Compteur",null,{"$f":"COUNTIF(Q$3:Q$257,\"<>-\")","v":70},"Liste numéros ASCII autorisés","Liste caractères autorisés"]
[1,{"$f":"CHAR(A3)","v":"\u0001"},0,{"$f":"IF(C3=1,SUM(C$3:C3),\"\")","v":""},null,1,{"$f":"IF(ISERROR(MATCH(F3,D$3:D$257,0)),\"-\",INDEX(A$3:A$257,MATCH(F3,D$3:D$257,0)))","v":32},{"$f":"IF(G3<>\"-\",CHAR(G3),\"\")","v":" "},null,null,1,{"$f":"CHAR(K3)","v":"\u0001"},1,{"$f":"IF(M3=1,SUM(M$3:M3),\"\")","v":1},null,1,{"$f":"IF(ISERROR(MATCH(P3,N$3:N$257,0)),\"-\",INDEX(K$3:K$257,MATCH(P3,N$3:N$257,0)))","v":1},{"$f":"IF(Q3<>\"-\",CHAR(Q3),\"\")","v":"\u0001"}]
[{"$f":"A3+1","v":2},{"$f":"CHAR(A4)","v":"\u0002"},0,{"$f":"IF(C4=1,SUM(C$3:C4),\"\")","v":""},null,{"$f":"F3+1","v":2},33,"!",null,null,{"$f":"K3+1","v":2},{"$f":"CHAR(K4)","v":"\u0002"},0,{"$f":"IF(M4=1,SUM(M$3:M4),\"\")","v":""},null,{"$f":"P3+1","v":2},9,"\t"]
[{"$f":"A4+1","v":3},"\u0003",0,{"$f":"IF(C5=1,SUM(C$3:C5),\"\")","v":""},null,{"$f":"F4+1","v":3},34,"\"",null,null,{"$f":"K4+1","v":3},"\u0003",0,{"$f":"IF(M5=1,SUM(M$3:M5),\"\")","v":""},null,{"$f":"P4+1","v":3},28,"\u001c"]
[4,"\u0004",0,{"$f":"IF(C6=1,SUM(C$3:C6),\"\")","v":""},null,4,35,"#",null,null,4,"\u0004",0,{"$f":"IF(M6=1,SUM(M$3:M6),\"\")","v":""},null,4,29,"\u001d"]
[5,{"$f":"CHAR(A7)","v":"\u0005"},0,{"$f":"IF(C7=1,SUM(C$3:C7),\"\")","v":""},null,5,36,"$",null,null,5,"\u0005",0,{"$f":"IF(M7=1,SUM(M$3:M7),\"\")","v":""},null,5,30,"\u001e"]
[6,"\u0006",0,{"$f":"IF(C8=1,SUM(C$3:C8),\"\")","v":""},null,6,37,"%",null,null,6,"\u0006",0,{"$f":"IF(M8=1,SUM(M$3:M8),\"\")","v":""},null,6,31,"\u001f"]
[7,"\u0007",0,{"$f":"IF(C9=1,SUM(C$3:C9),\"\")","v":""},null,7,38,"&",null,null,7,"\u0007",0,{"$f":"IF(M9=1,SUM(M$3:M9),\"\")","v":""},null,7,32," "]
[8,"\b",0,{"$f":"IF(C10=1,SUM(C$3:C10),\"\")","v":""},null,8,39,"'",null,null,8,"\b",0,{"$f":"IF(M10=1,SUM(M$3:M10),\"\")","v":""},null,8,48,"0"]
[9,{"$f":"CHAR(A11)","v":"\t"},0,{"$f":"IF(C11=1,SUM(C$3:C11),\"\")","v":""},null,9,40,"(",null,null,9,"\t",1,{"$f":"IF(M11=1,SUM(M$3:M11),\"\")","v":2},null,9,49,"1"]
[10,"\n",0,{"$f":"IF(C12=1,SUM(C$3:C12),\"\")","v":""},null,10,41,")",null,null,10,"\n",0,{"$f":"IF(M12=1,SUM(M$3:M12),\"\")","v":""},null,10,50,"2"]
[11,"\u000b",0,{"$f":"IF(C13=1,SUM(C$3:C13),\"\")","v":""},null,11,42,"*","\u000b",null,11,"\u000b",0,{"$f":"IF(M13=1,SUM(M$3:M13),\"\")","v":""},null,11,51,"3"]
[12,"\f",0,{"$f":"IF(C14=1,SUM(C$3:C14),\"\")","v":""},null,12,43,"+",null,null,12,"\f",0,{"$f":"IF(M14=1,SUM(M$3:M14),\"\")","v":""},null,12,52,"4"]
[13,"\r",0,{"$f":"IF(C15=1,SUM(C$3:C15),\"\")","v":""},null,13,44,",",null,null,13,"\r",0,{"$f":"IF(M15=1,SUM(M$3:M15),\"\")","v":""},null,13,53,"5"]
[14,"\u000e",0,{"$f":"IF(C16=1,SUM(C$3:C16),\"\")","v":""},null,14,45,"-",null,null,14,"\u000e",0,{"$f":"IF(M16=1,SUM(M$3:M16),\"\")","v":""},null,14,54,"6"]
[15,"\u000f",0,{"$f":"IF(C17=1,SUM(C$3:C17),\"\")","v":""},null,15,46,".",null,null,15,"\u000f",0,{"$f":"IF(M17=1,SUM(M$3:M17),\"\")","v":""},null,15,55,"7"]
[16,"\u0010",0,{"$f":"IF(C18=1,SUM(C$3:C18),\"\")","v":""},null,16,47,"/",null,null,16,"\u0010",0,{"$f":"IF(M18=1,SUM(M$3:M18),\"\")","v":""},null,16,56,"8"]
[17,"\u0011",0,{"$f":"IF(C19=1,SUM(C$3:C19),\"\")","v":""},null,17,48,"0",null,null,17,"\u0011",0,{"$f":"IF(M19=1,SUM(M$3:M19),\"\")","v":""},null,17,57,"9"]
[18,"\u0012",0,{"$f":"IF(C20=1,SUM(C$3:C20),\"\")","v":""},null,18,49,"1",null,null,18,"\u0012",0,{"$f":"IF(M20=1,SUM(M$3:M20),\"\")","v":""},null,18,65,"A"]
[19,"\u0013",0,{"$f":"IF(C21=1,SUM(C$3:C21),\"\")","v":""},null,19,50,"2",null,null,19,"\u0013",0,{"$f":"IF(M21=1,SUM(M$3:M21),\"\")","v":""},null,19,66,"B"]
[20,"\u0014",0,{"$f":"IF(C22=1,SUM(C$3:C22),\"\")","v":""},null,20,51,"3",null,null,20,"\u0014",0,{"$f":"IF(M22=1,SUM(M$3:M22),\"\")","v":""},null,20,67,"C"]
[21,"\u0015",0,{"$f":"IF(C23=1,SUM(C$3:C23),\"\")","v":""},null,21,52,"4",null,null,21,"\u0015",0,{"$f":"IF(M23=1,SUM(M$3:M23),\"\")","v":""},null,21,68,"D"]
[22,"\u0016",0,{"$f":"IF(C24=1,SUM(C$3:C24),\"\")","v":""},null,22,53,"5",null,null,22,"\u0016",0,{"$f":"IF(M24=1,SUM(M$3:M24),\"\")","v":""},null,22,69,"E"]
[23,"\u0017",0,{"$f":"IF(C25=1,SUM(C$3:C25),\"\")","v":""},null,23,54,"6",null,null,23,"\u0017",0,{"$f":"IF(M25=1,SUM(M$3:M25),\"\")","v":""},null,23,70,"F"]
[24,"\u0018",0,{"$f":"IF(C26=1,SUM(C$3:C26),\"\")","v":""},null,24,55,"7",null,null,24,"\u0018",0,{"$f":"IF(M26=1,SUM(M$3:M26),\"\")","v":""},null,24,71,"G"]
[25,"\u0019",0,{"$f":"IF(C27=1,SUM(C$3:C27),\"\")","v":""},null,25,56,"8",null,null,25,"\u0019",0,{"$f":"IF(M27=1,SUM(M$3:M27),\"\")","v":""},null,25,72,"H"]
[26,"\u001a",0,{"$f":"IF(C28=1,SUM(C$3:C28),\"\")","v":""},null,26,57,"9",null,null,26,"\u001a",0,{"$f":"IF(M28=1,SUM(M$3:M28),\"\")","v":""},null,26,73,"I"]
[27,"\u001b",0,{"$f":"IF(C29=1,SUM(C$3:C29),\"\")","v":""},null,27,58,":",null,null,27,"\u001b",0,{"$f":"IF(M29=1,SUM(M$3:M29),\"\")","v":""},null,27,74,"J"]
[28,"\u001c",0,{"$f":"IF(C30=1,SUM(C$3:C30),\"\")","v":""},null,28,59,";",null,null,28,"\u001c",1,{"$f":"IF(M30=1,SUM(M$3:M30),\"\")","v":3},null,28,75,"K"]
[29,"\u001d",0,{"$f":"IF(C31=1,SUM(C$3:C31),\"\")","v":""},null,29,60,"<",null,null,29,"\u001d",1,{"$f":"IF(M31=1,SUM(M$3:M31),\"\")","v":4},null,29,76,"L"]
[30,"\u001e",0,{"$f":"IF(C32=1,SUM(C$3:C32),\"\")","v":""},null,30,61,"=",null,null,30,"\u001e",1,{"$f":"IF(M32=1,SUM(M$3:M32),\"\")","v":5},null,30,77,"M"]
[31,"\u001f",0,{"$f":"IF(C33=1,SUM(C$3:C33),\"\")","v":""},null,31,62,">",null,null,31,"\u001f",1,{"$f":"IF(M33=1,SUM(M$3:M33),\"\")","v":6},null,31,78,"N"]
[32," ",1,{"$f":"IF(C34=1,SUM(C$3:C34),\"\")","v":1},null,32,63,"?",null,null,32," ",1,{"$f":"IF(M34=1,SUM(M$3:M34),\"\")","v":7},null,32,79,"O"]
[33,"!",1,{"$f":"IF(C35=1,SUM(C$3:C35),\"\")","v":2},null,33,64,"@",null,null,33,"!",0,{"$f":"IF(M35=1,SUM(M$3:M35),\"\")","v":""},null,33,80,"P"]
[34,"\"",1,{"$f":"IF(C36=1,SUM(C$3:C36),\"\")","v":3},null,34,65,"A",null,null,34,"\"",0,{"$f":"IF(M36=1,SUM(M$3:M36),\"\")","v":""},null,34,81,"Q"]
[35,"#",1,{"$f":"IF(C37=1,SUM(C$3:C37),\"\")","v":4},null,35,66,"B",null,null,35,"#",0,{"$f":"IF(M37=1,SUM(M$3:M37),\"\")","v":""},null,35,82,"R"]
[36,"$",1,{"$f":"IF(C38=1,SUM(C$3:C38),\"\")","v":5},null,36,67,"C",null,null,36,"$",0,{"$f":"IF(M38=1,SUM(M$3:M38),\"\")","v":""},null,36,83,"S"]
[37,"%",1,{"$f":"IF(C39=1,SUM(C$3:C39),\"\")","v":6},null,37,68,"D",null,null,37,"%",0,{"$f":"IF(M39=1,SUM(M$3:M39),\"\")","v":""},null,37,84,"T"]
[38,"&",1,{"$f":"IF(C40=1,SUM(C$3:C40),\"\")","v":7},null,38,69,"E",null,null,38,"&",0,{"$f":"IF(M40=1,SUM(M$3:M40),\"\")","v":""},null,38,85,"U"]
[39,"'",1,{"$f":"IF(C41=1,SUM(C$3:C41),\"\")","v":8},null,39,70,"F",null,null,39,"'",0,{"$f":"IF(M41=1,SUM(M$3:M41),\"\")","v":""},null,39,86,"V"]
[40,"(",1,{"$f":"IF(C42=1,SUM(C$3:C42),\"\")","v":9},null,40,71,"G",null,null,40,"(",0,{"$f":"IF(M42=1,SUM(M$3:M42),\"\")","v":""},null,40,87,"W"]
[41,")",1,{"$f":"IF(C43=1,SUM(C$3:C43),\"\")","v":10},null,41,72,"H",null,null,41,")",0,{"$f":"IF(M43=1,SUM(M$3:M43),\"\")","v":""},null,41,88,"X"]
[42,"*",1,{"$f":"IF(C44=1,SUM(C$3:C44),\"\")","v":11},null,42,73,"I",null,null,42,"*",0,{"$f":"IF(M44=1,SUM(M$3:M44),\"\")","v":""},null,42,89,"Y"]
[43,"+",1,{"$f":"IF(C45=1,SUM(C$3:C45),\"\")","v":12},null,43,74,"J",null,null,43,"+",0,{"$f":"IF(M45=1,SUM(M$3:M45),\"\")","v":""},null,43,90,"Z"]
[44,",",1,{"$f":"IF(C46=1,SUM(C$3:C46),\"\")","v":13},null,44,75,"K",null,null,44,",",0,{"$f":"IF(M46=1,SUM(M$3:M46),\"\")","v":""},null,44,97,"a"]
[45,"-",1,{"$f":"IF(C47=1,SUM(C$3:C47),\"\")","v":14},null,45,76,"L",null,null,45,"-",0,{"$f":"IF(M47=1,SUM(M$3:M47),\"\")","v":""},null,45,98,"b"]
[46,".",1,{"$f":"IF(C48=1,SUM(C$3:C48),\"\")","v":15},null,46,77,"M",null,null,46,".",0,{"$f":"IF(M48=1,SUM(M$3:M48),\"\")","v":""},null,46,99,"c"]
[47,"/",1,{"$f":"IF(C49=1,SUM(C$3:C49),\"\")","v":16},null,47,78,"N",null,null,47,"/",0,{"$f":"IF(M49=1,SUM(M$3:M49),\"\")","v":""},null,47,100,"d"]
[48,"0",1,{"$f":"IF(C50=1,SUM(C$3:C50),\"\")","v":17},null,48,79,"O",null,null,48,"0",1,{"$f":"IF(M50=1,SUM(M$3:M50),\"\")","v":8},null,48,101,"e"]
[49,"1",1,{"$f":"IF(C51=1,SUM(C$3:C51),\"\")","v":18},null,49,80,"P",null,null,49,"1",1,{"$f":"IF(M51=1,SUM(M$3:M51),\"\")","v":9},null,49,102,"f"]
[50,"2",1,{"$f":"IF(C52=1,SUM(C$3:C52),\"\")","v":19},null,50,81,"Q",null,null,50,"2",1,{"$f":"IF(M52=1,SUM(M$3:M52),\"\")","v":10},null,50,103,"g"]
[51,"3",1,{"$f":"IF(C53=1,SUM(C$3:C53),\"\")","v":20},null,51,82,"R",null,null,51,"3",1,{"$f":"IF(M53=1,SUM(M$3:M53),\"\")","v":11},null,51,104,"h"]
[52,"4",1,{"$f":"IF(C54=1,SUM(C$3:C54),\"\")","v":21},null,52,83,"S",null,null,52,"4",1,{"$f":"IF(M54=1,SUM(M$3:M54),\"\")","v":12},null,52,105,"i"]
[53,"5",1,{"$f":"IF(C55=1,SUM(C$3:C55),\"\")","v":22},null,53,84,"T",null,null,53,"5",1,{"$f":"IF(M55=1,SUM(M$3:M55),\"\")","v":13},null,53,106,"j"]
[54,"6",1,{"$f":"IF(C56=1,SUM(C$3:C56),\"\")","v":23},null,54,85,"U",null,null,54,"6",1,{"$f":"IF(M56=1,SUM(M$3:M56),\"\")","v":14},null,54,107,"k"]
[55,"7",1,{"$f":"IF(C57=1,SUM(C$3:C57),\"\")","v":24},null,55,86,"V",null,null,55,"7",1,{"$f":"IF(M57=1,SUM(M$3:M57),\"\")","v":15},null,55,108,"l"]
[56,"8",1,{"$f":"IF(C58=1,SUM(C$3:C58),\"\")","v":25},null,56,87,"W",null,null,56,"8",1,{"$f":"IF(M58=1,SUM(M$3:M58),\"\")","v":16},null,56,109,"m"]
[57,"9",1,{"$f":"IF(C59=1,SUM(C$3:C59),\"\")","v":26},null,57,88,"X",null,null,57,"9",1,{"$f":"IF(M59=1,SUM(M$3:M59),\"\")","v":17},null,57,110,"n"]
[58,":",1,{"$f":"IF(C60=1,SUM(C$3:C60),\"\")","v":27},null,58,89,"Y",null,null,58,":",0,{"$f":"IF(M60=1,SUM(M$3:M60),\"\")","v":""},null,58,111,"o"]
[59,";",1,{"$f":"IF(C61=1,SUM(C$3:C61),\"\")","v":28},null,59,90,"Z",null,null,59,";",0,{"$f":"IF(M61=1,SUM(M$3:M61),\"\")","v":""},null,59,112,"p"]
[60,"<",1,{"$f":"IF(C62=1,SUM(C$3:C62),\"\")","v":29},null,60,91,"[",null,null,60,"<",0,{"$f":"IF(M62=1,SUM(M$3:M62),\"\")","v":""},null,60,113,"q"]
[61,"=",1,{"$f":"IF(C63=1,SUM(C$3:C63),\"\")","v":30},null,61,92,"\\",null,null,61,"=",0,{"$f":"IF(M63=1,SUM(M$3:M63),\"\")","v":""},null,61,114,"r"]
[62,">",1,{"$f":"IF(C64=1,SUM(C$3:C64),\"\")","v":31},null,62,93,"]",null,null,62,">",0,{"$f":"IF(M64=1,SUM(M$3:M64),\"\")","v":""},null,62,115,"s"]
[63,"?",1,{"$f":"IF(C65=1,SUM(C$3:C65),\"\")","v":32},null,63,94,"^",null,null,63,"?",0,{"$f":"IF(M65=1,SUM(M$3:M65),\"\")","v":""},null,63,116,"t"]
[64,"@",1,{"$f":"IF(C66=1,SUM(C$3:C66),\"\")","v":33},null,64,95,"_",null,null,64,"@",0,{"$f":"IF(M66=1,SUM(M$3:M66),\"\")","v":""},null,64,117,"u"]
[65,"A",1,{"$f":"IF(C67=1,SUM(C$3:C67),\"\")","v":34},null,65,{"$f":"IF(ISERROR(MATCH(F67,D$3:D$257,0)),\"-\",INDEX(A$3:A$257,MATCH(F67,D$3:D$257,0)))","v":96},{"$f":"IF(G67<>\"-\",CHAR(G67),\"\")","v":"`"},null,null,65,"A",1,{"$f":"IF(M67=1,SUM(M$3:M67),\"\")","v":18},null,65,{"$f":"IF(ISERROR(MATCH(P67,N$3:N$257,0)),\"-\",INDEX(K$3:K$257,MATCH(P67,N$3:N$257,0)))","v":118},{"$f":"IF(Q67<>\"-\",CHAR(Q67),\"\")","v":"v"}]
[66,{"$f":"CHAR(A68)","v":"B"},1,{"$f":"IF(C68=1,SUM(C$3:C68),\"\")","v":35},null,66,97,"a",null,null,66,{"$f":"CHAR(K68)","v":"B"},1,{"$f":"IF(M68=1,SUM(M$3:M68),\"\")","v":19},null,66,119,"w"]
[{"$f":"A68+1","v":67},"C",1,{"$f":"IF(C69=1,SUM(C$3:C69),\"\")","v":36},null,{"$f":"F68+1","v":67},98,"b",null,null,{"$f":"K68+1","v":67},"C",1,{"$f":"IF(M69=1,SUM(M$3:M69),\"\")","v":20},null,{"$f":"P68+1","v":67},120,"x"]
[68,"D",1,{"$f":"IF(C70=1,SUM(C$3:C70),\"\")","v":37},null,68,99,"c",null,null,68,"D",1,{"$f":"IF(M70=1,SUM(M$3:M70),\"\")","v":21},null,68,121,"y"]
[69,"E",1,{"$f":"IF(C71=1,SUM(C$3:C71),\"\")","v":38},null,69,100,"d",null,null,69,"E",1,{"$f":"IF(M71=1,SUM(M$3:M71),\"\")","v":22},null,69,122,"z"]
[70,"F",1,{"$f":"IF(C72=1,SUM(C$3:C72),\"\")","v":39},null,70,101,"e",null,null,70,"F",1,{"$f":"IF(M72=1,SUM(M$3:M72),\"\")","v":23},null,70,129,"\u0081"]
[71,"G",1,{"$f":"IF(C73=1,SUM(C$3:C73),\"\")","v":40},null,71,102,"f",null,null,71,"G",1,{"$f":"IF(M73=1,SUM(M$3:M73),\"\")","v":24},null,71,"-",""]
[72,"H",1,{"$f":"IF(C74=1,SUM(C$3:C74),\"\")","v":41},null,72,103,"g",null,null,72,"H",1,{"$f":"IF(M74=1,SUM(M$3:M74),\"\")","v":25},null,72,"-",""]
[73,"I",1,{"$f":"IF(C75=1,SUM(C$3:C75),\"\")","v":42},null,73,104,"h",null,null,73,"I",1,{"$f":"IF(M75=1,SUM(M$3:M75),\"\")","v":26},null,73,"-",""]
[74,"J",1,{"$f":"IF(C76=1,SUM(C$3:C76),\"\")","v":43},null,74,105,"i",null,null,74,"J",1,{"$f":"IF(M76=1,SUM(M$3:M76),\"\")","v":27},null,74,"-",""]
[75,"K",1,{"$f":"IF(C77=1,SUM(C$3:C77),\"\")","v":44},null,75,106,"j",null,null,75,"K",1,{"$f":"IF(M77=1,SUM(M$3:M77),\"\")","v":28},null,75,"-",""]
[76,"L",1,{"$f":"IF(C78=1,SUM(C$3:C78),\"\")","v":45},null,76,107,"k",null,null,76,"L",1,{"$f":"IF(M78=1,SUM(M$3:M78),\"\")","v":29},null,76,"-",""]
[77,"M",1,{"$f":"IF(C79=1,SUM(C$3:C79),\"\")","v":46},null,77,108,"l",null,null,77,"M",1,{"$f":"IF(M79=1,SUM(M$3:M79),\"\")","v":30},null,77,"-",""]
[78,"N",1,{"$f":"IF(C80=1,SUM(C$3:C80),\"\")","v":47},null,78,109,"m",null,null,78,"N",1,{"$f":"IF(M80=1,SUM(M$3:M80),\"\")","v":31},null,78,"-",""]
[79,"O",1,{"$f":"IF(C81=1,SUM(C$3:C81),\"\")","v":48},null,79,110,"n",null,null,79,"O",1,{"$f":"IF(M81=1,SUM(M$3:M81),\"\")","v":32},null,79,"-",""]
[80,"P",1,{"$f":"IF(C82=1,SUM(C$3:C82),\"\")","v":49},null,80,111,"o",null,null,80,"P",1,{"$f":"IF(M82=1,SUM(M$3:M82),\"\")","v":33},null,80,"-",""]
[81,"Q",1,{"$f":"IF(C83=1,SUM(C$3:C83),\"\")","v":50},null,81,112,"p",null,null,81,"Q",1,{"$f":"IF(M83=1,SUM(M$3:M83),\"\")","v":34},null,81,"-",""]
[82,"R",1,{"$f":"IF(C84=1,SUM(C$3:C84),\"\")","v":51},null,82,113,"q",null,null,82,"R",1,{"$f":"IF(M84=1,SUM(M$3:M84),\"\")","v":35},null,82,"-",""]
[83,"S",1,{"$f":"IF(C85=1,SUM(C$3:C85),\"\")","v":52},null,83,114,"r",null,null,83,"S",1,{"$f":"IF(M85=1,SUM(M$3:M85),\"\")","v":36},null,83,"-",""]
[84,"T",1,{"$f":"IF(C86=1,SUM(C$3:C86),\"\")","v":53},null,84,115,"s",null,null,84,"T",1,{"$f":"IF(M86=1,SUM(M$3:M86),\"\")","v":37},null,84,"-",""]
[85,"U",1,{"$f":"IF(C87=1,SUM(C$3:C87),\"\")","v":54},null,85,116,"t",null,null,85,"U",1,{"$f":"IF(M87=1,SUM(M$3:M87),\"\")","v":38},null,85,"-",""]
[86,"V",1,{"$f":"IF(C88=1,SUM(C$3:C88),\"\")","v":55},null,86,117,"u",null,null,86,"V",1,{"$f":"IF(M88=1,SUM(M$3:M88),\"\")","v":39},null,86,"-",""]
[87,"W",1,{"$f":"IF(C89=1,SUM(C$3:C89),\"\")","v":56},null,87,118,"v",null,null,87,"W",1,{"$f":"IF(M89=1,SUM(M$3:M89),\"\")","v":40},null,87,"-",""]
[88,"X",1,{"$f":"IF(C90=1,SUM(C$3:C90),\"\")","v":57},null,88,119,"w",null,null,88,"X",1,{"$f":"IF(M90=1,SUM(M$3:M90),\"\")","v":41},null,88,"-",""]
[89,"Y",1,{"$f":"IF(C91=1,SUM(C$3:C91),\"\")","v":58},null,89,120,"x",null,null,89,"Y",1,{"$f":"IF(M91=1,SUM(M$3:M91),\"\")","v":42},null,89,"-",""]
[90,"Z",1,{"$f":"IF(C92=1,SUM(C$3:C92),\"\")","v":59},null,90,121,"y",null,null,90,"Z",1,{"$f":"IF(M92=1,SUM(M$3:M92),\"\")","v":43},null,90,"-",""]
[91,"[",1,{"$f":"IF(C93=1,SUM(C$3:C93),\"\")","v":60},null,91,122,"z",null,null,91,"[",0,{"$f":"IF(M93=1,SUM(M$3:M93),\"\")","v":""},null,91,"-",""]
[92,"\\",1,{"$f":"IF(C94=1,SUM(C$3:C94),\"\")","v":61},null,92,123,"{",null,null,92,"\\",0,{"$f":"IF(M94=1,SUM(M$3:M94),\"\")","v":""},null,92,"-",""]
[93,"]",1,{"$f":"IF(C95=1,SUM(C$3:C95),\"\")","v":62},null,93,124,"|",null,null,93,"]",0,{"$f":"IF(M95=1,SUM(M$3:M95),\"\")","v":""},null,93,"-",""]
[94,"^",1,{"$f":"IF(C96=1,SUM(C$3:C96),\"\")","v":63},null,94,125,"}",null,null,94,"^",0,{"$f":"IF(M96=1,SUM(M$3:M96),\"\")","v":""},null,94,"-",""]
[95,"_",1,{"$f":"IF(C97=1,SUM(C$3:C97),\"\")","v":64},null,95,126,"~",null,null,95,"_",0,{"$f":"IF(M97=1,SUM(M$3:M97),\"\")","v":""},null,95,"-",""]
[96,"`",1,{"$f":"IF(C98=1,SUM(C$3:C98),\"\")","v":65},null,96,161,"¡",null,null,96,"`",0,{"$f":"IF(M98=1,SUM(M$3:M98),\"\")","v":""},null,96,"-",""]
[97,"a",1,{"$f":"IF(C99=1,SUM(C$3:C99),\"\")","v":66},null,97,162,"¢",null,null,97,"a",1,{"$f":"IF(M99=1,SUM(M$3:M99),\"\")","v":44},null,97,"-",""]
[98,"b",1,{"$f":"IF(C100=1,SUM(C$3:C100),\"\")","v":67},null,98,163,"£",null,null,98,"b",1,{"$f":"IF(M100=1,SUM(M$3:M100),\"\")","v":45},null,98,"-",""]
[99,"c",1,{"$f":"IF(C101=1,SUM(C$3:C101),\"\")","v":68},null,99,164,"¤",null,null,99,"c",1,{"$f":"IF(M101=1,SUM(M$3:M101),\"\")","v":46},null,99,"-",""]
[100,"d",1,{"$f":"IF(C102=1,SUM(C$3:C102),\"\")","v":69},null,100,165,"¥",null,null,100,"d",1,{"$f":"IF(M102=1,SUM(M$3:M102),\"\")","v":47},null,100,"-",""]
[101,"e",1,{"$f":"IF(C103=1,SUM(C$3:C103),\"\")","v":70},null,101,166,"¦",null,null,101,"e",1,{"$f":"IF(M103=1,SUM(M$3:M103),\"\")","v":48},null,101,"-",""]
[102,"f",1,{"$f":"IF(C104=1,SUM(C$3:C104),\"\")","v":71},null,102,167,"§",null,null,102,"f",1,{"$f":"IF(M104=1,SUM(M$3:M104),\"\")","v":49},null,102,"-",""]
[103,"g",1,{"$f":"IF(C105=1,SUM(C$3:C105),\"\")","v":72},null,103,168,"¨",null,null,103,"g",1,{"$f":"IF(M105=1,SUM(M$3:M105),\"\")","v":50},null,103,"-",""]
[104,"h",1,{"$f":"IF(C106=1,SUM(C$3:C106),\"\")","v":73},null,104,169,"©",null,null,104,"h",1,{"$f":"IF(M106=1,SUM(M$3:M106),\"\")","v":51},null,104,"-",""]
[105,"i",1,{"$f":"IF(C107=1,SUM(C$3:C107),\"\")","v":74},null,105,170,"ª",null,null,105,"i",1,{"$f":"IF(M107=1,SUM(M$3:M107),\"\")","v":52},null,105,"-",""]
[106,"j",1,{"$f":"IF(C108=1,SUM(C$3:C108),\"\")","v":75},null,106,171,"«",null,null,106,"j",1,{"$f":"IF(M108=1,SUM(M$3:M108),\"\")","v":53},null,106,"-",""]
[107,"k",1,{"$f":"IF(C109=1,SUM(C$3:C109),\"\")","v":76},null,107,172,"¬",null,null,107,"k",1,{"$f":"IF(M109=1,SUM(M$3:M109),\"\")","v":54},null,107,"-",""]
[108,"l",1,{"$f":"IF(C110=1,SUM(C$3:C110),\"\")","v":77},null,108,174,"®",null,null,108,"l",1,{"$f":"IF(M110=1,SUM(M$3:M110),\"\")","v":55},null,108,"-",""]
[109,"m",1,{"$f":"IF(C111=1,SUM(C$3:C111),\"\")","v":78},null,109,175,"¯",null,null,109,"m",1,{"$f":"IF(M111=1,SUM(M$3:M111),\"\")","v":56},null,109,"-",""]
[110,"n",1,{"$f":"IF(C112=1,SUM(C$3:C112),\"\")","v":79},null,110,176,"°",null,null,110,"n",1,{"$f":"IF(M112=1,SUM(M$3:M112),\"\")","v":57},null,110,"-",""]
[111,"o",1,{"$f":"IF(C113=1,SUM(C$3:C113),\"\")","v":80},null,111,177,"±",null,null,111,"o",1,{"$f":"IF(M113=1,SUM(M$3:M113),\"\")","v":58},null,111,"-",""]
[112,"p",1,{"$f":"IF(C114=1,SUM(C$3:C114),\"\")","v":81},null,112,178,"²",null,null,112,"p",1,{"$f":"IF(M114=1,SUM(M$3:M114),\"\")","v":59},null,112,"-",""]
[113,"q",1,{"$f":"IF(C115=1,SUM(C$3:C115),\"\")","v":82},null,113,179,"³",null,null,113,"q",1,{"$f":"IF(M115=1,SUM(M$3:M115),\"\")","v":60},null,113,"-",""]
[114,"r",1,{"$f":"IF(C116=1,SUM(C$3:C116),\"\")","v":83},null,114,180,"´",null,null,114,"r",1,{"$f":"IF(M116=1,SUM(M$3:M116),\"\")","v":61},null,114,"-",""]
[115,"s",1,{"$f":"IF(C117=1,SUM(C$3:C117),\"\")","v":84},null,115,181,"µ",null,null,115,"s",1,{"$f":"IF(M117=1,SUM(M$3:M117),\"\")","v":62},null,115,"-",""]
[116,"t",1,{"$f":"IF(C118=1,SUM(C$3:C118),\"\")","v":85},null,116,182,"¶",null,null,116,"t",1,{"$f":"IF(M118=1,SUM(M$3:M118),\"\")","v":63},null,116,"-",""]
[117,"u",1,{"$f":"IF(C119=1,SUM(C$3:C119),\"\")","v":86},null,117,183,"·",null,null,117,"u",1,{"$f":"IF(M119=1,SUM(M$3:M119),\"\")","v":64},null,117,"-",""]
[118,"v",1,{"$f":"IF(C120=1,SUM(C$3:C120),\"\")","v":87},null,118,184,"¸",null,null,118,"v",1,{"$f":"IF(M120=1,SUM(M$3:M120),\"\")","v":65},null,118,"-",""]
[119,"w",1,{"$f":"IF(C121=1,SUM(C$3:C121),\"\")","v":88},null,119,185,"¹",null,null,119,"w",1,{"$f":"IF(M121=1,SUM(M$3:M121),\"\")","v":66},null,119,"-",""]
[120,"x",1,{"$f":"IF(C122=1,SUM(C$3:C122),\"\")","v":89},null,120,186,"º",null,null,120,"x",1,{"$f":"IF(M122=1,SUM(M$3:M122),\"\")","v":67},null,120,"-",""]
[121,"y",1,{"$f":"IF(C123=1,SUM(C$3:C123),\"\")","v":90},null,121,187,"»",null,null,121,"y",1,{"$f":"IF(M123=1,SUM(M$3:M123),\"\")","v":68},null,121,"-",""]
[122,"z",1,{"$f":"IF(C124=1,SUM(C$3:C124),\"\")","v":91},null,122,188,"¼",null,null,122,"z",1,{"$f":"IF(M124=1,SUM(M$3:M124),\"\")","v":69},null,122,"-",""]
[123,"{",1,{"$f":"IF(C125=1,SUM(C$3:C125),\"\")","v":92},null,123,189,"½",null,null,123,"{",0,{"$f":"IF(M125=1,SUM(M$3:M125),\"\")","v":""},null,123,"-",""]
[124,"|",1,{"$f":"IF(C126=1,SUM(C$3:C126),\"\")","v":93},null,124,190,"¾",null,null,124,"|",0,{"$f":"IF(M126=1,SUM(M$3:M126),\"\")","v":""},null,124,"-",""]
[125,"}",1,{"$f":"IF(C127=1,SUM(C$3:C127),\"\")","v":94},null,125,191,"¿",null,null,125,"}",0,{"$f":"IF(M127=1,SUM(M$3:M127),\"\")","v":""},null,125,"-",""]
[126,"~",1,{"$f":"IF(C128=1,SUM(C$3:C128),\"\")","v":95},null,126,192,"À",null,null,126,"~",0,{"$f":"IF(M128=1,SUM(M$3:M128),\"\")","v":""},null,126,"-",""]
[127,"\u007f",0,{"$f":"IF(C129=1,SUM(C$3:C129),\"\")","v":""},null,127,193,"Á",null,null,127,"\u007f",0,{"$f":"IF(M129=1,SUM(M$3:M129),\"\")","v":""},null,127,"-",""]
[128,"€",0,{"$f":"IF(C130=1,SUM(C$3:C130),\"\")","v":""},null,128,194,"Â",null,null,128,"€",0,{"$f":"IF(M130=1,SUM(M$3:M130),\"\")","v":""},null,128,"-",""]
[129,"\u0081",0,{"$f":"IF(C131=1,SUM(C$3:C131),\"\")","v":""},null,129,{"$f":"IF(ISERROR(MATCH(F131,D$3:D$257,0)),\"-\",INDEX(A$3:A$257,MATCH(F131,D$3:D$257,0)))","v":195},{"$f":"IF(G131<>\"-\",CHAR(G131),\"\")","v":"Ã"},null,null,129,"\u0081",1,{"$f":"IF(M131=1,SUM(M$3:M131),\"\")","v":70},null,129,{"$f":"IF(ISERROR(MATCH(P131,N$3:N$257,0)),\"-\",INDEX(K$3:K$257,MATCH(P131,N$3:N$257,0)))","v":"-"},{"$f":"IF(Q131<>\"-\",CHAR(Q131),\"\")","v":""}]
[130,{"$f":"CHAR(A132)","v":"‚"},0,{"$f":"IF(C132=1,SUM(C$3:C132),\"\")","v":""},null,130,196,"Ä",null,null,130,{"$f":"CHAR(K132)","v":"‚"},0,{"$f":"IF(M132=1,SUM(M$3:M132),\"\")","v":""},null,130,"-",""]
[{"$f":"A132+1","v":131},"ƒ",0,{"$f":"IF(C133=1,SUM(C$3:C133),\"\")","v":""},null,{"$f":"F132+1","v":131},197,"Å",null,null,{"$f":"K132+1","v":131},"ƒ",0,{"$f":"IF(M133=1,SUM(M$3:M133),\"\")","v":""},null,{"$f":"P132+1","v":131},"-",""]
[132,"„",0,{"$f":"IF(C134=1,SUM(C$3:C134),\"\")","v":""},null,132,198,"Æ",null,null,132,"„",0,{"$f":"IF(M134=1,SUM(M$3:M134),\"\")","v":""},null,132,"-",""]
[133,"…",0,{"$f":"IF(C135=1,SUM(C$3:C135),\"\")","v":""},null,133,199,"Ç",null,null,133,"…",0,{"$f":"IF(M135=1,SUM(M$3:M135),\"\")","v":""},null,133,"-",""]
[134,"†",0,{"$f":"IF(C136=1,SUM(C$3:C136),\"\")","v":""},null,134,200,"È",null,null,134,"†",0,{"$f":"IF(M136=1,SUM(M$3:M136),\"\")","v":""},null,134,"-",""]
[135,"‡",0,{"$f":"IF(C137=1,SUM(C$3:C137),\"\")","v":""},null,135,201,"É",null,null,135,"‡",0,{"$f":"IF(M137=1,SUM(M$3:M137),\"\")","v":""},null,135,"-",""]
[136,"ˆ",0,{"$f":"IF(C138=1,SUM(C$3:C138),\"\")","v":""},null,136,202,"Ê",null,null,136,"ˆ",0,{"$f":"IF(M138=1,SUM(M$3:M138),\"\")","v":""},null,136,"-",""]
[137,"‰",0,{"$f":"IF(C139=1,SUM(C$3:C139),\"\")","v":""},null,137,203,"Ë",null,null,137,"‰",0,{"$f":"IF(M139=1,SUM(M$3:M139),\"\")","v":""},null,137,"-",""]
[138,"Š",0,{"$f":"IF(C140=1,SUM(C$3:C140),\"\")","v":""},null,138,204,"Ì",null,null,138,"Š",0,{"$f":"IF(M140=1,SUM(M$3:M140),\"\")","v":""},null,138,"-",""]
[139,"‹",0,{"$f":"IF(C141=1,SUM(C$3:C141),\"\")","v":""},null,139,205,"Í",null,null,139,"‹",0,{"$f":"IF(M141=1,SUM(M$3:M141),\"\")","v":""},null,139,"-",""]
[140,"Œ",0,{"$f":"IF(C142=1,SUM(C$3:C142),\"\")","v":""},null,140,206,"Î",null,null,140,"Œ",0,{"$f":"IF(M142=1,SUM(M$3:M142),\"\")","v":""},null,140,"-",""]
[141,"\u008d",0,{"$f":"IF(C143=1,SUM(C$3:C143),\"\")","v":""},null,141,207,"Ï",null,null,141,"\u008d",0,{"$f":"IF(M143=1,SUM(M$3:M143),\"\")","v":""},null,141,"-",""]
[142,"Ž",0,{"$f":"IF(C144=1,SUM(C$3:C144),\"\")","v":""},null,142,208,"Ð",null,null,142,"Ž",0,{"$f":"IF(M144=1,SUM(M$3:M144),\"\")","v":""},null,142,"-",""]
[143,"\u008f",0,{"$f":"IF(C145=1,SUM(C$3:C145),\"\")","v":""},null,143,209,"Ñ",null,null,143,"\u008f",0,{"$f":"IF(M145=1,SUM(M$3:M145),\"\")","v":""},null,143,"-",""]
[144,"\u0090",0,{"$f":"IF(C146=1,SUM(C$3:C146),\"\")","v":""},null,144,210,"Ò",null,null,144,"\u0090",0,{"$f":"IF(M146=1,SUM(M$3:M146),\"\")","v":""},null,144,"-",""]
[145,"‘",0,{"$f":"IF(C147=1,SUM(C$3:C147),\"\")","v":""},null,145,211,"Ó",null,null,145,"‘",0,{"$f":"IF(M147=1,SUM(M$3:M147),\"\")","v":""},null,145,"-",""]
[146,"’",0,{"$f":"IF(C148=1,SUM(C$3:C148),\"\")","v":""},null,146,212,"Ô",null,null,146,"’",0,{"$f":"IF(M148=1,SUM(M$3:M148),\"\")","v":""},null,146,"-",""]
[147,"“",0,{"$f":"IF(C149=1,SUM(C$3:C149),\"\")","v":""},null,147,213,"Õ",null,null,147,"“",0,{"$f":"IF(M149=1,SUM(M$3:M149),\"\")","v":""},null,147,"-",""]
[148,"”",0,{"$f":"IF(C150=1,SUM(C$3:C150),\"\")","v":""},null,148,214,"Ö",null,null,148,"”",0,{"$f":"IF(M150=1,SUM(M$3:M150),\"\")","v":""},null,148,"-",""]
[149,"•",0,{"$f":"IF(C151=1,SUM(C$3:C151),\"\")","v":""},null,149,215,"×",null,null,149,"•",0,{"$f":"IF(M151=1,SUM(M$3:M151),\"\")","v":""},null,149,"-",""]
[150,"–",0,{"$f":"IF(C152=1,SUM(C$3:C152),\"\")","v":""},null,150,216,"Ø",null,null,150,"–",0,{"$f":"IF(M152=1,SUM(M$3:M152),\"\")","v":""},null,150,"-",""]
[151,"—",0,{"$f":"IF(C153=1,SUM(C$3:C153),\"\")","v":""},null,151,217,"Ù",null,null,151,"—",0,{"$f":"IF(M153=1,SUM(M$3:M153),\"\")","v":""},null,151,"-",""]
[152,"˜",0,{"$f":"IF(C154=1,SUM(C$3:C154),\"\")","v":""},null,152,218,"Ú",null,null,152,"˜",0,{"$f":"IF(M154=1,SUM(M$3:M154),\"\")","v":""},null,152,"-",""]
[153,"™",0,{"$f":"IF(C155=1,SUM(C$3:C155),\"\")","v":""},null,153,219,"Û",null,null,153,"™",0,{"$f":"IF(M155=1,SUM(M$3:M155),\"\")","v":""},null,153,"-",""]
[154,"š",0,{"$f":"IF(C156=1,SUM(C$3:C156),\"\")","v":""},null,154,220,"Ü",null,null,154,"š",0,{"$f":"IF(M156=1,SUM(M$3:M156),\"\")","v":""},null,154,"-",""]
[155,"›",0,{"$f":"IF(C157=1,SUM(C$3:C157),\"\")","v":""},null,155,221,"Ý",null,null,155,"›",0,{"$f":"IF(M157=1,SUM(M$3:M157),\"\")","v":""},null,155,"-",""]
[156,"œ",0,{"$f":"IF(C158=1,SUM(C$3:C158),\"\")","v":""},null,156,222,"Þ",null,null,156,"œ",0,{"$f":"IF(M158=1,SUM(M$3:M158),\"\")","v":""},null,156,"-",""]
[157,"\u009d",0,{"$f":"IF(C159=1,SUM(C$3:C159),\"\")","v":""},null,157,223,"ß",null,null,157,"\u009d",0,{"$f":"IF(M159=1,SUM(M$3:M159),\"\")","v":""},null,157,"-",""]
[158,"ž",0,{"$f":"IF(C160=1,SUM(C$3:C160),\"\")","v":""},null,158,224,"à",null,null,158,"ž",0,{"$f":"IF(M160=1,SUM(M$3:M160),\"\")","v":""},null,158,"-",""]
[159,"Ÿ",0,{"$f":"IF(C161=1,SUM(C$3:C161),\"\")","v":""},null,159,225,"á",null,null,159,"Ÿ",0,{"$f":"IF(M161=1,SUM(M$3:M161),\"\")","v":""},null,159,"-",""]
[160," ",0,{"$f":"IF(C162=1,SUM(C$3:C162),\"\")","v":""},null,160,226,"â",null,null,160," ",0,{"$f":"IF(M162=1,SUM(M$3:M162),\"\")","v":""},null,160,"-",""]
[161,"¡",1,{"$f":"IF(C163=1,SUM(C$3:C163),\"\")","v":96},null,161,227,"ã",null,null,161,"¡",0,{"$f":"IF(M163=1,SUM(M$3:M163),\"\")","v":""},null,161,"-",""]
[162,"¢",1,{"$f":"IF(C164=1,SUM(C$3:C164),\"\")","v":97},null,162,228,"ä",null,null,162,"¢",0,{"$f":"IF(M164=1,SUM(M$3:M164),\"\")","v":""},null,162,"-",""]
[163,"£",1,{"$f":"IF(C165=1,SUM(C$3:C165),\"\")","v":98},null,163,229,"å",null,null,163,"£",0,{"$f":"IF(M165=1,SUM(M$3:M165),\"\")","v":""},null,163,"-",""]
[164,"¤",1,{"$f":"IF(C166=1,SUM(C$3:C166),\"\")","v":99},null,164,230,"æ",null,null,164,"¤",0,{"$f":"IF(M166=1,SUM(M$3:M166),\"\")","v":""},null,164,"-",""]
[165,"¥",1,{"$f":"IF(C167=1,SUM(C$3:C167),\"\")","v":100},null,165,231,"ç",null,null,165,"¥",0,{"$f":"IF(M167=1,SUM(M$3:M167),\"\")","v":""},null,165,"-",""]
[166,"¦",1,{"$f":"IF(C168=1,SUM(C$3:C168),\"\")","v":101},null,166,232,"è",null,null,166,"¦",0,{"$f":"IF(M168=1,SUM(M$3:M168),\"\")","v":""},null,166,"-",""]
[167,"§",1,{"$f":"IF(C169=1,SUM(C$3:C169),\"\")","v":102},null,167,233,"é",null,null,167,"§",0,{"$f":"IF(M169=1,SUM(M$3:M169),\"\")","v":""},null,167,"-",""]
[168,"¨",1,{"$f":"IF(C170=1,SUM(C$3:C170),\"\")","v":103},null,168,234,"ê",null,null,168,"¨",0,{"$f":"IF(M170=1,SUM(M$3:M170),\"\")","v":""},null,168,"-",""]
[169,"©",1,{"$f":"IF(C171=1,SUM(C$3:C171),\"\")","v":104},null,169,235,"ë",null,null,169,"©",0,{"$f":"IF(M171=1,SUM(M$3:M171),\"\")","v":""},null,169,"-",""]
[170,"ª",1,{"$f":"IF(C172=1,SUM(C$3:C172),\"\")","v":105},null,170,236,"ì",null,null,170,"ª",0,{"$f":"IF(M172=1,SUM(M$3:M172),\"\")","v":""},null,170,"-",""]
[171,"«",1,{"$f":"IF(C173=1,SUM(C$3:C173),\"\")","v":106},null,171,237,"í",null,null,171,"«",0,{"$f":"IF(M173=1,SUM(M$3:M173),\"\")","v":""},null,171,"-",""]
[172,"¬",1,{"$f":"IF(C174=1,SUM(C$3:C174),\"\")","v":107},null,172,238,"î",null,null,172,"¬",0,{"$f":"IF(M174=1,SUM(M$3:M174),\"\")","v":""},null,172,"-",""]
[173,"­",0,{"$f":"IF(C175=1,SUM(C$3:C175),\"\")","v":""},null,173,239,"ï",null,null,173,"­",0,{"$f":"IF(M175=1,SUM(M$3:M175),\"\")","v":""},null,173,"-",""]
[174,"®",1,{"$f":"IF(C176=1,SUM(C$3:C176),\"\")","v":108},null,174,240,"ð",null,null,174,"®",0,{"$f":"IF(M176=1,SUM(M$3:M176),\"\")","v":""},null,174,"-",""]
[175,"¯",1,{"$f":"IF(C177=1,SUM(C$3:C177),\"\")","v":109},null,175,241,"ñ",null,null,175,"¯",0,{"$f":"IF(M177=1,SUM(M$3:M177),\"\")","v":""},null,175,"-",""]
[176,"°",1,{"$f":"IF(C178=1,SUM(C$3:C178),\"\")","v":110},null,176,242,"ò",null,null,176,"°",0,{"$f":"IF(M178=1,SUM(M$3:M178),\"\")","v":""},null,176,"-",""]
[177,"±",1,{"$f":"IF(C179=1,SUM(C$3:C179),\"\")","v":111},null,177,243,"ó",null,null,177,"±",0,{"$f":"IF(M179=1,SUM(M$3:M179),\"\")","v":""},null,177,"-",""]
[178,"²",1,{"$f":"IF(C180=1,SUM(C$3:C180),\"\")","v":112},null,178,244,"ô",null,null,178,"²",0,{"$f":"IF(M180=1,SUM(M$3:M180),\"\")","v":""},null,178,"-",""]
[179,"³",1,{"$f":"IF(C181=1,SUM(C$3:C181),\"\")","v":113},null,179,245,"õ",null,null,179,"³",0,{"$f":"IF(M181=1,SUM(M$3:M181),\"\")","v":""},null,179,"-",""]
[180,"´",1,{"$f":"IF(C182=1,SUM(C$3:C182),\"\")","v":114},null,180,246,"ö",null,null,180,"´",0,{"$f":"IF(M182=1,SUM(M$3:M182),\"\")","v":""},null,180,"-",""]
[181,"µ",1,{"$f":"IF(C183=1,SUM(C$3:C183),\"\")","v":115},null,181,247,"÷",null,null,181,"µ",0,{"$f":"IF(M183=1,SUM(M$3:M183),\"\")","v":""},null,181,"-",""]
[182,"¶",1,{"$f":"IF(C184=1,SUM(C$3:C184),\"\")","v":116},null,182,248,"ø",null,null,182,"¶",0,{"$f":"IF(M184=1,SUM(M$3:M184),\"\")","v":""},null,182,"-",""]
[183,"·",1,{"$f":"IF(C185=1,SUM(C$3:C185),\"\")","v":117},null,183,249,"ù",null,null,183,"·",0,{"$f":"IF(M185=1,SUM(M$3:M185),\"\")","v":""},null,183,"-",""]
[184,"¸",1,{"$f":"IF(C186=1,SUM(C$3:C186),\"\")","v":118},null,184,250,"ú",null,null,184,"¸",0,{"$f":"IF(M186=1,SUM(M$3:M186),\"\")","v":""},null,184,"-",""]
[185,"¹",1,{"$f":"IF(C187=1,SUM(C$3:C187),\"\")","v":119},null,185,251,"û",null,null,185,"¹",0,{"$f":"IF(M187=1,SUM(M$3:M187),\"\")","v":""},null,185,"-",""]
[186,"º",1,{"$f":"IF(C188=1,SUM(C$3:C188),\"\")","v":120},null,186,252,"ü",null,null,186,"º",0,{"$f":"IF(M188=1,SUM(M$3:M188),\"\")","v":""},null,186,"-",""]
[187,"»",1,{"$f":"IF(C189=1,SUM(C$3:C189),\"\")","v":121},null,187,253,"ý",null,null,187,"»",0,{"$f":"IF(M189=1,SUM(M$3:M189),\"\")","v":""},null,187,"-",""]
[188,"¼",1,{"$f":"IF(C190=1,SUM(C$3:C190),\"\")","v":122},null,188,254,"þ",null,null,188,"¼",0,{"$f":"IF(M190=1,SUM(M$3:M190),\"\")","v":""},null,188,"-",""]
[189,"½",1,{"$f":"IF(C191=1,SUM(C$3:C191),\"\")","v":123},null,189,255,"ÿ",null,null,189,"½",0,{"$f":"IF(M191=1,SUM(M$3:M191),\"\")","v":""},null,189,"-",""]
[190,"¾",1,{"$f":"IF(C192=1,SUM(C$3:C192),\"\")","v":124},null,190,"-","",null,null,190,"¾",0,{"$f":"IF(M192=1,SUM(M$3:M192),\"\")","v":""},null,190,"-",""]
[191,"¿",1,{"$f":"IF(C193=1,SUM(C$3:C193),\"\")","v":125},null,191,"-","",null,null,191,"¿",0,{"$f":"IF(M193=1,SUM(M$3:M193),\"\")","v":""},null,191,"-",""]
[192,"À",1,{"$f":"IF(C194=1,SUM(C$3:C194),\"\")","v":126},null,192,"-","",null,null,192,"À",0,{"$f":"IF(M194=1,SUM(M$3:M194),\"\")","v":""},null,192,"-",""]
[193,"Á",1,{"$f":"IF(C195=1,SUM(C$3:C195),\"\")","v":127},null,193,{"$f":"IF(ISERROR(MATCH(F195,D$3:D$257,0)),\"-\",INDEX(A$3:A$257,MATCH(F195,D$3:D$257,0)))","v":"-"},{"$f":"IF(G195<>\"-\",CHAR(G195),\"\")","v":""},null,null,193,"Á",0,{"$f":"IF(M195=1,SUM(M$3:M195),\"\")","v":""},null,193,{"$f":"IF(ISERROR(MATCH(P195,N$3:N$257,0)),\"-\",INDEX(K$3:K$257,MATCH(P195,N$3:N$257,0)))","v":"-"},{"$f":"IF(Q195<>\"-\",CHAR(Q195),\"\")","v":""}]
[194,{"$f":"CHAR(A196)","v":"Â"},1,{"$f":"IF(C196=1,SUM(C$3:C196),\"\")","v":128},null,194,"-","",null,null,194,{"$f":"CHAR(K196)","v":"Â"},0,{"$f":"IF(M196=1,SUM(M$3:M196),\"\")","v":""},null,194,"-",""]
[{"$f":"A196+1","v":195},"Ã",1,{"$f":"IF(C197=1,SUM(C$3:C197),\"\")","v":129},null,{"$f":"F196+1","v":195},"-","",null,null,{"$f":"K196+1","v":195},"Ã",0,{"$f":"IF(M197=1,SUM(M$3:M197),\"\")","v":""},null,{"$f":"P196+1","v":195},"-",""]
[196,"Ä",1,{"$f":"IF(C198=1,SUM(C$3:C198),\"\")","v":130},null,196,"-","",null,null,196,"Ä",0,{"$f":"IF(M198=1,SUM(M$3:M198),\"\")","v":""},null,196,"-",""]
[197,"Å",1,{"$f":"IF(C199=1,SUM(C$3:C199),\"\")","v":131},null,197,"-","",null,null,197,"Å",0,{"$f":"IF(M199=1,SUM(M$3:M199),\"\")","v":""},null,197,"-",""]
[198,"Æ",1,{"$f":"IF(C200=1,SUM(C$3:C200),\"\")","v":132},null,198,"-","",null,null,198,"Æ",0,{"$f":"IF(M200=1,SUM(M$3:M200),\"\")","v":""},null,198,"-",""]
[199,"Ç",1,{"$f":"IF(C201=1,SUM(C$3:C201),\"\")","v":133},null,199,"-","",null,null,199,"Ç",0,{"$f":"IF(M201=1,SUM(M$3:M201),\"\")","v":""},null,199,"-",""]
[200,"È",1,{"$f":"IF(C202=1,SUM(C$3:C202),\"\")","v":134},null,200,"-","",null,null,200,"È",0,{"$f":"IF(M202=1,SUM(M$3:M202),\"\")","v":""},null,200,"-",""]
[201,"É",1,{"$f":"IF(C203=1,SUM(C$3:C203),\"\")","v":135},null,201,"-","",null,null,201,"É",0,{"$f":"IF(M203=1,SUM(M$3:M203),\"\")","v":""},null,201,"-",""]
[202,"Ê",1,{"$f":"IF(C204=1,SUM(C$3:C204),\"\")","v":136},null,202,"-","",null,null,202,"Ê",0,{"$f":"IF(M204=1,SUM(M$3:M204),\"\")","v":""},null,202,"-",""]
[203,"Ë",1,{"$f":"IF(C205=1,SUM(C$3:C205),\"\")","v":137},null,203,"-","",null,null,203,"Ë",0,{"$f":"IF(M205=1,SUM(M$3:M205),\"\")","v":""},null,203,"-",""]
[204,"Ì",1,{"$f":"IF(C206=1,SUM(C$3:C206),\"\")","v":138},null,204,"-","",null,null,204,"Ì",0,{"$f":"IF(M206=1,SUM(M$3:M206),\"\")","v":""},null,204,"-",""]
[205,"Í",1,{"$f":"IF(C207=1,SUM(C$3:C207),\"\")","v":139},null,205,"-","",null,null,205,"Í",0,{"$f":"IF(M207=1,SUM(M$3:M207),\"\")","v":""},null,205,"-",""]
[206,"Î",1,{"$f":"IF(C208=1,SUM(C$3:C208),\"\")","v":140},null,206,"-","",null,null,206,"Î",0,{"$f":"IF(M208=1,SUM(M$3:M208),\"\")","v":""},null,206,"-",""]
[207,"Ï",1,{"$f":"IF(C209=1,SUM(C$3:C209),\"\")","v":141},null,207,"-","",null,null,207,"Ï",0,{"$f":"IF(M209=1,SUM(M$3:M209),\"\")","v":""},null,207,"-",""]
[208,"Ð",1,{"$f":"IF(C210=1,SUM(C$3:C210),\"\")","v":142},null,208,"-","",null,null,208,"Ð",0,{"$f":"IF(M210=1,SUM(M$3:M210),\"\")","v":""},null,208,"-",""]
[209,"Ñ",1,{"$f":"IF(C211=1,SUM(C$3:C211),\"\")","v":143},null,209,"-","",null,null,209,"Ñ",0,{"$f":"IF(M211=1,SUM(M$3:M211),\"\")","v":""},null,209,"-",""]
[210,"Ò",1,{"$f":"IF(C212=1,SUM(C$3:C212),\"\")","v":144},null,210,"-","",null,null,210,"Ò",0,{"$f":"IF(M212=1,SUM(M$3:M212),\"\")","v":""},null,210,"-",""]
[211,"Ó",1,{"$f":"IF(C213=1,SUM(C$3:C213),\"\")","v":145},null,211,"-","",null,null,211,"Ó",0,{"$f":"IF(M213=1,SUM(M$3:M213),\"\")","v":""},null,211,"-",""]
[212,"Ô",1,{"$f":"IF(C214=1,SUM(C$3:C214),\"\")","v":146},null,212,"-","",null,null,212,"Ô",0,{"$f":"IF(M214=1,SUM(M$3:M214),\"\")","v":""},null,212,"-",""]
[213,"Õ",1,{"$f":"IF(C215=1,SUM(C$3:C215),\"\")","v":147},null,213,"-","",null,null,213,"Õ",0,{"$f":"IF(M215=1,SUM(M$3:M215),\"\")","v":""},null,213,"-",""]
[214,"Ö",1,{"$f":"IF(C216=1,SUM(C$3:C216),\"\")","v":148},null,214,"-","",null,null,214,"Ö",0,{"$f":"IF(M216=1,SUM(M$3:M216),\"\")","v":""},null,214,"-",""]
[215,"×",1,{"$f":"IF(C217=1,SUM(C$3:C217),\"\")","v":149},null,215,"-","",null,null,215,"×",0,{"$f":"IF(M217=1,SUM(M$3:M217),\"\")","v":""},null,215,"-",""]
[216,"Ø",1,{"$f":"IF(C218=1,SUM(C$3:C218),\"\")","v":150},null,216,"-","",null,null,216,"Ø",0,{"$f":"IF(M218=1,SUM(M$3:M218),\"\")","v":""},null,216,"-",""]
[217,"Ù",1,{"$f":"IF(C219=1,SUM(C$3:C219),\"\")","v":151},null,217,"-","",null,null,217,"Ù",0,{"$f":"IF(M219=1,SUM(M$3:M219),\"\")","v":""},null,217,"-",""]
[218,"Ú",1,{"$f":"IF(C220=1,SUM(C$3:C220),\"\")","v":152},null,218,"-","",null,null,218,"Ú",0,{"$f":"IF(M220=1,SUM(M$3:M220),\"\")","v":""},null,218,"-",""]
[219,"Û",1,{"$f":"IF(C221=1,SUM(C$3:C221),\"\")","v":153},null,219,"-","",null,null,219,"Û",0,{"$f":"IF(M221=1,SUM(M$3:M221),\"\")","v":""},null,219,"-",""]
[220,"Ü",1,{"$f":"IF(C222=1,SUM(C$3:C222),\"\")","v":154},null,220,"-","",null,null,220,"Ü",0,{"$f":"IF(M222=1,SUM(M$3:M222),\"\")","v":""},null,220,"-",""]
[221,"Ý",1,{"$f":"IF(C223=1,SUM(C$3:C223),\"\")","v":155},null,221,"-","",null,null,221,"Ý",0,{"$f":"IF(M223=1,SUM(M$3:M223),\"\")","v":""},null,221,"-",""]
[222,"Þ",1,{"$f":"IF(C224=1,SUM(C$3:C224),\"\")","v":156},null,222,"-","",null,null,222,"Þ",0,{"$f":"IF(M224=1,SUM(M$3:M224),\"\")","v":""},null,222,"-",""]
[223,"ß",1,{"$f":"IF(C225=1,SUM(C$3:C225),\"\")","v":157},null,223,"-","",null,null,223,"ß",0,{"$f":"IF(M225=1,SUM(M$3:M225),\"\")","v":""},null,223,"-",""]
[224,"à",1,{"$f":"IF(C226=1,SUM(C$3:C226),\"\")","v":158},null,224,"-","",null,null,224,"à",0,{"$f":"IF(M226=1,SUM(M$3:M226),\"\")","v":""},null,224,"-",""]
[225,"á",1,{"$f":"IF(C227=1,SUM(C$3:C227),\"\")","v":159},null,225,"-","",null,null,225,"á",0,{"$f":"IF(M227=1,SUM(M$3:M227),\"\")","v":""},null,225,"-",""]
[226,"â",1,{"$f":"IF(C228=1,SUM(C$3:C228),\"\")","v":160},null,226,"-","",null,null,226,"â",0,{"$f":"IF(M228=1,SUM(M$3:M228),\"\")","v":""},null,226,"-",""]
[227,"ã",1,{"$f":"IF(C229=1,SUM(C$3:C229),\"\")","v":161},null,227,"-","",null,null,227,"ã",0,{"$f":"IF(M229=1,SUM(M$3:M229),\"\")","v":""},null,227,"-",""]
[228,"ä",1,{"$f":"IF(C230=1,SUM(C$3:C230),\"\")","v":162},null,228,"-","",null,null,228,"ä",0,{"$f":"IF(M230=1,SUM(M$3:M230),\"\")","v":""},null,228,"-",""]
[229,"å",1,{"$f":"IF(C231=1,SUM(C$3:C231),\"\")","v":163},null,229,"-","",null,null,229,"å",0,{"$f":"IF(M231=1,SUM(M$3:M231),\"\")","v":""},null,229,"-",""]
[230,"æ",1,{"$f":"IF(C232=1,SUM(C$3:C232),\"\")","v":164},null,230,"-","",null,null,230,"æ",0,{"$f":"IF(M232=1,SUM(M$3:M232),\"\")","v":""},null,230,"-",""]
[231,"ç",1,{"$f":"IF(C233=1,SUM(C$3:C233),\"\")","v":165},null,231,"-","",null,null,231,"ç",0,{"$f":"IF(M233=1,SUM(M$3:M233),\"\")","v":""},null,231,"-",""]
[232,"è",1,{"$f":"IF(C234=1,SUM(C$3:C234),\"\")","v":166},null,232,"-","",null,null,232,"è",0,{"$f":"IF(M234=1,SUM(M$3:M234),\"\")","v":""},null,232,"-",""]
[233,"é",1,{"$f":"IF(C235=1,SUM(C$3:C235),\"\")","v":167},null,233,"-","",null,null,233,"é",0,{"$f":"IF(M235=1,SUM(M$3:M235),\"\")","v":""},null,233,"-",""]
[234,"ê",1,{"$f":"IF(C236=1,SUM(C$3:C236),\"\")","v":168},null,234,"-","",null,null,234,"ê",0,{"$f":"IF(M236=1,SUM(M$3:M236),\"\")","v":""},null,234,"-",""]
[235,"ë",1,{"$f":"IF(C237=1,SUM(C$3:C237),\"\")","v":169},null,235,"-","",null,null,235,"ë",0,{"$f":"IF(M237=1,SUM(M$3:M237),\"\")","v":""},null,235,"-",""]
[236,"ì",1,{"$f":"IF(C238=1,SUM(C$3:C238),\"\")","v":170},null,236,"-","",null,null,236,"ì",0,{"$f":"IF(M238=1,SUM(M$3:M238),\"\")","v":""},null,236,"-",""]
[237,"í",1,{"$f":"IF(C239=1,SUM(C$3:C239),\"\")","v":171},null,237,"-","",null,null,237,"í",0,{"$f":"IF(M239=1,SUM(M$3:M239),\"\")","v":""},null,237,"-",""]
[238,"î",1,{"$f":"IF(C240=1,SUM(C$3:C240),\"\")","v":172},null,238,"-","",null,null,238,"î",0,{"$f":"IF(M240=1,SUM(M$3:M240),\"\")","v":""},null,238,"-",""]
[239,"ï",1,{"$f":"IF(C241=1,SUM(C$3:C241),\"\")","v":173},null,239,"-","",null,null,239,"ï",0,{"$f":"IF(M241=1,SUM(M$3:M241),\"\")","v":""},null,239,"-",""]
[240,"ð",1,{"$f":"IF(C242=1,SUM(C$3:C242),\"\")","v":174},null,240,"-","",null,null,240,"ð",0,{"$f":"IF(M242=1,SUM(M$3:M242),\"\")","v":""},null,240,"-",""]
[241,"ñ",1,{"$f":"IF(C243=1,SUM(C$3:C243),\"\")","v":175},null,241,"-","",null,null,241,"ñ",0,{"$f":"IF(M243=1,SUM(M$3:M243),\"\")","v":""},null,241,"-",""]
[242,"ò",1,{"$f":"IF(C244=1,SUM(C$3:C244),\"\")","v":176},null,242,"-","",null,null,242,"ò",0,{"$f":"IF(M244=1,SUM(M$3:M244),\"\")","v":""},null,242,"-",""]
[243,"ó",1,{"$f":"IF(C245=1,SUM(C$3:C245),\"\")","v":177},null,243,"-","",null,null,243,"ó",0,{"$f":"IF(M245=1,SUM(M$3:M245),\"\")","v":""},null,243,"-",""]
[244,"ô",1,{"$f":"IF(C246=1,SUM(C$3:C246),\"\")","v":178},null,244,"-","",null,null,244,"ô",0,{"$f":"IF(M246=1,SUM(M$3:M246),\"\")","v":""},null,244,"-",""]
[245,"õ",1,{"$f":"IF(C247=1,SUM(C$3:C247),\"\")","v":179},null,245,"-","",null,null,245,"õ",0,{"$f":"IF(M247=1,SUM(M$3:M247),\"\")","v":""},null,245,"-",""]
[246,"ö",1,{"$f":"IF(C248=1,SUM(C$3:C248),\"\")","v":180},null,246,"-","",null,null,246,"ö",0,{"$f":"IF(M248=1,SUM(M$3:M248),\"\")","v":""},null,246,"-",""]
[247,"÷",1,{"$f":"IF(C249=1,SUM(C$3:C249),\"\")","v":181},null,247,"-","",null,null,247,"÷",0,{"$f":"IF(M249=1,SUM(M$3:M249),\"\")","v":""},null,247,"-",""]
[248,"ø",1,{"$f":"IF(C250=1,SUM(C$3:C250),\"\")","v":182},null,248,"-","",null,null,248,"ø",0,{"$f":"IF(M250=1,SUM(M$3:M250),\"\")","v":""},null,248,"-",""]
[249,"ù",1,{"$f":"IF(C251=1,SUM(C$3:C251),\"\")","v":183},null,249,"-","",null,null,249,"ù",0,{"$f":"IF(M251=1,SUM(M$3:M251),\"\")","v":""},null,249,"-",""]
[250,"ú",1,{"$f":"IF(C252=1,SUM(C$3:C252),\"\")","v":184},null,250,"-","",null,null,250,"ú",0,{"$f":"IF(M252=1,SUM(M$3:M252),\"\")","v":""},null,250,"-",""]
[251,"û",1,{"$f":"IF(C253=1,SUM(C$3:C253),\"\")","v":185},null,251,"-","",null,null,251,"û",0,{"$f":"IF(M253=1,SUM(M$3:M253),\"\")","v":""},null,251,"-",""]
[252,"ü",1,{"$f":"IF(C254=1,SUM(C$3:C254),\"\")","v":186},null,252,"-","",null,null,252,"ü",0,{"$f":"IF(M254=1,SUM(M$3:M254),\"\")","v":""},null,252,"-",""]
[253,"ý",1,{"$f":"IF(C255=1,SUM(C$3:C255),\"\")","v":187},null,253,"-","",null,null,253,"ý",0,{"$f":"IF(M255=1,SUM(M$3:M255),\"\")","v":""},null,253,"-",""]
[254,"þ",1,{"$f":"IF(C256=1,SUM(C$3:C256),\"\")","v":188},null,254,"-","",null,null,254,"þ",0,{"$f":"IF(M256=1,SUM(M$3:M256),\"\")","v":""},null,254,"-",""]
[255,"ÿ",1,{"$f":"IF(C257=1,SUM(C$3:C257),\"\")","v":189},null,255,"-","",null,null,255,"ÿ",0,{"$f":"IF(M257=1,SUM(M$3:M257),\"\")","v":""},null,255,"-",""]